{"text_format":"1","workbook":"xlsx","n_sheets":11,"sheets":["Nota","Modes.d'emploi","mexicaine.1","mexicaine.2","original","Comment copier-coller","Code VBA","qu'est-ce qu'un \"Postit\"","Vocabulaire","Cuisiniers.Pesez","Poids fruits et légumes"],"not_rendered":{"charts":0,"images":28,"macros":1,"external_links":0,"defined_names":3,"comments":0,"pivot_tables":0},"unopened":[],"bounds":{"document_bytes":16777216,"sheet_cells":100000,"rows_first":2000,"rows_last":500,"rows_between":2000,"halvings":0,"cell_chars":16384,"cell_head_chars":4096},"cells_cut":0,"cells_raw":0,"read":"whole","date_system":"1900"}

{"sheet":"Nota","index":0,"n_rows":106,"n_cols":26,"rows_kept":106,"cut":false,"hidden":false,"merged":[[1,18,2,21],[6,1,6,2],[9,1,9,19],[103,2,103,10],[104,1,104,21],[32,3,33,3],[32,4,33,4],[32,5,33,9],[32,10,33,10],[37,3,38,3],[37,4,38,4],[37,5,38,13],[37,14,38,15]]}
[]
[null,"Ces documents sont les fruits :",null,null,null,null,null,null,null,null,null,null,null,null,null,null,null,null,"VERSION E"]
[null,"de mon expérience et des utilitaires de la restauration collective"]
[null,"de formules et fonctions Excel mises sur le net par des passionnés ",null,null,null,null,null,null,null,null,null,null,null,null,null,null,null,null,"dernière mise à jour : 19 Décembre 2021"]
[null,"A vous de les faire évoluer  et de les modifier pour votre utilisation.......",null,null,null,null,null,null,null,null,null,null,null,null,null,null,null,null,{"$f":"\"Page \"&_xlfn.SHEET()&\" sur \"&_xlfn.SHEETS()","v":"Page 1 sur 11"}]
[]
[null,"Adresse PC",null,{"$f":"CELL(\"nomfichier\")","v":"E:\\0-UPRT\\1-UPRT.FR-SITE-WEB\\re-recettes-jean-marc-catteau\\re-catteau-galettes\\[PC-galette-garniture-mexicaine.xls]original"}]
[]
[]
[null,"CONTENU DU CLASSEUR"]
[null,null,"Vous êtes dans un classeur xlsm  certaines feuilles contiennent du code VBA  dans Worksheet"]
[]
[null,null,"MODES D'EMPLOI"]
[null,null,null,"MODÈLE PORTRAIT 1"]
[null,null,null,null,"Recette au poids et au NOMBRE DE GALETTES"]
[null,null,null,null,"1 seule fiche imprimable sur feuille A4"]
[null,null,null,null,null,"❼ A dupliquer pour"]
[null,null,null,null,null,2.5,10]
[null,null,null,null,"pour 1 Kg","Kg","Galettes"]
[null,null,null,null,"Postit de 16 lignes de produits"]
[]
[null,null,null,"MODÈLE PORTRAIT 2 une fiche"]
[null,null,null,null,"1 seule fiche imprimable sur feuille A4"]
[null,null,null,null,"Recette au nombre de PORTIONS"]
[null,null,null,null,"2 blocs de 15 lignes sur une fiche imprimable sur feuille A4"]
[]
[null,null,null,null,"❹ Unités","❺  Poids","❸ Ingrédients","⑦ Quantités","%","❻ Quoi","❹ Unités","❺  Poids","❸ Ingrédients","⑦ Quantités","%","❻ Quoi"]
[null,null,null,null,null,null,"S.Total saisi >",0.27500000000000002,null,null,null,null,"S.Total saisi >",0]
[null,null,null,null,8,0.05,"œufs",0.2,0.72727272727272729,"Kg",null,null,"Chair à saucisse",0,"","Kg"]
[]
[null,null,"PATE.BIGOUDENNE.1"]
[null,null,null,"Modèle portrait 1"]
[null,null,null,"ICI","① ","Galette mexicaine",null,null,null,null,"GAL027"]
[]
[]
[null,null,"PATE.BIGOUDENNE.2"]
[null,null,null,"Modèle portrait 2"]
[null,null,null,"ICI","① ","Galette mexicaine",null,null,null,null,null,null,null,null,"GAL027"]
[]
[]
[null,null,"COMMENT COPIER/ COLLER DANS UNE FEUILLE "]
[]
[null,null,"CODE VBA POUR METTRE EN SURBRILLANCE LA LIGNE ET LA COLONNE ACTIVES DANS EXCEL"]
[]
[null,null,"QU'EST-CE QU'UNE FICHE DE FABRICATION  DE TYPE \"POSTIT\"©"]
[null,null,null,"SERVICE AU POIDS Explication"]
[]
[null,null,"VOCABULAIRE PROFESSIONNEL"]
[null,null,null,"Vocabulaire \" cuisine de composition\""]
[null,null,null,"Vocabulaire\"La CUISINE DE REFERENCE\" Michel MAINCENT"]
[null,null,null,"Vocabulaire    un verbe…une action"]
[null,null,null,"Quelques verbes d'action complémentaires"]
[null,null,null,"Le vocabulaire professionnel en pâtisserie"]
[]
[null,null,"POIDS DES FRUITS ET LÉGUMES"]
[null,null,null,"Saisissez votre nombre d'unité (encre rouge)Modifiez le poids unitaire (encre verte) s'il n'est pas excact"]
[]
[null,null,"CUISINIERS : PESEZ …..EVITEZ LES VOLUMES , N'UTILISEZ QUE LES POIDS COMME LES PATISSIERS"]
[]
[null,null,"POIDS DES FRUITS ET LÉGUMES"]
[null,null,null,"Saisissez votre nombre d'unité (encre rouge)Modifiez le poids unitaire (encre verte) s'il n'est pas excact"]
[]
[]
[null,"Quelques polices de caractères utilisées",null,null,null,null,null,null,null,null,null,null,null,null,null,null,"Quelques formats utilisés"]
[null,null,"Arial",null,"Calibri",null,"Rockwell",null,null,"Verdana",null,null,null,null,null,null,"15.5 >",null,15.5,null,15.5,null,15.5]
[null,null,"ARIAL",null,"CALIBRI",null,"ROCKWELL",null,null,"VERDANA",null,null,null,null,null,null,"personnalisés >",null,"0.000\" Kg\"",null,"0\" %\"",null,"Monétaire"]
[]
[null,"Autres polices à découvrir"]
[null,null,"ARIAL NARROW    Arial Narrow",null,null,null,null,"COMIC SANS MF  Comic Sans MF",null,null,null,null,null,null,null,"GIL SANS MT  Gill Sans MT",null,null,null,null,null,"PALATINO LINOTYPE  Palatino Linotype"]
[null,null,"TAHOMA   Tahoma",null,null,null,null,"TIMES NEW ROMAN Times New Roman",null,null,null,null,null,null,null,"TRBUCHET MF  Trébuchet MF",null,null,null,null,null,"TW CEN MT  Tw Cen MT"]
[null,null,"VRINDA   Vrinda"]
[null,"Une numérotation avec couleur de police modifiable"]
[null,null,"❶","❷","❸","❹","❺","❻","❼","❽","❾","❿","⓫","⓬","⓭","⓮","⓯","⓰","⓱","⓲","⓳","⓴"]
[]
[null,null,"❶","❷","❸","❹","❺","❻","❼","❽","❾","❿","⓫","⓬","⓭","⓮","⓯","⓰","⓱","⓲","⓳","⓴"]
[]
[null,null,1,"2","3","4","5","6","7","8","9","10","11","12","13","14","15","16","17","18","19","20"]
[]
[null,null,1,2,3,4,5,6,7,8,9,10,11,12,13,14,15,16,17,18,19,20]
[]
[null,null,"⓪①②③④⑤⑥⑦⑧⑨⑩⑪⑫⑬⑭⑮⑯⑰⑱⑲⑳",null,null,null,null,null,null,null,null,"couleur de police blanc sur fond gris à modifier pour vos documents"]
[null,null,"cliquez sur la colonne  C et sélectionnez dans la barre le numéro qui vous intéresse"]
[null,null,"⓿❶❷❸❹❺❻❼❽❾❿⓫⓬⓭⓮⓯⓰⓱⓲⓳⓴"]
[]
[null,"des caractères spéciaux"]
[null,"!","\"","#",null,"%","&","@","‰","≈","±","»","¼","½","¾","ø","►","◄","▲","▼","Φ"]
[]
[null,null,"0.00\\ \" cm³\"",null,null,"Format | cellule | personnalisé | 0\" cm³\""]
[null,null,3]
[null,null,null,null,null,null,null,"ou copier-coller",null,null,null,null,null,"X","t","u"]
[null,null,"le ² se fait en tapant alt+0178",null,null,null,null,"m² ","M² ","cm² ","²",null,null,"Police Wingdings 3"]
[null,null,"le ³ se fait en tapant alt+0179",null,null,null,null,"m³ ","M³ ","cm³ ","³",null,null,"Z","q","p"]
[]
[]
[null,null,"lien >","Les unités pifométriques"]
[null,null,"Je remercie chaleureusement les internautes passionnés qui élaborent et proposent des formules et fonctions imbriquées"]
[]
[null,"Transmettez votre savoir et votre savoir faire  peu importe qui le récupère; pourvu qu'un plus grand nombre puisse en bénéficier."]
[null,"Joël LEBOUCHER …Octobre 2015"]
[null,"un lien rompu ou devenu obsolète…..pas de panique…Google saura vous retrouver un document équivalent"]
[]
[null,"Site à découvrir"]
[null,"SPACE pour Suivi et Programmation d'ACtivités en Equipe est un outil destiné à permettre un suivi exhaustif des activités d'une équipe."]
["lien >",null,"Fil de discussion dédié à ce programme "]
[" >","http://www.excel-downloads.com/remository/Download/Professionnels/Planification-et-gestion-de-projets/SPACE.html",null,null,null,null,null,null,null,null,null,null,null,null,null,null,null,null,null,null,null,null,null,null,null,"FIN"]
[null,null,null,null,null,null,null,null,null,null,null,null,null,null,null,null,null,null,null,null,null,null,null,null,null,{"$f":"ADDRESS(ROW(),COLUMN(),4)","v":"Z106"}]

{"sheet":"Modes.d'emploi","index":1,"n_rows":58,"n_cols":29,"rows_kept":58,"cut":false,"hidden":false,"merged":[[33,23,38,26],[37,16,38,20],[39,16,40,20],[1,1,2,13],[1,15,2,27],[8,24,11,27],[9,16,10,20],[13,16,13,20],[13,24,16,27],[14,16,14,20],[19,16,20,20],[39,2,40,5],[6,7,28,7],[8,2,8,5],[8,9,11,12],[9,2,10,5],[4,22,5,22],[6,16,7,20],[6,22,28,22],[8,16,8,20],[30,16,31,20],[12,2,12,5],[13,2,13,5],[13,9,16,12],[42,2,43,5],[4,16,5,20],[17,2,17,5],[19,2,20,5],[27,2,29,5],[30,2,32,5],[35,2,36,5],[37,2,38,5],[4,2,5,5],[4,7,5,7],[6,2,7,5]]}
[]
[null,"Mode d'emploi du modèle 1 ",null,null,null,null,null,null,null,null,null,null,null,null,null,"Mode d'emploi du modèle 2"]
[]
[null,null,null,null,null,null,null,null,null,null,null,null,null,null,null,null,12,12,19,12,12]
[null,null,"Récap du Mode d'emploi  de la fiche recette",null,null,null,null,"ICI",null,null,null,null,null,null,null,null,"Récap du Mode d'emploi  de la fiche recette",null,null,null,null,null,"ICI"]
[]
[null,null,"Recette au poids et au NOMBRE DE GALETTES",null,null,null,null,"Sur la tranche des fiches indiquez : CETTE RECETTE EST A CLASSER DANS QUELLE FAMILLE",{"$f":"H7","v":"Sur la tranche des fiches indiquez : CETTE RECETTE EST A CLASSER DANS QUELLE FAMILLE"},null,null,null,null,null,null,null,"Recette au nombre de PORTIONS",null,null,null,null,null,"Sur la tranche des fiches indiquez : DANS QUELLE FAMILLE CETTE RECETTE EST A CLASSER ",{"$f":"W7","v":"Sur la tranche des fiches indiquez : DANS QUELLE FAMILLE CETTE RECETTE EST A CLASSER "}]
[]
[null,null,"à saisir",null,null,null,null,null,null,"J'ai volontairement augmenté le nombre de portions ❺ pour diminuer le poids pour 1 galette en g ⑥ à vous d'ajuster selon votre clientèle",null,null,null,null,null,null,"à saisir",null,null,null,null,null,null,null,"J'ai parfois volontairement augmenté le nombre de portions ❽ pour diminuer  le poids pour 1 portion ⑩ qui ne convenait pas à mes convives"]
[null,null,"❶ NOM de la recette a saisir et N° ou lettre Alpha",null,null,null,null,null,null,null,null,null,null,null,null,null,"① NOM de la recette a saisir et N° ou lettre Alpha"]
[]
[null,null,"❷ Unités.Poids.Compositon",null,null,null,null,null,null,null,null,null,null,null,null,null,"② saisissez le nom de Auteur"]
[null,null,"Poids à saisir en Kg"]
[null,null,"Exep. 3 œufs de 0.050",null,null,null,null,null,null,"le surlignage des lignes et colonnes s'obtient avec une Mise en forme conditionnelle MFC avec cette formule =OU(LIGNE()=CELLULE(\"ligne\");COLONNE()=CELLULE(\"colonne\")) ",null,null,null,null,null,null,"Poids à saisir en Kg",null,null,null,null,null,null,null,"le surlignage des lignes et colonnes s'obtient avec une Mise en forme conditionnelle MFC avec cette formule =OU(LIGNE()=CELLULE(\"ligne\");COLONNE()=CELLULE(\"colonne\")) "]
[null,null,null,"❷ Unités","❷  Poids","❸ Quoi",null,null,null,null,null,null,null,null,null,null,"Exep. 3 œufs de 0.050"]
[null,null,null,3,0.05,"kg",null,null,null,null,null,null,null,null,null,null,"❹ Unités","❺  Poids","❸ les Ingrédients","⑦ Quantités","❻ Quoi"]
[null,null,"ou",3,null,"Œufs",null,null,null,null,null,null,null,null,null,null,3,0.05,"œufs",2.5,"Kg"]
[null,null,"ou œufs liquides",null,null,null,null,null,null,"et cette commande de code dans Worksheet",null,null,null,null,null,null,null,0.15,"ou œufs liquides",0.72499999999999998,"Kg",null,null,null,"et cette commande de code dans Worksheet"]
[null,null,null,null,0.15,"kg",null,null,null," Private Sub Worksheet_SelectionChange(ByVal Target As Range)  ",null,null,null,null,null,null,3,null,"œufs",12,"œufs",null,null,null," Private Sub Worksheet_SelectionChange(ByVal Target As Range)  "]
[null,null,"❸ Lorsque vous avez des produits à l'unité réduisez les décimales pour une meilleure lecture",null,null,null,null,null,null,"  Calculate",null,null,null,null,null,null,"⑦ Lorsque vous avez des produits à l'unité réduisez les décimales pour une meilleure lecture",null,null,null,null,null,null,null,"  Calculate"]
[null,null,null,null,null,null,null,null,null,"End Sub",null,null,null,null,null,null,null,null,null,null,null,null,null,null,"End Sub"]
[null,null,"utilisez le pinceau pour ce faire",null,null,null,null,null,null,15,15,15,15,"largeur de colonnes",null,null,null,null,null,"⑦ Quantités","❻ Quoi",null,null,null,15,15,15,15]
[null,null,"pour 1 Kg","Kg","Galettes",null,null,null,null,null,null,null,null,null,null,null,null,null,"utilisez le pinceau pour ce faire",12,"œufs"]
[null,null,1,1,1.2,null,null,null,null," total saisi >","SI(ESTVIDE(Q5);R5;Q5*R5)+SI(ESTVIDE(Q6);R6;Q6*R6) etc…",null,null,null,null,null,null,null,null,null,null,null,null,null,"Cours VBA : les événements Worksheet"]
[null,null,null,null,null,null,null,null,null,"pour 1 Kg","SI(ESTVIDE(B11);C11/C26;SI(ESTVIDE(C11);B11/C26;(C11*B11)/C26))",null,null,null,null,null,"❽  Nombre de portions prévues par l'Auteur",null,null,null,null,null,null,null,"Lien>","https://www.exceltip.com/events-in-vba/the-worksheet-events-in-excel-vba.html"]
[null,null,"❹ Référence Auteur",null,null,null,null,null,null,"Kg","E11*F8",null,null,null,null,null,"Poids total Auteur ⑨ somme des colonnes ❺  Poids",null,null,null,null,null,null,null,"Lien>","https://www.excel-pratique.com/fr/vba/evenements_feuille"]
[null,null,null,null,null,null,null,null,null,"Galettes","SI(ESTVIDE(B11);C11/C26*H8;SI(ESTVIDE(C11);B11/(C26*H8);(C11*B11)/(C26*H8)))",null,null,null,null,null,"formule utilisée","SI(ESTVIDE(B34);C34;B34*C34)+SI(ESTVIDE(B35);C35;B35*C35) etc.."]
[null,null,"❺ Nb de portions prévues par l'Auteur de la recette",null,null,null,null,null,null,null,null,null,null,null,null,null,"cette formule multiplie les  Unités ❹  mais n'additionne que les Poids ❺",null,null,null,null,null,null,null,"lien >","Les unités pifométriques"]
[null,null,null,null,null,null,null,null,null,"Cours VBA : les événements Worksheet"]
[null,null,null,null,null,null,"< Largeurs de colonnes",null,null,"Lien>","https://www.exceltip.com/events-in-vba/the-worksheet-events-in-excel-vba.html",null,null,null,null,null,"⑩ poids pour 1 portion",null,null,null,null,null,null,null,"Impression Portrait 1 recette par feuille A4"]
[null,null,"Vous pouvez augmenter ou diminuer le poids pour une galette en g ⑥ en augmentant ou diminuant le Nb.portions prévues ❺",null,null,null,null,null,null,"Lien>","https://www.excel-pratique.com/fr/vba/evenements_feuille",null,null,null,null,null,"Vous pouvez intervenir sur le poids portion ⑩ en augmentant ou en diminuant le nombre de portions ❽"]
[null,null,null,null,null,null,null,null,null,null,null,null,null,null,null,null,null,null,null,null,null,null,null,null,{"$f":"\"Page \"&_xlfn.SHEET()&\" sur \"&_xlfn.SHEETS()","v":"Page 2 sur 11"}]
[null,null,null,null,null,null,null,null,null,"lien >","Les unités pifométriques"]
[null,null,null,null,null,null,null,null,null,null,null,null,null,null,null,null,"⓫ Combien de Portions voulez vous faire",null,null,null,null,null,null,"Avant de saisir quoi que ce soit dans une cellule - cliquez dessus pour vérifier qu'il n'y ait pas de formule"]
[null,null,"❼ Dupliquer pour :",null,null,null,null,null,null,"Impression Portrait 1 recette par feuille A4",null,null,null,null,null,null,null,"⑫ Poids à fabriquer = ⑩ X ⓫"]
[null,null,"vous avez le choix pour un poids ou pour un nombre de crêpes",null,null,null,null,null,null,null,null,null,null,null,null,null,null,"⑬ Contrôle Total saisi somme des colonnes ⑦ Quantités"]
[null,null,null,null,null,null,null,null,null,{"$f":"\"Page \"&_xlfn.SHEET()&\" sur \"&_xlfn.SHEETS()","v":"Page 2 sur 11"},null,null,null,null,null,null,"formule utilisée","SI(ESTNUM(C34);E34)+SI(ESTNUM(C35);E35) etc.."]
[null,null,"après avoir saisi le poids de votre garniture ❽",null,null,null,null,null,null,null,null,null,null,null,null,null,"cette formule n'additionne que les quantités ⑦ à condition qu'il y ait eu un nombre saisi en  Poids ❺ "]
[null,null,null,null,null,null,null,null,null,"PHASES ESSENTIELLES  DE PROGRESSION"]
[null,null,"⑨ AUTEUR  : de la recette",null,null,null,null,null,null,"soyez concis 1 verbe = 1 action",null,null,null,null,null,null,"autrement dit elle ne mélange pas ❹ Unités et ❺  Poids sinon allez expliquer à Excel qu'1 œuf ne fait pas 1 Kg"]
[null,null,null,null,null,null,null,null,null,"Utilisez le vocabulaire professionnel"]
[null,null,null,null,null,null,null,null,null,"la numérotation est automatique"]
[null,null,"⑩ saisissez le lien internet de la recette ou de l'Auteur",null,null,null,null,null,null,null,"lorsque vous saisissez du texte",null,null,null,null,null,"④ PHASES ESSENTIELLES  DE PROGRESSION"]
[null,null,null,null,null,null,null,null,null,"dans la colonne C",null,null,null,null,null,null,"soyez concis 1 verbe = 1 action"]
[null,null,10,10,10,10,null,null,null,null,"si vous ne voulez pas de numérotation",null,null,null,null,null,"Utilisez le vocabulaire professionnel"]
[null,null,null,null,null,null,null,null,null,null,"saisissez votre texte dans la colonne D",null,null,null,null,null,"la numérotation est automatique"]
[null,null,null,null,null,null,null,null,null,"formule utilisée : SI(ESTVIDE(C30);\"\";GRANDE.VALEUR(B29:B29;1)+1)",null,null,null,null,null,null,null,"lorsque vous saisissez du texte"]
[null,null,null,null,null,null,null,null,null,null,null,null,null,null,null,null,"dans la colonne C ou dans la colonne L"]
[null,null,null,null,null,null,null,null,null,null,null,null,null,null,null,null,null,"si vous ne voulez pas de numérotation"]
[null,null,null,null,null,null,null,null,null,null,null,null,null,null,null,null,null,"saisissez votre texte dans la colonne D ou K"]
[null,null,null,null,null,null,null,null,null,null,null,null,null,null,null,null,"formule utilisée :"]
[null,null,null,null,null,null,null,null,null,null,null,null,null,null,null,null,"colonne B"]
[null,null,null,null,null,null,null,null,null,null,null,null,null,null,null,null,"SI(ESTVIDE(C27);\"\";GRANDE.VALEUR(B16:B26;1)+1)",null,null,null,"Colonne M"]
[null,null,null,null,null,null,null,null,null,null,null,null,null,null,null,null,null,null,null,null,"SI(ESTVIDE(L27);\"\";GRANDE.VALEUR(M15:M26;1)+1)"]
[null,null,null,null,null,null,null,null,null,null,null,null,null,null,null,null,12,12,19,12,12,"< Largeurs de colonnes"]
[]
[null,null,null,null,null,null,null,null,null,null,null,null,null,null,null,null,null,null,null,null,null,null,null,null,null,null,null,null,"FIN"]
[null,null,null,null,null,null,null,null,null,null,null,null,null,null,null,null,null,null,null,null,null,null,null,null,null,null,null,null,{"$f":"ADDRESS(ROW(),COLUMN(),4)","v":"AC58"}]

{"sheet":"mexicaine.1","index":2,"n_rows":45,"n_cols":11,"rows_kept":45,"cut":false,"hidden":false,"merged":[[5,10,8,13],[11,10,12,13],[13,10,14,13],[1,0,2,0],[1,7,2,7],[1,2,2,6],[1,1,2,1],[3,0,44,0],[3,1,3,3],[3,6,3,7],[43,1,43,7]]}
[]
["ICI","① ","Galette mexicaine",null,null,null,null,"GAL027"]
[]
["CETTE RECETTE EST A CLASSER DANS LA FAMILLE DES GALETTES","⑨ AUTEUR  :  Jean Marc CATTEAU du centre AFPA de Saint Nazaire ",null,null,null,"Recette éditée le :",{"$f":"NOW()","v":"2021-12-19T20:48:18.730"}]
[null,"❹  Référence Auteur"]
[null,{"$f":"C26","v":2.2000000000000002},"Kg",null,null,null,"❽ poids d'une portion en g >",150,null,null,"J'ai volontairement augmenté le nombre de portions ❺ pour diminuer le poids pour 1 galette en g ⑥ à vous d'ajuster selon votre clientèle"]
[null,10,"< Nb.portions prévues ❺",null,null,"❼ A dupliquer pour"]
[null,{"$f":"(B6/B7)*1000","v":220.00000000000003},"< poids pour une galette en g ⑥",null,null,2.5,10,{"$f":"H6*G8/1000","v":1.5}]
[null,"❷ Unités","❷  Poids","❷ Compositon","pour 1 Kg","Kg","Galettes","❸ Quoi"]
[null,null,1,"Viande de bœuf",{"$f":"IF(ISBLANK(B10),C10/C26,IF(ISBLANK(C10),B10/C26,(C10*B10)/C26))","v":0.45454545454545453},{"$f":"E10*F8","v":1.1363636363636362},{"$f":"IF(ISBLANK(B10),C10/C26*H8,IF(ISBLANK(C10),B10/(C26*H8),(C10*B10)/(C26*H8)))","v":0.68181818181818177},"Kg"]
[null,2,null,"Poivron rouge",{"$f":"IF(ISBLANK(B11),C11/C26,IF(ISBLANK(C11),B11/C26,(C11*B11)/C26))","v":0.90909090909090906},{"$f":"E11*F8","v":2.2727272727272725},{"$f":"+IF(ISBLANK(B11),C11/C26*H8,IF(ISBLANK(C11),B11/(C26*H8),(C11*B11)/(C26*H8)))","v":0.60606060606060597},"poivrons",null,null,"❼ Dupliquer pour :"]
[null,2,null,"Poivron Vert",{"$f":"IF(ISBLANK(B12),C12/C26,IF(ISBLANK(C12),B12/C26,(C12*B12)/C26))","v":0.90909090909090906},{"$f":"E12*F8","v":2.2727272727272725},{"$f":"IF(ISBLANK(B12),C12/C26*H8,IF(ISBLANK(C12),B12/(C26*H8),(C12*B12)/(C26*H8)))","v":0.60606060606060597},"poivrons",null,null,"vous avez le choix pour un poids ou pour un nombre de crêpes"]
[null,2,null,"Poivron Jaune",{"$f":"IF(ISBLANK(B13),C13/C26,IF(ISBLANK(C13),B13/C26,(C13*B13)/C26))","v":0.90909090909090906},{"$f":"E13*F8","v":2.2727272727272725},{"$f":"IF(ISBLANK(B13),C13/C26*H8,IF(ISBLANK(C13),B13/(C26*H8),(C13*B13)/(C26*H8)))","v":0.60606060606060597},"poivrons"]
[null,3,null,"Oignons",{"$f":"IF(ISBLANK(B14),C14/C26,IF(ISBLANK(C14),B14/C26,(C14*B14)/C26))","v":1.3636363636363635},{"$f":"E14*F8","v":3.4090909090909087},{"$f":"IF(ISBLANK(B14),C14/C26*H8,IF(ISBLANK(C14),B14/(C26*H8),(C14*B14)/(C26*H8)))","v":0.90909090909090906},"oignons",null,null,"après avoir saisi le poids de votre garniture ❽"]
[null,null,0.5,"Vin rouge",{"$f":"IF(ISBLANK(B15),C15/C26,IF(ISBLANK(C15),B15/C26,(C15*B15)/C26))","v":0.22727272727272727},{"$f":"E15*F8","v":0.56818181818181812},{"$f":"IF(ISBLANK(B15),C15/C26*H8,IF(ISBLANK(C15),B15/(C26*H8),(C15*B15)/(C26*H8)))","v":0.34090909090909088},"Kg"]
[null,null,0.25,"Fond de veau lié",{"$f":"IF(ISBLANK(B16),C16/C26,IF(ISBLANK(C16),B16/C26,(C16*B16)/C26))","v":0.11363636363636363},{"$f":"E16*F8","v":0.28409090909090906},{"$f":"+IF(ISBLANK(B16),C16/C26*H8,IF(ISBLANK(C16),B16/(C26*H8),(C16*B16)/(C26*H8)))","v":0.17045454545454544},"Kg"]
[null,null,null,"Cumin",{"$f":"IF(ISBLANK(B17),C17/C26,IF(ISBLANK(C17),B17/C26,(C17*B17)/C26))","v":0},{"$f":"E17*F8","v":0},{"$f":"IF(ISBLANK(B17),C17/C26*H8,IF(ISBLANK(C17),B17/(C26*H8),(C17*B17)/(C26*H8)))","v":0},"P.m."]
[null,null,null,"Paprika",{"$f":"IF(ISBLANK(B18),C18/C26,IF(ISBLANK(C18),B18/C26,(C18*B18)/C26))","v":0},{"$f":"E18*F8","v":0},{"$f":"IF(ISBLANK(B18),C18/C26*H8,IF(ISBLANK(C18),B18/(C26*H8),(C18*B18)/(C26*H8)))","v":0},"P.m."]
[null,null,null,"Piment de cayenne",{"$f":"IF(ISBLANK(B19),C19/C26,IF(ISBLANK(C19),B19/C26,(C19*B19)/C26))","v":0},{"$f":"E19*F8","v":0},{"$f":"IF(ISBLANK(B19),C19/C26*H8,IF(ISBLANK(C19),B19/(C26*H8),(C19*B19)/(C26*H8)))","v":0},"P.m."]
[null,null,null,"Sel",{"$f":"IF(ISBLANK(B20),C20/C26,IF(ISBLANK(C20),B20/C26,(C20*B20)/C26))","v":0},{"$f":"E20*F8","v":0},{"$f":"IF(ISBLANK(B20),C20/C26*H8,IF(ISBLANK(C20),B20/(C26*H8),(C20*B20)/(C26*H8)))","v":0},"P.m."]
[null,null,0.2,"Huile d'olives",{"$f":"IF(ISBLANK(B21),C21/C26,IF(ISBLANK(C21),B21/C26,(C21*B21)/C26))","v":9.0909090909090912E-2},{"$f":"E21*F8","v":0.22727272727272729},{"$f":"IF(ISBLANK(B21),C21/C26*H8,IF(ISBLANK(C21),B21/(C26*H8),(C21*B21)/(C26*H8)))","v":0.13636363636363635},"Kg"]
[null,null,0.25,"Haricots rouges",{"$f":"IF(ISBLANK(B22),C22/C26,IF(ISBLANK(C22),B22/C26,(C22*B22)/C26))","v":0.11363636363636363},{"$f":"E22*F8","v":0.28409090909090906},{"$f":"IF(ISBLANK(B22),C22/C26*H8,IF(ISBLANK(C22),B22/(C26*H8),(C22*B22)/(C26*H8)))","v":0.17045454545454544},"Kg"]
[null,null,null,null,{"$f":"IF(ISBLANK(B23),C23/C26,IF(ISBLANK(C23),B23/C26,(C23*B23)/C26))","v":0},{"$f":"E23*F8","v":0},{"$f":"IF(ISBLANK(B23),C23/C26*H8,IF(ISBLANK(C23),B23/(C26*H8),(C23*B23)/(C26*H8)))","v":0}]
[null,null,null,null,{"$f":"IF(ISBLANK(B24),C24/C26,IF(ISBLANK(C24),B24/C26,(C24*B24)/C26))","v":0},{"$f":"E24*F8","v":0},{"$f":"IF(ISBLANK(B24),C24/C26*H8,IF(ISBLANK(C24),B24/(C26*H8),(C24*B24)/(C26*H8)))","v":0}]
[null,null,null,null,{"$f":"IF(ISBLANK(B25),C25/C26,IF(ISBLANK(C25),B25/C26,(C25*B25)/C26))","v":0},{"$f":"E25*F8","v":0},{"$f":"IF(ISBLANK(B25),C25/C26*H8,IF(ISBLANK(C25),B25/(C26*H8),(C25*B25)/(C26*H8)))","v":0}]
[null," total saisi >",{"$f":"IF(ISBLANK(B10),C10,B10*C10)+IF(ISBLANK(B11),C11,B11*C11)+IF(ISBLANK(B12),C12,B12*C12)+IF(ISBLANK(B13),C13,B13*C13)+IF(ISBLANK(B14),C14,B14*C14)+IF(ISBLANK(B15),C15,B15*C15)+IF(ISBLANK(B16),C16,B16*C16)+IF(ISBLANK(B17),C17,B17*C17)+IF(ISBLANK(B18),C18,B18*C18)+IF(ISBLANK(B19),C19,B19*C19)+IF(ISBLANK(B20),C20,B20*C20)+IF(ISBLANK(B21),C21,B21*C21)+IF(ISBLANK(B22),C22,B22*C22)+IF(ISBLANK(B23),C23,B23*C23)+IF(ISBLANK(B24),C24,B24*C24)+IF(ISBLANK(B25),C25,B25*C25)","v":2.2000000000000002},null,0,0]
[null,"⑩ Lien>"]
[null,{"$f":"CELL(\"filename\",#REF!)","v":{"$error":"#REF!"}}]
[null,0,"MÉTHODE D'EXÉCUTION"]
[null,{"$f":"IF(ISBLANK(C30),\"\",LARGE(B29:B29,1)+1)","v":1},"Faire suer les oignons émincés dans l'huile d'olive"]
[null,{"$f":"IF(ISBLANK(C31),\"\",LARGE(B29:B30,1)+1)","v":2},"Ajouter les poivrons taillés en brunoise, couvrir et laisser cuire quelques minutes"]
[null,{"$f":"IF(ISBLANK(C32),\"\",LARGE(B29:B31,1)+1)","v":3},"Saisir le bœuf couper en lanières, assaisonner avec les épices"]
[null,{"$f":"IF(ISBLANK(C33),\"\",LARGE(B29:B32,1)+1)","v":4},"Déglacer avec le vin rouge, ajouter le fond de veau lié et les haricots rouges"]
[null,{"$f":"IF(ISBLANK(C34),\"\",LARGE(B29:B33,1)+1)","v":5},"Laisser mijoter à feu doux"]
[null,{"$f":"IF(ISBLANK(C35),\"\",LARGE(B29:B34,1)+1)","v":6},"Sur le bilig, étaler votre pâte, beurrer et laisser cuire quelques secondes"]
[null,{"$f":"IF(ISBLANK(C36),\"\",LARGE(B29:B35,1)+1)","v":7},"Ajouter au centre votre préparation tex mex"]
[null,{"$f":"IF(ISBLANK(C37),\"\",LARGE(B29:B36,1)+1)","v":8},"Plier, beurrer et servir aussitôt"]
[null,{"$f":"IF(ISBLANK(C38),\"\",LARGE(B29:B37,1)+1)","v":""}]
[null,{"$f":"IF(ISBLANK(C39),\"\",LARGE(B29:B38,1)+1)","v":""}]
[null,{"$f":"IF(ISBLANK(C40),\"\",LARGE(B29:B39,1)+1)","v":""}]
[null,{"$f":"IF(ISBLANK(C41),\"\",LARGE(B29:B40,1)+1)","v":""}]
[null,{"$f":"+IF(ISBLANK(C42),\"\",LARGE(B29:B41,1)+1)","v":""}]
[null,{"$f":"IF(ISBLANK(C43),\"\",LARGE(B29:B42,1)+1)","v":""},null,0]
[null,"Conception 1998 Cuisine centrale de Clamart Joël Leboucher - Adaptation 2009 Cuisine Centrale de Rochefort sur mer mise à jour décembre 2021 sur un document avec code VBA..de D.DEMILLY "]
[null,9.14,9,30,10,9,11,11,"Largeurs de colonnes"]

{"sheet":"mexicaine.2","index":3,"n_rows":53,"n_cols":16,"rows_kept":53,"cut":false,"hidden":false,"merged":[[6,14,9,18],[1,0,2,12],[4,0,5,0],[4,1,5,1],[4,2,5,10],[4,11,5,12],[10,10,11,10],[10,11,11,11],[12,5,12,8],[13,1,13,12],[6,0,52,0],[6,3,6,12],[8,1,9,1],[50,1,50,12],[51,1,51,12],[48,1,48,12],[8,2,9,2],[8,9,9,10],[8,11,9,11],[10,1,11,2],[10,6,10,7]]}
[3,5,11,30,12,11,10,5,11,30,12,11,10]
["Recettes de Jean Marc CATTEAU du centre AFPA de Saint Nazaire "]
[]
[]
["ICI","① ","Galette mexicaine",null,null,null,null,null,null,null,null,"GAL027"]
[]
["CETTE RECETTE EST A CLASSER DANS LA FAMILLE DES GALETTES",null,"② Auteur >","Jean Marc CATTEAU du centre AFPA de Saint Nazaire ",null,null,null,null,null,null,null,null,null,null,"J'ai parfois volontairement augmenté le nombre de portions ❽ pour diminuer  le poids pour 1 portion ⑩ qui ne convenait pas à mes convives"]
[null,null,null,null,null,null,null,null,null,null,null,"⓫"]
[null,10,"❽ Nombre de portions",null,null,null,null,null,null,"A dupliquer pour",null,25]
[]
[null,{"$f":"C50+I50","v":2.2000000000000002},null,null,null,"⑩ poids pour 1 portion",{"$f":"B11/B9","v":0.22000000000000003},null,null,null,"⑫ Poids à fabriquer",{"$f":"G11*L9","v":5.5000000000000009}]
[null,null,null,null,null,null,null,null,null,null,null,null,null,null,"⓫ Combien de Portions voulez vous faire"]
[null,"⑨ Poids total Auteur",null,null,"Recette éditée le",{"$f":"NOW()","v":"2021-12-19T20:48:18.730"},null,null,null,null,"⑬ Contrôle Total saisi",{"$f":"E33+K33","v":5.5000000000000009},null,null,null,"⑫ Poids à fabriquer = ⑩ X ⓫"]
[null,null,null,null,null,null,null,null,null,null,null,null,null,null,null,"⑬ Contrôle Total saisi somme des colonnes ⑦ Quantités"]
[null,null,"Vous pouvez intervenir sur le poids portion ⑩ en modifiant le nombre de portions ❽",null,null,null,null,null,"⓫ Combien de Portions voulez vous faire",null,null,null,{"$f":"LARGE(B16:B31,1)","v":8}]
[null,0,"④ PHASES ESSENTIELLES  DE PROGRESSION",null,null,null,null,null,null,null,null,null,{"$f":"+IF(ISBLANK(L16),\"\",LARGE(M15:M15,1)+1)","v":""}]
[null,{"$f":"IF(ISBLANK(C17),\"\",LARGE(B16:B16,1)+1)","v":""},null,null,null,null,null,null,null,null,null,null,{"$f":"+IF(ISBLANK(L17),\"\",LARGE(M15:M16,1)+1)","v":""}]
[null,{"$f":"+IF(ISBLANK(C18),\"\",LARGE(B16:B17,1)+1)","v":1},"Faire suer les oignons émincés dans l'huile d'olive",null,null,null,null,null,null,null,null,null,{"$f":"+IF(ISBLANK(L18),\"\",LARGE(M15:M17,1)+1)","v":""}]
[null,{"$f":"IF(ISBLANK(C19),\"\",LARGE(B16:B18,1)+1)","v":2},"Ajouter les poivrons taillés en brunoise, couvrir et laisser cuire quelques minutes",null,null,null,null,null,null,null,null,null,{"$f":"+IF(ISBLANK(L19),\"\",LARGE(M15:M18,1)+1)","v":""}]
[null,{"$f":"IF(ISBLANK(C20),\"\",LARGE(B16:B19,1)+1)","v":3},"Saisir le bœuf couper en lanières, assaisonner avec les épices",null,null,null,null,null,null,null,null,null,{"$f":"+IF(ISBLANK(L20),\"\",LARGE(M15:M19,1)+1)","v":""}]
[null,{"$f":"IF(ISBLANK(C21),\"\",LARGE(B16:B20,1)+1)","v":4},"Déglacer avec le vin rouge, ajouter le fond de veau lié et les haricots rouges",null,null,null,null,null,null,null,null,null,{"$f":"+IF(ISBLANK(L21),\"\",LARGE(M15:M20,1)+1)","v":""}]
[null,{"$f":"IF(ISBLANK(C22),\"\",LARGE(B16:B21,1)+1)","v":5},"Laisser mijoter à feu doux",null,null,null,null,null,null,null,null,null,{"$f":"+IF(ISBLANK(L22),\"\",LARGE(M15:M21,1)+1)","v":""}]
[null,{"$f":"IF(ISBLANK(C23),\"\",LARGE(B16:B22,1)+1)","v":6},"Sur le bilig, étaler votre pâte, beurrer et laisser cuire quelques secondes",null,null,null,null,null,null,null,null,null,{"$f":"+IF(ISBLANK(L23),\"\",LARGE(M15:M22,1)+1)","v":""}]
[null,{"$f":"IF(ISBLANK(C24),\"\",LARGE(B16:B23,1)+1)","v":7},"Ajouter au centre votre préparation tex mex",null,null,null,null,null,null,null,null,null,{"$f":"+IF(ISBLANK(L24),\"\",LARGE(M15:M23,1)+1)","v":""}]
[null,{"$f":"IF(ISBLANK(C25),\"\",LARGE(B16:B24,1)+1)","v":8},"Plier, beurrer et servir aussitôt",null,null,null,null,null,null,null,null,null,{"$f":"+IF(ISBLANK(L25),\"\",LARGE(M15:M24,1)+1)","v":""}]
[null,{"$f":"IF(ISBLANK(C26),\"\",LARGE(B16:B25,1)+1)","v":""},null,null,null,null,null,null,null,null,null,null,{"$f":"+IF(ISBLANK(L26),\"\",LARGE(M15:M25,1)+1)","v":""}]
[null,{"$f":"+IF(ISBLANK(C27),\"\",LARGE(B16:B26,1)+1)","v":""},null,null,null,null,null,null,null,null,null,null,{"$f":"+IF(ISBLANK(L27),\"\",LARGE(M15:M26,1)+1)","v":""}]
[null,{"$f":"IF(ISBLANK(C28),\"\",LARGE(B16:B27,1)+1)","v":""},null,null,null,null,null,null,null,null,null,null,{"$f":"+IF(ISBLANK(L28),\"\",LARGE(M15:M27,1)+1)","v":""}]
[null,{"$f":"IF(ISBLANK(C29),\"\",LARGE(B16:B28,1)+1)","v":""},null,null,null,null,null,null,null,null,null,null,{"$f":"+IF(ISBLANK(L29),\"\",LARGE(M15:M28,1)+1)","v":""}]
[null,{"$f":"IF(ISBLANK(C30),\"\",LARGE(B16:B29,1)+1)","v":""},null,null,null,null,null,null,null,null,null,null,{"$f":"+IF(ISBLANK(L30),\"\",LARGE(M15:M29,1)+1)","v":""}]
[null,{"$f":"IF(ISBLANK(C31),\"\",LARGE(B16:B30,1)+1)","v":""},null,null,null,null,null,null,null,null,null,null,{"$f":"+IF(ISBLANK(L31),\"\",LARGE(M15:M30,1)+1)","v":""}]
[null,"❹ Unités","❺  Poids","❸ Ingrédients","⑦ Quantités","%","❻ Quoi","❹ Unités","❺  Poids","❸ Ingrédients","⑦ Quantités","%","❻ Quoi"]
[null,null,null,"S.Total saisi >",{"$f":"IF(ISNUMBER(C34),E34)+IF(ISNUMBER(C35),E35)+IF(ISNUMBER(C36),E36)+IF(ISNUMBER(C37),E37)+IF(ISNUMBER(C38),E38)+IF(ISNUMBER(C39),E39)+IF(ISNUMBER(C40),E40)+IF(ISNUMBER(C41),E41)+IF(ISNUMBER(C42),E42)+IF(ISNUMBER(C43),E43)+IF(ISNUMBER(C44),E44)+IF(ISNUMBER(C45),E45)+IF(ISNUMBER(C46),E46)+IF(ISNUMBER(C47),E47)+IF(ISNUMBER(C48),E48)","v":5.5000000000000009},null,null,null,null,"S.Total saisi >",{"$f":"IF(ISNUMBER(I34),K34)+IF(ISNUMBER(I35),K35)+IF(ISNUMBER(I36),K36)+IF(ISNUMBER(I37),K37)+IF(ISNUMBER(I38),K38)+IF(ISNUMBER(I39),K39)+IF(ISNUMBER(I40),K40)+IF(ISNUMBER(I41),K41)+IF(ISNUMBER(I42),K42)+IF(ISNUMBER(I43),K43)+IF(ISNUMBER(I44),K44)+IF(ISNUMBER(I45),K45)+IF(ISNUMBER(I46),K46)+IF(ISNUMBER(I47),K47)+IF(ISNUMBER(I48),K48)","v":0}]
[null,null,1,"Viande de bœuf",{"$f":"IF(ISBLANK(B34),C34/B11*L11,IF(ISBLANK(C34),B34/B11*L11,(B34*C34)/B11*L11))","v":2.5000000000000004},{"$f":"IF(ISNUMBER(C34),E34/L13,\"\")","v":0.45454545454545453},"Kg",null,null,null,{"$f":"IF(ISBLANK(H34),I34/B11*L11,IF(ISBLANK(I34),H34/B11*L11,(H34*I34)/B11*L11))","v":0},{"$f":"IF(ISNUMBER(I34),K34/L13,\"\")","v":""}]
[null,2,null,"Poivron rouge",{"$f":"IF(ISBLANK(B35),C35/B11*L11,IF(ISBLANK(C35),B35/B11*L11,(B35*C35)/B11*L11))","v":5.0000000000000009},{"$f":"IF(ISNUMBER(C35),E35/L13,\"\")","v":""},"poivrons",null,null,null,{"$f":"IF(ISBLANK(H35),I35/B11*L11,IF(ISBLANK(I35),H35/B11*L11,(H35*I35)/B11*L11))","v":0},{"$f":"IF(ISNUMBER(I35),K35/L13,\"\")","v":""}]
[null,2,null,"Poivron Vert",{"$f":"IF(ISBLANK(B36),C36/B11*L11,IF(ISBLANK(C36),B36/B11*L11,(B36*C36)/B11*L11))","v":5.0000000000000009},{"$f":"IF(ISNUMBER(C36),E36/L13,\"\")","v":""},"poivrons",null,null,null,{"$f":"IF(ISBLANK(H36),I36/B11*L11,IF(ISBLANK(I36),H36/B11*L11,(H36*I36)/B11*L11))","v":0},{"$f":"IF(ISNUMBER(I36),K36/L13,\"\")","v":""}]
[null,2,null,"Poivron Jaune",{"$f":"IF(ISBLANK(B37),C37/B11*L11,IF(ISBLANK(C37),B37/B11*L11,(B37*C37)/B11*L11))","v":5.0000000000000009},{"$f":"IF(ISNUMBER(C37),E37/L13,\"\")","v":""},"poivrons",null,null,null,{"$f":"IF(ISBLANK(H37),I37/B11*L11,IF(ISBLANK(I37),H37/B11*L11,(H37*I37)/B11*L11))","v":0},{"$f":"IF(ISNUMBER(I37),K37/L13,\"\")","v":""}]
[null,3,null,"Oignons",{"$f":"IF(ISBLANK(B38),C38/B11*L11,IF(ISBLANK(C38),B38/B11*L11,(B38*C38)/B11*L11))","v":7.5000000000000009},{"$f":"IF(ISNUMBER(C38),E38/L13,\"\")","v":""},"oignons",null,null,null,{"$f":"IF(ISBLANK(H38),I38/B11*L11,IF(ISBLANK(I38),H38/B11*L11,(H38*I38)/B11*L11))","v":0},{"$f":"IF(ISNUMBER(I38),K38/L13,\"\")","v":""}]
[null,null,0.5,"Vin rouge",{"$f":"IF(ISBLANK(B39),C39/B11*L11,IF(ISBLANK(C39),B39/B11*L11,(B39*C39)/B11*L11))","v":1.2500000000000002},{"$f":"IF(ISNUMBER(C39),E39/L13,\"\")","v":0.22727272727272727},"Kg",null,null,null,{"$f":"IF(ISBLANK(H39),I39/B11*L11,IF(ISBLANK(I39),H39/B11*L11,(H39*I39)/B11*L11))","v":0},{"$f":"IF(ISNUMBER(I39),K39/L13,\"\")","v":""}]
[null,null,0.25,"Fond de veau lié",{"$f":"IF(ISBLANK(B40),C40/B11*L11,IF(ISBLANK(C40),B40/B11*L11,(B40*C40)/B11*L11))","v":0.62500000000000011},{"$f":"IF(ISNUMBER(C40),E40/L13,\"\")","v":0.11363636363636363},"Kg",null,null,null,{"$f":"IF(ISBLANK(H40),I40/B11*L11,IF(ISBLANK(I40),H40/B11*L11,(H40*I40)/B11*L11))","v":0},{"$f":"IF(ISNUMBER(I40),K40/L13,\"\")","v":""}]
[null,null,null,"Cumin",{"$f":"IF(ISBLANK(B41),C41/B11*L11,IF(ISBLANK(C41),B41/B11*L11,(B41*C41)/B11*L11))","v":0},{"$f":"IF(ISNUMBER(C41),E41/L13,\"\")","v":""},"P.m.",null,null,null,{"$f":"IF(ISBLANK(H41),I41/B11*L11,IF(ISBLANK(I41),H41/B11*L11,(H41*I41)/B11*L11))","v":0},{"$f":"IF(ISNUMBER(I41),K41/L13,\"\")","v":""}]
[null,null,null,"Paprika",{"$f":"IF(ISBLANK(B42),C42/B11*L11,IF(ISBLANK(C42),B42/B11*L11,(B42*C42)/B11*L11))","v":0},{"$f":"IF(ISNUMBER(C42),E42/L13,\"\")","v":""},"P.m.",null,null,null,{"$f":"IF(ISBLANK(H42),I42/B11*L11,IF(ISBLANK(I42),H42/B11*L11,(H42*I42)/B11*L11))","v":0},{"$f":"IF(ISNUMBER(I42),K42/L13,\"\")","v":""}]
[null,null,null,"Piment de cayenne",{"$f":"IF(ISBLANK(B43),C43/B11*L11,IF(ISBLANK(C43),B43/B11*L11,(B43*C43)/B11*L11))","v":0},{"$f":"IF(ISNUMBER(C43),E43/L13,\"\")","v":""},"P.m.",null,null,null,{"$f":"IF(ISBLANK(H43),I43/B11*L11,IF(ISBLANK(I43),H43/B11*L11,(H43*I43)/B11*L11))","v":0},{"$f":"IF(ISNUMBER(I43),K43/L13,\"\")","v":""}]
[null,null,null,"Sel",{"$f":"IF(ISBLANK(B44),C44/B11*L11,IF(ISBLANK(C44),B44/B11*L11,(B44*C44)/B11*L11))","v":0},{"$f":"IF(ISNUMBER(C44),E44/L13,\"\")","v":""},"P.m.",null,null,null,{"$f":"IF(ISBLANK(H44),I44/B11*L11,IF(ISBLANK(I44),H44/B11*L11,(H44*I44)/B11*L11))","v":0},{"$f":"IF(ISNUMBER(I44),K44/L13,\"\")","v":""}]
[null,null,0.2,"Huile d'olives",{"$f":"IF(ISBLANK(B45),C45/B11*L11,IF(ISBLANK(C45),B45/B11*L11,(B45*C45)/B11*L11))","v":0.50000000000000011},{"$f":"IF(ISNUMBER(C45),E45/L13,\"\")","v":9.0909090909090912E-2},"Kg",null,null,null,{"$f":"IF(ISBLANK(H45),I45/B11*L11,IF(ISBLANK(I45),H45/B11*L11,(H45*I45)/B11*L11))","v":0},{"$f":"IF(ISNUMBER(I45),K45/L13,\"\")","v":""}]
[null,null,0.25,"Haricots rouges",{"$f":"IF(ISBLANK(B46),C46/B11*L11,IF(ISBLANK(C46),B46/B11*L11,(B46*C46)/B11*L11))","v":0.62500000000000011},{"$f":"IF(ISNUMBER(C46),E46/L13,\"\")","v":0.11363636363636363},"Kg",null,null,null,{"$f":"IF(ISBLANK(H46),I46/B11*L11,IF(ISBLANK(I46),H46/B11*L11,(H46*I46)/B11*L11))","v":0},{"$f":"IF(ISNUMBER(I46),K46/L13,\"\")","v":""}]
[null,null,null,null,{"$f":"IF(ISBLANK(B47),C47/B11*L11,IF(ISBLANK(C47),B47/B11*L11,(B47*C47)/B11*L11))","v":0},{"$f":"IF(ISNUMBER(C47),E47/L13,\"\")","v":""},null,null,null,null,{"$f":"IF(ISBLANK(H47),I47/B11*L11,IF(ISBLANK(I47),H47/B11*L11,(H47*I47)/B11*L11))","v":0},{"$f":"IF(ISNUMBER(I47),K47/L13,\"\")","v":""}]
[null,null,null,null,{"$f":"IF(ISBLANK(B48),C48/B11*L11,IF(ISBLANK(C48),B48/B11*L11,(B48*C48)/B11*L11))","v":0},{"$f":"IF(ISNUMBER(C48),E48/L13,\"\")","v":""},null,null,null,null,{"$f":"IF(ISBLANK(H48),I48/B11*L11,IF(ISBLANK(I48),H48/B11*L11,(H48*I48)/B11*L11))","v":0},{"$f":"IF(ISNUMBER(I48),K48/L13,\"\")","v":""}]
[]
[null,null,{"$f":"IF(ISBLANK(B34),C34,B34*C34)+IF(ISBLANK(B35),C35,B35*C35)+IF(ISBLANK(B36),C36,B36*C36)+IF(ISBLANK(B37),C37,B37*C37)+IF(ISBLANK(B38),C38,B38*C38)+IF(ISBLANK(B39),C39,B39*C39)+IF(ISBLANK(B40),C40,B40*C40)+IF(ISBLANK(B41),C41,B41*C41)+IF(ISBLANK(B42),C42,B42*C42)+IF(ISBLANK(B43),C43,B43*C43)+IF(ISBLANK(B44),C44,B44*C44)+IF(ISBLANK(B45),C45,B45*C45)+IF(ISBLANK(B46),C46,B46*C46)+IF(ISBLANK(B47),C47,B47*C47)+IF(ISBLANK(B48),C48,B48*C48)","v":2.2000000000000002},"< S.total Auteur  - S.total saisi >",{"$f":"IF(ISNUMBER(C34),E34)+IF(ISNUMBER(C35),E35)+IF(ISNUMBER(C36),E36)+IF(ISNUMBER(C37),E37)+IF(ISNUMBER(C38),E38)+IF(ISNUMBER(C39),E39)+IF(ISNUMBER(C40),E40)+IF(ISNUMBER(C41),E41)+IF(ISNUMBER(C42),E42)+IF(ISNUMBER(C43),E43)+IF(ISNUMBER(C44),E44)+IF(ISNUMBER(C45),E45)+IF(ISNUMBER(C46),E46)+IF(ISNUMBER(C47),E47)+IF(ISNUMBER(C48),E48)","v":5.5000000000000009},null,null,"S.total Auteur >",{"$f":"IF(ISBLANK(H34),I34,H34*I34)+IF(ISBLANK(H35),I35,H35*I35)+IF(ISBLANK(H36),I36,H36*I36)+IF(ISBLANK(H37),I37,H37*I37)+IF(ISBLANK(H38),I38,H38*I38)+IF(ISBLANK(H39),I39,H39*I39)+IF(ISBLANK(H40),I40,H40*I40)+IF(ISBLANK(H41),I41,H41*I41)+IF(ISBLANK(H42),I42,H42*I42)+IF(ISBLANK(H43),I43,H43*I43)+IF(ISBLANK(H44),I44,H44*I44)+IF(ISBLANK(H45),I45,H45*I45)+IF(ISBLANK(H46),I46,H46*I46)+IF(ISBLANK(H47),I47,H47*I47)+IF(ISBLANK(H48),I48,H48*I48)+IF(ISBLANK(H49),I49,H49*I49)","v":0},null,"Total Auteur >",{"$f":"I50+C50","v":2.2000000000000002}]
[null,{"$f":"CELL(\"nomfichier\")","v":"E:\\0-UPRT\\1-UPRT.FR-SITE-WEB\\re-recettes-jean-marc-catteau\\re-catteau-galettes\\[PC-galette-garniture-mexicaine.xls]original"}]
[null,"Adaptation : Joël Leboucher..UPRT \"Union des Personnels de la Restauration Territoriale\"  membre du réseau RESTAU'CO"]
[null,5,11,30,12,11,10,5,11,30,12,11,10,"< Largeurs de colonnes"]

{"sheet":"original","index":4,"n_rows":59,"n_cols":8,"rows_kept":59,"cut":false,"hidden":false,"merged":[[53,0,53,5],[47,0,47,5],[48,0,48,5],[49,0,49,5],[50,0,50,5],[51,0,51,5],[52,0,52,5],[41,0,41,5],[42,0,42,5],[43,0,43,5],[44,0,44,5],[45,0,45,5],[46,0,46,5],[35,0,35,5],[36,0,36,5],[37,0,37,5],[38,0,38,5],[39,0,39,5],[40,0,40,5],[0,0,0,4],[2,0,2,1],[2,3,2,4],[4,0,4,1],[4,3,4,4],[33,0,34,5]]}
["Galette mexicaine",null,null,null,null,26]
[]
["Nombre de portions :",null,10,"P.R. portion"]
[null,null,null,null,null,null,null,"Photographie"]
["P. Vente unitaire T.T.C.",null,null,"%"]
[]
["Matière d'œuvre","Quant.","U","Px U HT","Px T HT","%"]
["Viande de bœuf",1,"Kg"]
["Poivron rouge",2,"Pièce"]
["Poivron Vert",2,"Pièce"]
["Poivron Jaune",2,"Pièce"]
["Oignons",3,"Pièce"]
["Vin rouge",0.5,"Litre"]
["Fond de veau lié",0.25,"Litre"]
["Cumin","P.m."]
["Paprika","P.m."]
["Piment de cayenne","P.m."]
["Sel","P.m."]
["Huile d'olives",0.2,"Litre",null,null,null,null,"TECHNIQUES MISES EN"]
["Haricots rouges",0.25,"Kg",null,null,null,null,"ŒUVRE"]
[]
[]
[]
[]
[]
[]
[]
[]
[]
[]
[]
[]
[]
["METHODE D'EXECUTION"]
[null,null,null,null,null,null,null,"PLATS SIMILAIRES"]
["1) Faire suer les oignons émincés dans l'huile d'olive"]
["2) Ajouter les poivrons taillés en brunoise, couvrir et laisser cuire quelques minutes"]
["3) Saisir le bœuf couper en lanières, assaisonner avec les épices"]
["4) Déglacer avec le vin rouge, ajouter le fond de veau lié et les haricots rouges"]
["5) Laisser mijoter à feu doux"]
["6) Sur le bilig, étaler votre pâte, beurrer et laisser cuire quelques secondes"]
["7) Ajouter au centre votre préparation tex mex"]
["8) Plier, beurrer et servir aussitôt"]
[]
[null,null,null,null,null,null,null,"LEG. CONSEILLES"]
[]
[]
[]
[]
[]
[]
[]
[]
[]
[]
["Bonne utilisation"]
["Joel Leboucher Cuisine Centrale de Rochefort sur mer"]
["Centre AFPA Saint Nazaire"]
["Centre AFPA  Rochefort sur Mer"]

{"sheet":"Comment copier-coller","index":5,"n_rows":64,"n_cols":11,"rows_kept":64,"cut":false,"hidden":false,"merged":[]}
[]
[]
[null,null,"Si vous êtes dans un classeur xlsm c'est que certaines feuilles contiennent du code VBA  dans Worksheet"]
[null,null,"et si vous voulez coller quoi que ce soit dans la feuille vous devez procéder comme suit : "]
[null,null,null,"1 clic droit sur le ruban en haut de l'écran (personnaliser le ruban)"]
[]
[]
[]
[]
[]
[]
[]
[null,null,null,"2 cocher Développeur OK"]
[null,null,null,"3 cliquer sur le logo Mode de création"]
[]
[]
[]
[]
[null,null,null,"maintenant vous pouvez copier coller ce que vous voulez"]
[null,null,null,"ensuite décliquez sur le logo et décochez le développeur si vous n'en avez plus besoin"]
[]
[null,null,null,null,null,null,null,null,null,null,{"$f":"\"Page \"&_xlfn.SHEET()&\" sur \"&_xlfn.SHEETS()","v":"Page 6 sur 11"}]
[]
[]
[]
[]
[]
[]
[]
[]
[]
[]
[]
[]
[]
[]
[]
[]
[]
[]
[]
[]
[]
[]
[]
[]
[]
[null,null,"Pour coller sur une feuille contenant du code VBA"]
[]
[null,null,"Mettez en surbrillance la ligne et la colonne actives dans Excel"]
[]
[null,null,"Voici les étapes pour mettre en surbrillance la ligne et la colonne actives lors de la sélection :"]
[]
[null,null,"Sélectionnez l'ensemble de données dans lequel vous mettez en surbrillance la ligne/colonne active."]
[null,null,"Allez dans l'onglet Accueil."]
[null,null,"Cliquez sur Mise en forme conditionnelle, puis sur Nouvelle règle."]
[null,null,"Dans la boîte de dialogue Nouvelle règle de formatage, sélectionnez \"Utiliser une formule pour déterminer les cellules à formater\"."]
[null,null,"Dans le champ Description de la règle, saisissez la formule : =OR(CELL(“col”)=COLUMN(),CELL(“row”)=ROW())"]
[null,null,"Cliquez sur le bouton Format et spécifiez le formatage (la couleur dans laquelle vous souhaitez mettre la ligne/colonne en surbrillance)."]
[null,null,"Cliquez sur OK."]
[]
[null,null,"Les étapes ci-dessus ont pris soin de mettre en surbrillance la ligne active et la colonne active (avec la même couleur) chaque fois qu'il y a un événement de changement de sélection ."]
[]
[null,null,"Cependant, pour que cela fonctionne, vous devez placer un simple code VBA dans le worksheet"]

{"sheet":"Code VBA","index":6,"n_rows":25,"n_cols":15,"rows_kept":25,"cut":false,"hidden":false,"merged":[]}
[]
[]
[null,null,"Mettre en surbrillance la ligne et la colonne actives dans Excel"]
[null,null,"Comment faire :"]
[]
[null,null,"Première étape"]
[null,null,"cliquez sur l'onglet de la page "]
[null,null,"clic droit Visualiser le code et coller les 3 lignes suivantes dans Worksheet"]
[null,null,"Private Sub Worksheet_SelectionChange(ByVal Target As Range)"]
[null,null,"  Calculate"]
[null,null,"End Sub"]
[]
[null,null,"pour les couleurs c'est de la mise en forme conditionnelle avec cette formule :"]
[null,null,"=OU(LIGNE()=CELLULE(\"ligne\");COLONNE()=CELLULE(\"colonne\"))"]
[]
[null,null,"Comment faire :"]
[]
[null,null,"Sélectionnez l'ensemble de données dans lequel vous mettez en surbrillance la ligne/colonne active."]
[null,null,"Allez dans l'onglet Accueil."]
[null,null,"Cliquez sur Mise en forme conditionnelle, puis sur Nouvelle règle."]
[null,null,"Dans la boîte de dialogue Nouvelle règle de formatage, sélectionnez \"Utiliser une formule pour déterminer les cellules à formater\"."]
[null,null,"Dans le champ Description de la règle, saisissez la formule : '       =OU(LIGNE()=CELLULE(\"ligne\");COLONNE()=CELLULE(\"colonne\"))"]
[null,null,"Cliquez sur le bouton Format et spécifiez le formatage (la couleur dans laquelle vous souhaitez mettre la ligne/colonne en surbrillance)."]
[null,null,"Cliquez sur OK."]
[null,null,null,null,null,null,null,null,null,null,null,null,null,null,{"$f":"\"Page \"&_xlfn.SHEET()&\" sur \"&_xlfn.SHEETS()","v":"Page 7 sur 11"}]

{"sheet":"qu'est-ce qu'un \"Postit\"","index":7,"n_rows":84,"n_cols":27,"rows_kept":84,"cut":false,"hidden":false,"merged":[[23,2,26,2],[23,19,23,20],[1,0,2,16],[6,18,6,21],[14,19,14,21],[15,19,15,21],[21,19,21,20],[55,18,56,21],[59,19,62,24],[75,18,75,21],[33,19,34,25],[37,22,38,22],[37,23,38,23],[42,19,43,20],[45,19,45,21],[45,22,45,25]]}
[3,{"$f":"CELL(\"largeur\",B1)","v":11},11,11,11,11,11,11,11,11,11,11,11,11,11,11,{"$f":"CELL(\"largeur\",Q1)","v":11},"<fonction   CELLULE(\"largeur\";Q1)"]
["Mise à jour du 2 Décembre 2021"]
[]
[null,null,null,null,null,null,null,null,null,null,null,null,null,null,null,{"$f":"\"Page \"&_xlfn.SHEET()&\" sur \"&_xlfn.SHEETS()","v":"Page 8 sur 11"}]
[]
[]
[null,null,"QU'EST-CE QU'UNE FICHE DE FABRICATION  DE TYPE \"POSTIT\"©",null,null,null,null,null,null,null,null,null,null,null,null,null,null,null,"SERVICE AU POIDS Explication"]
[null,null,"Tel un Postit © c'est une fiche Excel autonome facilement copiable et transposable dans n'importe quelle feuille"]
[null,null,"Lien >","Mettez la collaboration au coeur de votre environnement de travail",null,null,null,null,null,null,null,null,null,null,null,null,null,null,null,"Cela demande un peu plus d'attention que pour le service à la portion"]
[null,null,"\"POSTIT\"   QUEL INTÉRÊT ",null,null,null,null,null,null,null,null,null,null,null,null,null,null,null,null,"les poids - les cuillères à café le nombre de pièces : tout est mélangé"]
[null,null,"Chaque postit étant indépendant vous pouvez  le copier et le coller dans n'importe quelle feuille Excel ",null,null,null,null,null,null,null,null,null,null,null,null,null,null,null,null,"si bien que vous obtenez un poids total ④ complètement faux"]
[null,null,"pour vous constituer un répertoire",null,null,null,null,null,null,null,null,null,null,null,null,null,null,null,null,"c'est pourquoi ② vous avez 2 colonnes 1 pour les (unités ou quantités)  l'autre pour les poids"]
[null,null,"Vous pouvez assembler plusieurs postit(s) sur une même feuille pour créer votre recette"]
[null,null,"Exemple : pour une recette de gateau…allez chercher dans vos répertoires la recette du biscuit qui vous convient",null,null,null,null,null,null,null,null,null,null,null,null,null,null,null,null,"Formule :"]
[null,null," le mieux ajoutez une ou deux crèmes qui vont bien et terminez en ajoutant un postit éléments de décor",null,null,null,null,null,null,null,null,null,null,null,null,null,null,null,null,"Quantité de chaque produit  ",null,null,"X par ce que vous voulez dupliquer ⑥"]
[null,null,"Idem pour des recettes de cuisine faites des répertoires :",null,null,null,null,null,null,null,null,null,null,null,null,null,null,null,null,"❺ Référence Auteur"]
[null,null,"de garnitures aromatiques de cuisson"]
[null,null,"de sauces diverses et variées",null,null,null,null,null,null,null,null,null,null,null,null,null,null,null,null,"Convertissez tout de suite les volumes en poids sur la base de 1L = 1Kg "]
[null,null," de garnitures de finitions ou de décor",null,null,null,null,null,null,null,null,null,null,null,null,null,null,null,null,"¼ de botte de fines herbes -  allez expliquer cela à Excel (0.25)"]
[null,null,"Faites \"votre marché\" dans vos répertoires et assemblez le tout sur une même feuille Excel",null,null,null,null,null,null,null,null,null,null,null,null,null,null,null,null,"½ citron 0.5     ¾ de litre 0.75"]
[null,null,"comment copier un \"Postit\" : cliquez sur la cellule ICI dans l'angle gauche puis déportez la souris vers la droit le postit ",null,null,null,null,null,null,null,null,null,null,null,null,null,null,null,null,"Exemple"]
[null,null,"est sélectionné  il ne vous reste plus qu'a le copier et le coller dans votre répertoire",null,null,null,null,null,null,null,null,null,null,null,null,null,null,null,null,"Qt. Auteur "]
[null,null,null,null,null,null,null,null,null,null,null,null,null,null,"ne sont \"postit\" que les fiches avec cellule ","ICI","ICI",null,null,"Unités","Poids ",null,null,"Denrées",null,"Quoi"]
[null,null,"Liens >","Comment créer une Arborescence de dossiers",null,null,null,null,null,null,null,null,null,null,null,null,null,null,null,"②",null,null,null,"①",null,"③"]
[null,null,null,"La méthode simple pour classer ses dossiers, fichiers et documents sur son ordinateur",null,null,null,null,null,null,null,null,null,null,null,null,null,null,null,0.25,null,null,null,"¼ de botte de fines herbe",{"$f":"IF(ISBLANK(T25),U25,IF(ISBLANK(U25),T25,T25*U25))","v":0.25},"bottes"]
[null,null,null,"Organiser vos documents (nommer, stocker, classer…)",null,null,null,null,null,null,null,null,null,null,null,null,null,null,null,0.5,null,null,null,"½ citron",{"$f":"IF(ISBLANK(T26),U26,IF(ISBLANK(U26),T26,T26*U26))","v":0.5},"citrons"]
[null,null,null,"Windows 10 : 15 astuces pour maîtriser l’explorateur de fichiers comme un pro",null,null,null,null,null,null,null,null,null,null,null,null,null,null,null,0.75,null,null,null,"¾ de litre",0.75,"litres"]
[null,null,null,null,null,null,null,null,null,null,null,null,null,null,null,null,null,null,null,10,null,null,null,"jaunes d'œufs",10,"jaunes"]
[null,null,"Bonne utilisation. A vous de faire évoluer ces documents…et n'hésitez pas à tramsmettre vos savoirs faire……",null,null,null,null,null,null,null,null,null,null,null,null,null,null,null,null,15,0.03,null,null,"blancs d'œufs de 30g",0.44999999999999996,"kg"]
[null,null,"pour aider les jeunes en formation ou donner des idées à vos collègues des métiers de bouche",null,null,null,null,null,null,null,null,null,null,null,null,null,null,null,null,null,0.2,null,null,"OU jaunes d'œufs liquides",0.2,"kg"]
[null,null,"Joël Leboucher",null,null,null,null,null,null,null,null,null,null,null,null,null,null,null,null,null,0.125,null,null,"farine",{"$f":"IF(ISBLANK(T31),U31,IF(ISBLANK(U31),T31,T31*U31))","v":0.125},"kg"]
[null,null,"Adaptation 2016 : Joël Leboucher..UPRT \"Union des Personnels de la Restauration Territoriale\"  membre du réseau RESTAU'CO"]
[null,null,null,null,null,null,null,null,null,null,null,null,null,null,null,null,null,null,null,"❺ Référence Auteur "]
[null,null,null,null,null,null,null,null,null,null,null,null,null,null,null,null,null,null,null,"soit vous saisisez le total ④ dans la cellule ❺ ou mettez les 2 cellules en liaison en liaison  ="]
[]
[null,null,null,null,null,null,null,null,null,null,null,null,null,null,null,null,null,null,null,"soit vous faites le choix de dupliquer la recette à partir d'une denrée Exemple farine"]
[null,null,null,null,null,null,null,null,null,null,null,null,null,null,null,null,null,null,null,"❺ Référence Auteur ",null,null,"⑤ Dupliqué pour"]
[null,null,null,null,null,null,null,null,null,null,null,null,null,null,null,null,null,null,null,0.125,"Kg de farine",null,1,{"$f":"U38","v":"Kg de farine"}]
[]
[null,null,null,null,null,null,null,null,null,null,null,null,null,null,null,null,null,null,null,"OU Autre portions.couverts.plaques etc"]
[]
[null,null,null,null,null,null,null,null,null,null,null,null,null,null,null,null,null,null,null,"Si vous supprimez des lignes inutiles"]
[null,null,null,null,null,null,null,null,null,null,null,null,null,null,null,null,null,null,null,"ne pas supprimer ces 4 lignes",null,"❹ >","SI(ESTVIDE(#REF!);#REF!;#REF!*#REF!)"]
[null,null,null,null,null,null,null,null,null,null,null,null,null,null,null,null,null,null,null,null,null,"Supprimez les erreurs #REF! dans la barre de formule"]
[]
[null,null,null,null,null,null,null,null,null,null,null,null,null,null,null,null,null,null,null,"saisissez le NOM DE LA RECETTE",null,null,"ICI EGALEMENT"]
[null,null,null,null,null,null,null,null,null,null,null,null,null,null,null,null,null,null,null,null,null,"Traçabilité","Auteur >"]
[null,null,null,null,null,null,null,null,null,null,null,null,null,null,null,null,null,null,null,null,null,"si vous utilisez cette recette pour une","< recette pour CHARLOTTE POIRE CARAMEL"]
[null,null,null,null,null,null,null,null,null,null,null,null,null,null,null,null,null,null,null,null,null,"autre utilisation vous aurez une traçabilité"]
[null,null,null,null,null,null,null,null,null,null,null,null,null,null,null,null,null,null,null,null,null,null,"Préparation >",2,"Cuisson >",2]
[null,null,null,null,null,null,null,null,null,null,null,null,null,null,null,null,null,null,null,null,null,null,null,"saissez un nombre la cellule est formatée pour ajouter mn"]
[]
[null,null,null,null,null,null,null,null,null,null,null,null,null,null,null,null,null,null,"Ce modèle de fiche s'utilise comme un \"Postit\""]
[null,null,null,null,null,null,null,null,null,null,null,null,null,null,null,null,null,null,"Exemples que des recettes sans procédures - des fiches avec procédures en dessous etc..soyez imaginatif"]
[]
[null,null,null,null,null,null,null,null,null,null,null,null,null,null,null,null,null,null,"Lien internet > vous pouvez coller des liens internet pour retrouver une recette sur le web",null,null,null,"Saisissez votre texte faire court et concis"]
[null,null,null,null,null,null,null,null,null,null,null,null,null,null,null,null,null,null,null,null,null,null,"1 verbe = 1 action"]
[]
[]
[null,null,null,null,null,null,null,null,null,null,null,null,null,null,null,null,null,null,null,"Recette et progression peuvent être utilisés comme \"postits\" indépendants.Vous pouvez donc les copier/déplacer comme vous le voulez"]
[]
[]
[]
[]
[null,null,null,null,null,null,null,null,null,null,null,null,null,null,null,null,null,null,null,"Option d'affichage : décocher : Afficher un zéro dans les cellules qui ont une valeur nulle"]
[]
[]
[]
[]
[]
[]
[]
[]
[]
[]
[null,null,null,null,null,null,null,null,null,null,null,null,null,null,null,null,null,null,"SERVICE A LA PORTION"]
[]
[null,null,null,null,null,null,null,null,null,null,null,null,null,null,null,null,null,null,null,"Vous pouvez détourner et simplifier l'utilisation de cette fiche "]
[null,null,null,null,null,null,null,null,null,null,null,null,null,null,null,null,null,null,null,"en cellule ❺ saisissez un nombre de portions - de plaques -de louches"]
[null,null,null,null,null,null,null,null,null,null,null,null,null,null,null,null,null,null,null," ou tout ce que vous voulez"]
[null,null,null,null,null,null,null,null,null,null,null,null,null,null,null,null,null,null,null,"en cellule ⑥ saisissez ce que vous voulez obtenir"]
[]
[null,null,null,null,null,null,null,null,null,null,null,null,null,null,null,null,null,null,12,12,12,12,12,12,12,12,"FIN"]
[null,null,null,null,null,null,null,null,null,null,null,null,null,null,null,null,null,null,null,null,null,null,null,null,null,null,{"$f":"ADDRESS(ROW(),COLUMN(),4)","v":"AA84"}]

{"sheet":"Vocabulaire","index":8,"n_rows":131,"n_cols":49,"rows_kept":131,"cut":false,"hidden":false,"merged":[[18,48,19,49],[1,22,1,38],[2,1,2,9],[2,11,2,19],[2,43,2,45],[2,47,2,49],[3,43,3,45],[3,47,3,49],[4,44,4,45],[4,48,5,49],[10,48,11,49],[14,48,15,49],[16,48,17,49],[22,44,23,45],[24,44,25,45],[26,47,27,47],[26,48,27,49],[30,47,31,47],[30,48,31,49],[78,48,79,49],[35,48,36,49],[41,48,42,49],[47,48,48,49],[49,47,50,47],[49,48,50,49],[51,47,52,47],[51,48,52,49],[53,48,54,49],[62,47,63,47],[62,48,63,49],[73,47,74,47],[73,48,74,49],[101,48,101,49],[82,48,83,49],[84,48,85,49],[93,48,94,49],[95,48,97,49],[99,48,99,49],[100,48,100,49]]}
[null,"Mise à jour du 14 Décembre 2021",null,null,null,null,null,null,{"$f":"\"Page \"&_xlfn.SHEET()&\" sur \"&_xlfn.SHEETS()","v":"Page 9 sur 11"}]
[null,null,null,null,null,null,null,null,null,null,null,null,null,null,null,null,null,null,null,null,null,null,"VOCABULAIRE PROFESSIONNEL    un verbe…une action",null,null,null,null,null,null,null,null,null,null,null,null,null,null,null,null,null,null,"Le vocabulaire professionnel en pâtisserie"]
[null,"VOCABULAIRE PROFESSIONNEL \" CUISINE DE COMPOSITION\" ",null,null,null,null,null,null,null,null,null,"VOCABULAIRE PROFESSIONNEL \"La CUISINE DE REFERENCE\" Michel MAINCENT",null,null,null,null,null,null,null,null,null,null,"En complément vous avez des liens en bas de page",null,null,null,null,null,null,null,null,null,null,"Quelques verbes d'action complémentaires",null,null,null,null,null,null,null,null,null,"faire court …1 verbe = 1 action",null,null,null,"EXEMPLE UN PEU PLUS LONG :"]
[null,null,"A",null,"E",null,"P",null,"R",null,null,null,"A",null,"D",null,"H",null,"R",null,null,null,"A",null,"D",null,"F",null,"M",null,"R",null,"T",1,"accomplir",null,{"$f":"AH59+1","v":57},"générer",null,null,"Lien >","http://www.juliemyrtille.com/lexique_du_patissier/",null,"PHASES ESSENTIELLES  DE PROGRESSION",null,null,null,"PHASES ESSENTIELLES  DE PROGRESSION"]
[null,1,"Abaisser la temp. à coeur",{"$f":"B22+1","v":16},"Egrener",{"$f":"D26+1","v":32},"Parfumer",{"$f":"F24+1","v":51},"Respecter le délai de 2 H",null,null,1,"Abaisser",{"$f":"L52+1","v":46},"Dépouiller",{"$f":"N52+1","v":91},"Habiller",{"$f":"P52+1","v":130},"Réduire",null,null,1,"Abaisser",{"$f":"V62+1","v":56},"Dauber",{"$f":"X63+1","v":113},"Façonner",{"$f":"Z62+1","v":163},"Macérer",{"$f":"AB62+1","v":217},"Rabattre",{"$f":"AD57+1","v":268},"Tabler",{"$f":"LARGE(AH4:AH4,1)+1","v":2},"acheter",null,{"$f":"LARGE(AK4:AK4,1)+1","v":58},"gérer",null,null,null,"A",null,null,"Exemple pour un filet de sole Duglére",null,null,null,"Exemple pour une brandade de morue Bénédictine"]
[null,{"$f":"LARGE(B5:B5,1)+1","v":2},"Accompagner",{"$f":"LARGE(D5:D5,1)+1","v":17},"Eliminer",{"$f":"LARGE(F5:F5,1)+1","v":33},"Parsemer",{"$f":"LARGE(H5:H5,1)+1","v":52},"Retirer",null,null,{"$f":"LARGE(L5:L5,1)+1","v":2},"Abricoter",{"$f":"LARGE(N5:N5,1)+1","v":47},"Dérober",{"$f":"LARGE(P5:P5,1)+1","v":92},"Hacher",{"$f":"LARGE(R5:R5,1)+1","v":131},"Relever",null,null,{"$f":"LARGE(V5:V5,1)+1","v":2},"Abaisser la temp. à coeur",{"$f":"LARGE(X5:X5,1)+1","v":57},"Décanter",{"$f":"LARGE(Z5:Z5,1)+1","v":114},"Faire bouillir",{"$f":"LARGE(AB5:AB5,1)+1","v":164},"Maintenir en temp. sup à 63°",{"$f":"LARGE(AD5:AD5,1)+1","v":218},"Raccourcir",{"$f":"LARGE(AF5:AF5,1)+1","v":269},"Tailler",{"$f":"LARGE(AH4:AH5,1)+1","v":3},"achever",null,{"$f":"LARGE(AK4:AK5,1)+1","v":59},"identifier",null,null,null,"Abaisse : morceau de pâte que l’on étale au rouleau à une épaisseur voulue",null,1,"habiller les soles"]
[null,{"$f":"LARGE(B5:B6,1)+1","v":3},"Additionner",{"$f":"LARGE(D5:D6,1)+1","v":18},"Enfourner",{"$f":"LARGE(F5:F6,1)+1","v":34},"Peler",{"$f":"LARGE(H5:H6,1)+1","v":53},"Retourner",null,null,{"$f":"LARGE(L5:L6,1)+1","v":3},"Arroser",{"$f":"LARGE(N5:N6,1)+1","v":48},"Désosser",{"$f":"LARGE(P5:P6,1)+1","v":93},"Historier",{"$f":"LARGE(R5:R6,1)+1","v":132},"Remonter",null,null,{"$f":"LARGE(V5:V6,1)+1","v":3},"Abricoter",{"$f":"LARGE(X5:X6,1)+1","v":58},"Décercler",{"$f":"LARGE(Z5:Z6,1)+1","v":115},"Farcir",{"$f":"LARGE(AB5:AB6,1)+1","v":165},"Manchonner",{"$f":"LARGE(AD5:AD6,1)+1","v":219},"Rafraîchir",{"$f":"LARGE(AF5:AF6,1)+1","v":270},"Tamiser",{"$f":"LARGE(AH4:AH6,1)+1","v":4},"activer",null,{"$f":"LARGE(AK4:AK6,1)+1","v":60},"imaginer",null,null,null,"Abaisser : étaler une pâte au rouleau à une épaisseur voulue.",null,2,"les dépouiller",null,null,"❶","Mise en place du poste de travail"]
[null,{"$f":"LARGE(B5:B7,1)+1","v":4},"Adjoindre",{"$f":"LARGE(D5:D7,1)+1","v":19},"Enfourner",{"$f":"LARGE(F5:F7,1)+1","v":35},"Porter à ébullition",{"$f":"LARGE(H5:H7,1)+1","v":54},"Rincer",null,null,{"$f":"LARGE(L5:L7,1)+1","v":4},"Assaisonner",{"$f":"LARGE(N5:N7,1)+1","v":49},"Dessécher",null,"I",{"$f":"LARGE(R5:R7,1)+1","v":133},"Revenir",null,null,{"$f":"LARGE(V5:V7,1)+1","v":4},"Accoler",{"$f":"LARGE(X5:X7,1)+1","v":59},"Décorer",{"$f":"LARGE(Z5:Z7,1)+1","v":116},"Farder",{"$f":"LARGE(AB5:AB7,1)+1","v":166},"Manier",{"$f":"LARGE(AD5:AD7,1)+1","v":220},"Raidir",{"$f":"LARGE(AF5:AF7,1)+1","v":271},"Tamponner",{"$f":"LARGE(AH4:AH7,1)+1","v":5},"agrandir",null,{"$f":"LARGE(AK4:AK7,1)+1","v":61},"inscrire",null,null,null,"Abricoter : étendre une confiture d’abricot à l’aide d’un pinceau sur un entremets, sur une tarte ou une préparation pour la rendre brillante et la protéger en surface en limitant les risques de dessèchement et de brunissement enzymatique.",null,3,"les mettre en filet",null,null,1,"verifier les DLC"]
[null,{"$f":"LARGE(B5:B8,1)+1","v":5},"Agir rapidement",{"$f":"LARGE(D5:D8,1)+1","v":20},"Etaler",{"$f":"LARGE(F5:F8,1)+1","v":36},"Préchauffer",null,"S",null,null,null,"B",{"$f":"LARGE(N5:N8,1)+1","v":50},"Détendre",{"$f":"LARGE(P5:P8,1)+1","v":94},"Inciser",{"$f":"LARGE(R5:R8,1)+1","v":134},"Rissoler",null,null,{"$f":"LARGE(V5:V8,1)+1","v":5},"Accompagner",{"$f":"LARGE(X5:X8,1)+1","v":60},"Décortiquer",{"$f":"LARGE(Z5:Z8,1)+1","v":117},"Fariner",{"$f":"LARGE(AB5:AB8,1)+1","v":167},"Manipuler",{"$f":"LARGE(AD5:AD8,1)+1","v":221},"Rassir",{"$f":"LARGE(AF5:AF8,1)+1","v":272},"Tapisser",{"$f":"LARGE(AH4:AH8,1)+1","v":6},"ajuster",null,{"$f":"LARGE(AK4:AK8,1)+1","v":62},"insérer",null,null,null,"Accoler : réunir, rassembler deux ou plusieurs éléments pour constituer un gâteau, un élément de fabrication ou autre.",null,4,"dégorger le tout 1/2 heure à l'eau fraiche",null,null,2,"peser les denrées"]
[null,{"$f":"LARGE(B5:B9,1)+1","v":6},"Ajouter",null,"F",{"$f":"LARGE(F5:F9,1)+1","v":37},"Prélever",{"$f":"LARGE(H5:H9,1)+1","v":55},"Saupoudrer",null,null,{"$f":"LARGE(L5:L9,1)+1","v":5},"Barder",{"$f":"LARGE(N5:N9,1)+1","v":51},"Dorer",null,"L",{"$f":"LARGE(R5:R9,1)+1","v":135},"Rompre",null,null,{"$f":"LARGE(V5:V9,1)+1","v":6},"Additionner",{"$f":"LARGE(X5:X9,1)+1","v":61},"Décuire",{"$f":"LARGE(Z5:Z9,1)+1","v":118},"Festonner",{"$f":"LARGE(AB5:AB9,1)+1","v":168},"Marbrer",{"$f":"LARGE(AD5:AD9,1)+1","v":222},"Rayer",{"$f":"LARGE(AF5:AF9,1)+1","v":273},"Terminer",{"$f":"LARGE(AH4:AH9,1)+1","v":7},"améliorer",null,{"$f":"LARGE(AK4:AK9,1)+1","v":63},"inspecter",null,null,null,"Appareil : mélange de différentes substances alimentaires entrant dans la composition d’une préparation de pâtisserie.",null,5,"hacher finement oignons et échalotes",null,null,3,"sélectionner le matériel"]
[null,{"$f":"LARGE(B5:B10,1)+1","v":7},"Aplatir",{"$f":"LARGE(D5:D10,1)+1","v":21},"Faire bouillir",{"$f":"LARGE(F5:F10,1)+1","v":38},"Préparer",{"$f":"LARGE(H5:H10,1)+1","v":56},"Servir",null,null,{"$f":"LARGE(L5:L10,1)+1","v":6},"Beurrer",{"$f":"LARGE(N5:N10,1)+1","v":52},"Dresser",{"$f":"LARGE(P5:P10,1)+1","v":95},"Lier",{"$f":"LARGE(R5:R10,1)+1","v":136},"Rôtir",null,null,{"$f":"LARGE(V5:V10,1)+1","v":7},"Adjoindre",{"$f":"LARGE(X5:X10,1)+1","v":62},"Déffilandrer",{"$f":"LARGE(Z5:Z10,1)+1","v":119},"Fileter",{"$f":"LARGE(AB5:AB10,1)+1","v":169},"Mariner",{"$f":"LARGE(AD5:AD10,1)+1","v":223},"Réaliser",{"$f":"LARGE(AF5:AF10,1)+1","v":274},"Tomber",{"$f":"LARGE(AH4:AH10,1)+1","v":8},"aménager",null,{"$f":"LARGE(AK4:AK10,1)+1","v":64},"installer",null,null,null,"Apprêt : technique survenant après le façonnage d’une pâte levée fermentée (pain, brioche…), pour assurer le développement des pièces par la fermentation avant la cuisson.",null,6,"monder  épépiner  concasser les tomates",null,null,4,"désinfecter le matériel et le poste de travail suivant la procédure"]
[null,null,"B",null,"G",{"$f":"LARGE(F5:F11,1)+1","v":39},"Protéger",{"$f":"LARGE(H5:H11,1)+1","v":57},"Snacker",null,null,{"$f":"LARGE(L5:L11,1)+1","v":7},"Blanchir",null,"E",{"$f":"LARGE(P5:P11,1)+1","v":96},"Limoner",null,"S",null,null,{"$f":"LARGE(V5:V11,1)+1","v":8},"Agir rapidement",{"$f":"LARGE(X5:X11,1)+1","v":63},"Déglacer",{"$f":"LARGE(Z5:Z11,1)+1","v":120},"Fixer",{"$f":"LARGE(AB5:AB11,1)+1","v":170},"Marquer",{"$f":"LARGE(AD5:AD11,1)+1","v":224},"Réchauffer en moins d'1 H",{"$f":"LARGE(AF5:AF11,1)+1","v":275},"Torréfier",{"$f":"LARGE(AH4:AH11,1)+1","v":9},"analyser",null,{"$f":"LARGE(AK4:AK11,1)+1","v":65},"inventer",null,null,null,"Aromatiser : incorporer un arôme ou un aromate à une préparation.",null,7,"concasser le persil"]
[null,{"$f":"LARGE(B5:B12,1)+1","v":8},"Battre",{"$f":"LARGE(D5:D12,1)+1","v":22},"Garnir",null,"R",null,"T",null,null,{"$f":"LARGE(L5:L12,1)+1","v":8},"Blondir",{"$f":"LARGE(N5:N12,1)+1","v":53},"Ebarber",{"$f":"LARGE(P5:P12,1)+1","v":97},"Lisser",{"$f":"LARGE(R5:R12,1)+1","v":137},"Saigner",null,null,{"$f":"LARGE(V5:V12,1)+1","v":9},"Ajouter",{"$f":"LARGE(X5:X12,1)+1","v":64},"Dégorger",{"$f":"LARGE(Z5:Z12,1)+1","v":121},"Flamber",{"$f":"LARGE(AB5:AB12,1)+1","v":171},"Masquer",{"$f":"LARGE(AD5:AD12,1)+1","v":225},"Recouvrir",{"$f":"LARGE(AF5:AF12,1)+1","v":276},"Tourer",{"$f":"LARGE(AH4:AH12,1)+1","v":10},"appliquer",null,{"$f":"LARGE(AK4:AK12,1)+1","v":66},"inventorier",null,null,null,"B",null,8,"pocher les filets pliés à très court mouillement"]
[null,null,"C",null,"I",{"$f":"LARGE(F5:F13,1)+1","v":40},"Réaliser",{"$f":"LARGE(H5:H13,1)+1","v":58},"Terminer",null,null,{"$f":"LARGE(L5:L13,1)+1","v":9},"Bouler",{"$f":"LARGE(N5:N13,1)+1","v":54},"Ecailler",{"$f":"LARGE(P5:P13,1)+1","v":98},"Lustrer",{"$f":"LARGE(R5:R13,1)+1","v":138},"Saisir",null,null,{"$f":"LARGE(V5:V13,1)+1","v":10},"Aplatir",{"$f":"LARGE(X5:X13,1)+1","v":65},"Dégourdir",{"$f":"LARGE(Z5:Z13,1)+1","v":122},"Flanquer",{"$f":"LARGE(AB5:AB13,1)+1","v":172},"Masser",{"$f":"LARGE(AD5:AD13,1)+1","v":226},"Rectifier",{"$f":"LARGE(AF5:AF13,1)+1","v":277},"Tourner",{"$f":"LARGE(AH4:AH13,1)+1","v":11},"approuver",null,{"$f":"LARGE(AK4:AK13,1)+1","v":67},"localiser",null,null,null,"Beurrer :",null,null,"sur toute cette garniture avec un peu de vin blanc",null,null,"❷","Préparations préliminaires"]
[null,{"$f":"LARGE(B5:B14,1)+1","v":9},"Chauffer",{"$f":"LARGE(D5:D14,1)+1","v":23},"Incorporer",{"$f":"LARGE(F5:F14,1)+1","v":41},"Réchauffer en moins d'1 H",null,"U",null,null,{"$f":"LARGE(L5:L14,1)+1","v":10},"Braiser",{"$f":"LARGE(N5:N14,1)+1","v":55},"Ecaler",null,"M",{"$f":"LARGE(R5:R14,1)+1","v":139},"Sangler",null,null,{"$f":"LARGE(V5:V14,1)+1","v":11},"Aromatiser",{"$f":"LARGE(X5:X14,1)+1","v":66},"Dégraisser",{"$f":"LARGE(Z5:Z14,1)+1","v":123},"Fleurer",{"$f":"LARGE(AB5:AB14,1)+1","v":173},"Mélanger",{"$f":"LARGE(AD5:AD14,1)+1","v":227},"Réduire",{"$f":"LARGE(AF5:AF14,1)+1","v":278},"Travailler",{"$f":"LARGE(AH4:AH14,1)+1","v":12},"archiver",null,{"$f":"LARGE(AK4:AK14,1)+1","v":68},"maintenir",null,null,null,"– ajouter de beurre à une sauce",null,9,"cuire 4 à 6 mn",null,null,1," La veille, décongeler les filets de morue suivant la procédure."]
[null,{"$f":"LARGE(B5:B15,1)+1","v":10},"Conserver",{"$f":"LARGE(D5:D15,1)+1","v":24},"Indications packaging",{"$f":"LARGE(F5:F15,1)+1","v":42},"Recouvrir",{"$f":"LARGE(H5:H15,1)+1","v":59},"Utiliser",null,null,{"$f":"LARGE(L5:L15,1)+1","v":11},"Brider",{"$f":"LARGE(N5:N15,1)+1","v":56},"Ecorcher",{"$f":"LARGE(P5:P15,1)+1","v":99},"Macérer",{"$f":"LARGE(R5:R15,1)+1","v":140},"Sauter",null,null,{"$f":"LARGE(V5:V15,1)+1","v":12},"Arroser",{"$f":"LARGE(X5:X15,1)+1","v":67},"Déhousser",{"$f":"LARGE(Z5:Z15,1)+1","v":124},"Foisonner",{"$f":"LARGE(AB5:AB15,1)+1","v":174},"Meringuer",{"$f":"LARGE(AD5:AD15,1)+1","v":228},"Refroidir",{"$f":"LARGE(AF5:AF15,1)+1","v":279},"Tremper",{"$f":"LARGE(AH4:AH15,1)+1","v":13},"assembler",null,{"$f":"LARGE(AK4:AK15,1)+1","v":69},"manier",null,null,null,"– enduire un moule ou un ustensile de beurre afin d’empêcher les mets d’attacher au fond ou aux parois.",null,10,"débarrasser les filets sur plat beurré"]
[null,{"$f":"LARGE(B5:B16,1)+1","v":11},"Contrôler",null,"J",{"$f":"LARGE(F5:F16,1)+1","v":43},"Rectifier",null,"V",null,null,null,"C",{"$f":"LARGE(N5:N16,1)+1","v":57},"Ecosser",{"$f":"LARGE(P5:P16,1)+1","v":100},"Manchonner",{"$f":"LARGE(R5:R16,1)+1","v":141},"Serrer",null,null,{"$f":"LARGE(V5:V16,1)+1","v":13},"Assaisonner",{"$f":"LARGE(X5:X16,1)+1","v":68},"Délayer",{"$f":"LARGE(Z5:Z16,1)+1","v":125},"Foncer",{"$f":"LARGE(AB5:AB16,1)+1","v":175},"Mettre au point",{"$f":"LARGE(AD5:AD16,1)+1","v":229},"Régénérer",{"$f":"LARGE(AF5:AF16,1)+1","v":280},"Tronçonner",{"$f":"LARGE(AH4:AH16,1)+1","v":14},"attacher",null,{"$f":"LARGE(AK4:AK16,1)+1","v":70},"manœuvrer",null,null,null,"– incorporer du beurre dans la détrempe d’une pâte feuilletée ou d’une pâte levée feuilletée, pour le tourage.",null,11,"les tenir au chaud",null,null,2," Éventuellement, dessaler par trempage dans un grand volume d'eau."]
[null,null,"D",{"$f":"LARGE(D5:D17,1)+1","v":25},"Jeter",{"$f":"LARGE(F5:F17,1)+1","v":44},"Refroidir",{"$f":"LARGE(H5:H17,1)+1","v":60},"Vérifier la temp.",null,null,{"$f":"LARGE(L5:L17,1)+1","v":12},"Canneler",{"$f":"LARGE(N5:N17,1)+1","v":58},"Ecumer",{"$f":"LARGE(P5:P17,1)+1","v":101},"Marbrer",{"$f":"LARGE(R5:R17,1)+1","v":142},"Singer",null,null,null,"B",{"$f":"LARGE(X5:X17,1)+1","v":69},"Démouler",{"$f":"LARGE(Z5:Z17,1)+1","v":126},"Fondre",{"$f":"LARGE(AB5:AB17,1)+1","v":176},"Mettre en cuisson",{"$f":"LARGE(AD5:AD17,1)+1","v":230},"Réhydrater",{"$f":"LARGE(AF5:AF17,1)+1","v":281},"Trousser",{"$f":"LARGE(AH4:AH17,1)+1","v":15},"attribuer",null,{"$f":"LARGE(AK4:AK17,1)+1","v":71},"mesurer",null,null,null,"Bain-marie : eau plus ou moins chaude dans laquelle on place des récipients contenant des préparations à cuire ou à tenir au chaud.",null,12,"réduire la garniture presque à sec"]
[null,{"$f":"LARGE(B5:B18,1)+1","v":12},"Décorer",null,"L",{"$f":"LARGE(F5:F18,1)+1","v":45},"Réhydrater",{"$f":"LARGE(H5:H18,1)+1","v":61},"Verser",null,null,{"$f":"LARGE(L5:L18,1)+1","v":13},"Caraméliser",{"$f":"LARGE(N5:N18,1)+1","v":59},"Effilandrer",{"$f":"LARGE(P5:P18,1)+1","v":102},"Mariner",{"$f":"LARGE(R5:R18,1)+1","v":143},"Suer",null,null,{"$f":"LARGE(V5:V18,1)+1","v":14},"Barder",{"$f":"LARGE(X5:X18,1)+1","v":70},"Dénerver",{"$f":"LARGE(Z5:Z18,1)+1","v":127},"Fouetter",{"$f":"LARGE(AB5:AB18,1)+1","v":177},"Mijoter",{"$f":"LARGE(AD5:AD18,1)+1","v":231},"Relâcher",{"$f":"LARGE(AF5:AF18,1)+1","v":282},"Turbiner",{"$f":"LARGE(AH4:AH18,1)+1","v":16},"brancher",null,{"$f":"LARGE(AK4:AK18,1)+1","v":72},"mettre",null,null,null,"Battre : agiter vigoureusement une préparation à l’aide d’un fouet, pour la rendre homogène ou lui donner du volume (foisonnement).",null,13,"monter au beurre",null,null,3,"Plaquer les filets sur 5 bacs GN 1/1 H 25 perforés."]
[null,{"$f":"LARGE(B5:B19,1)+1","v":13},"Délayer",{"$f":"LARGE(D5:D19,1)+1","v":26},"Laver",{"$f":"LARGE(F5:F19,1)+1","v":46},"Remonter en température",null,null,null,null,{"$f":"LARGE(L5:L19,1)+1","v":14},"Châtrer",{"$f":"LARGE(N5:N19,1)+1","v":60},"Effiler",{"$f":"LARGE(P5:P19,1)+1","v":103},"Masquer",null,"T",null,null,{"$f":"LARGE(V5:V19,1)+1","v":15},"Battre",{"$f":"LARGE(X5:X19,1)+1","v":71},"Dénoyauter",{"$f":"LARGE(Z5:Z19,1)+1","v":128},"Fouler",{"$f":"LARGE(AB5:AB19,1)+1","v":178},"Mixer",{"$f":"LARGE(AD5:AD19,1)+1","v":232},"Relever",null,null,{"$f":"LARGE(AH4:AH19,1)+1","v":17},"calculer",null,{"$f":"LARGE(AK4:AK19,1)+1","v":73},"moderniser",null,null,null,"Beurre clarifié : beurre fondu et décanté dont on a éliminé de la caséine et du petit lait.",null,14,"napper les filets "]
[null,{"$f":"LARGE(B5:B20,1)+1","v":14},"Disperser",null,"M",{"$f":"LARGE(F5:F20,1)+1","v":47},"Remplacer",null,null,null,null,{"$f":"LARGE(L5:L20,1)+1","v":15},"Chaufroiter",{"$f":"LARGE(N5:N20,1)+1","v":61},"Egermer",{"$f":"LARGE(P5:P20,1)+1","v":104},"Masser",{"$f":"LARGE(R5:R20,1)+1","v":144},"Tailler",null,null,{"$f":"LARGE(V5:V20,1)+1","v":16},"Beurrer",{"$f":"LARGE(X5:X20,1)+1","v":72},"Denteler",{"$f":"LARGE(Z5:Z20,1)+1","v":129},"Fourrer",{"$f":"LARGE(AB5:AB20,1)+1","v":179},"Modeler",{"$f":"LARGE(AD5:AD20,1)+1","v":233},"Remonter en température",null,"U",{"$f":"LARGE(AH4:AH20,1)+1","v":18},"cataloguer",null,{"$f":"LARGE(AK4:AK20,1)+1","v":74},"monter",null,null,null,"Beurre en pommade : beurre ramolli ayant la consistance d’une pommade.",null,15,"servir sans attendre",null,null,4," Mettre les bacs sur l'échelle de four"]
[null,{"$f":"LARGE(B5:B21,1)+1","v":15},"Disposer",{"$f":"LARGE(D5:D21,1)+1","v":27},"Maintenir en temp. sup à 63°",{"$f":"LARGE(F5:F21,1)+1","v":48},"Remuer",null,null,null,null,{"$f":"LARGE(L5:L21,1)+1","v":16},"Chemiser",{"$f":"LARGE(N5:N21,1)+1","v":62},"Egoutter",{"$f":"LARGE(P5:P21,1)+1","v":105},"Meringuer",{"$f":"LARGE(R5:R21,1)+1","v":145},"Tamiser",null,null,{"$f":"LARGE(V5:V21,1)+1","v":17},"Blanchir",{"$f":"LARGE(X5:X21,1)+1","v":73},"Dépouiller",{"$f":"LARGE(Z5:Z21,1)+1","v":130},"Fraiser",{"$f":"LARGE(AB5:AB21,1)+1","v":180},"Moiner",{"$f":"LARGE(AD5:AD21,1)+1","v":234},"Remplacer",{"$f":"LARGE(AF5:AF21,1)+1","v":283},"Upériser",{"$f":"LARGE(AH4:AH21,1)+1","v":19},"centraliser",null,{"$f":"LARGE(AK4:AK21,1)+1","v":75},"naviguer",null,null,null,"Blanchiment : phénomène de déstabilisation d’une fabrication de chocolat, correspondants à la migration en surface des cristaux de sucre, liée à une conservation en atmosphère humide et/ou un travail du chocolat à des températures inadaptées.",null,null,null,null,null,5,"et réserver au froid en attente de cuisson."]
[null,null,null,{"$f":"LARGE(D5:D22,1)+1","v":28},"Manipuler",{"$f":"LARGE(F5:F22,1)+1","v":49},"Répartir",null,null,null,null,{"$f":"LARGE(L5:L22,1)+1","v":17},"Chiqueter",{"$f":"LARGE(N5:N22,1)+1","v":63},"Egrapper",{"$f":"LARGE(P5:P22,1)+1","v":106},"Mijoter",{"$f":"LARGE(R5:R22,1)+1","v":146},"Tamponner",null,null,{"$f":"LARGE(V5:V22,1)+1","v":18},"Blondir",{"$f":"LARGE(X5:X22,1)+1","v":74},"Dérober",{"$f":"LARGE(Z5:Z22,1)+1","v":131},"Frapper",{"$f":"LARGE(AB5:AB22,1)+1","v":181},"Monder",{"$f":"LARGE(AD5:AD22,1)+1","v":235},"Remuer",{"$f":"LARGE(AF5:AF22,1)+1","v":284},"Utiliser",{"$f":"LARGE(AH4:AH22,1)+1","v":20},"chercher",null,{"$f":"LARGE(AK4:AK22,1)+1","v":76},"nettoyer",null,null,null,"Blanchir : travailler ensemble le jaune d’œuf et le sucre au fouet jusqu’à ce que le mélange devienne mousseux.",null,null,"source : Fiches techniques de cuisine Annette et Jean Pierre DOMERGUES",null,null,6," Au cutter, hacher finement l'ail. Réserver."]
[null,null,null,{"$f":"LARGE(D5:D23,1)+1","v":29},"Mélanger",{"$f":"LARGE(F5:F23,1)+1","v":50},"Repasser",null,null,null,null,{"$f":"LARGE(L5:L23,1)+1","v":18},"Ciseler",{"$f":"LARGE(N5:N23,1)+1","v":64},"Egrener",{"$f":"LARGE(P5:P23,1)+1","v":107},"Monder",{"$f":"LARGE(R5:R23,1)+1","v":147},"Tapisser",null,null,{"$f":"LARGE(V5:V23,1)+1","v":19},"Bouler",{"$f":"LARGE(X5:X23,1)+1","v":75},"Désosser",{"$f":"LARGE(Z5:Z23,1)+1","v":132},"Fraser",{"$f":"LARGE(AB5:AB23,1)+1","v":182},"Monter",{"$f":"LARGE(AD5:AD23,1)+1","v":236},"Répartir",null,null,{"$f":"LARGE(AH4:AH23,1)+1","v":21},"classifier",null,{"$f":"LARGE(AK4:AK23,1)+1","v":77},"optimiser",null,null,null,"Bouler : façonner à la main une pâte pour lui donner la forme d’une boule.",null,null,null,null,null,7," Chauffer le lait et le maintenir au chaud."]
[null,null,null,{"$f":"LARGE(D5:D24,1)+1","v":30},"Mettre en cuisson",null,null,null,null,null,null,{"$f":"LARGE(L5:L24,1)+1","v":19},"Citronner",{"$f":"LARGE(N5:N24,1)+1","v":65},"Emincer",{"$f":"LARGE(P5:P24,1)+1","v":108},"Monter",{"$f":"LARGE(R5:R24,1)+1","v":148},"Tourer",null,null,{"$f":"LARGE(V5:V24,1)+1","v":20},"Braiser",{"$f":"LARGE(X5:X24,1)+1","v":76},"Dessécher",{"$f":"LARGE(Z5:Z24,1)+1","v":133},"Frémir",{"$f":"LARGE(AB5:AB24,1)+1","v":183},"Mortifier",{"$f":"LARGE(AD5:AD24,1)+1","v":237},"Repasser",null,"V",{"$f":"LARGE(AH4:AH24,1)+1","v":22},"commander",null,{"$f":"LARGE(AK4:AK24,1)+1","v":78},"ordonnancer",null,null,null,"Brunissement enzymatique : c’est le phénomène qui se produit au contact de l’air à la suite d’opérations ou de traitements de divers végétaux (épluchage, taille) lesquels dégradent la structure végétale externe. Le phénomène conduit à un changement de couleur brun caractéristique du fruit).",null,null,"Editeur DOMERGUES 4  rue de la Bourie Rouge 45 000 ORLÉANS   1981",null,null,8,"Porter à ébullition la crème fraîche "]
[null,null,null,{"$f":"LARGE(D5:D25,1)+1","v":31},"Mixer",null,null,null,null,null,null,{"$f":"LARGE(L5:L25,1)+1","v":20},"Clarifier",{"$f":"LARGE(N5:N25,1)+1","v":66},"Enrober",{"$f":"LARGE(P5:P25,1)+1","v":109},"Mortifier",{"$f":"LARGE(R5:R25,1)+1","v":149},"Tourner",null,null,{"$f":"LARGE(V5:V25,1)+1","v":21},"Brider",{"$f":"LARGE(X5:X25,1)+1","v":77},"Détailler",{"$f":"LARGE(Z5:Z25,1)+1","v":134},"Frire",{"$f":"LARGE(AB5:AB25,1)+1","v":184},"Mouiller",{"$f":"LARGE(AD5:AD25,1)+1","v":238},"Réserver",{"$f":"LARGE(AF5:AF25,1)+1","v":285},"Vanner",{"$f":"LARGE(AH4:AH25,1)+1","v":23},"compiler",null,{"$f":"LARGE(AK4:AK25,1)+1","v":79},"organiser",null,null,null,"C",null,null,null,null,null,9,"et la maintenir au chaud en attente d'utilisation"]
[null,null,null,null,null,null,null,null,null,null,null,{"$f":"LARGE(L5:L26,1)+1","v":21},"Coller",{"$f":"LARGE(N5:N26,1)+1","v":67},"Eplucher",{"$f":"LARGE(P5:P26,1)+1","v":110},"Mouiller",{"$f":"LARGE(R5:R26,1)+1","v":150},"Travailler",null,null,{"$f":"LARGE(V5:V26,1)+1","v":22},"Broyer",{"$f":"LARGE(X5:X26,1)+1","v":78},"Détendre",null,null,{"$f":"LARGE(AB5:AB26,1)+1","v":185},"Mouler",{"$f":"LARGE(AD5:AD26,1)+1","v":239},"Respecter le délai de 2 H",{"$f":"LARGE(AF5:AF26,1)+1","v":286},"Vérifier la temp.",{"$f":"LARGE(AH4:AH26,1)+1","v":24},"compter",null,{"$f":"LARGE(AK4:AK26,1)+1","v":80},"planifier",null,null,null,"Candir : technique qui consiste à immerger des confiseries, des décors, dans un sirop de sucre afin d’obtenir une cristallisation de sucre en surface.",null,null,null,null,null,10,"Au pinceau, badigeonner de beurre 8 bacs GN 1/1 H 65"]
[null,null,null,null,null,null,null,null,null,null,null,{"$f":"LARGE(L5:L27,1)+1","v":22},"Compoter",{"$f":"LARGE(N5:N27,1)+1","v":68},"Escaloper",null,"N",{"$f":"LARGE(R5:R27,1)+1","v":151},"Tremper",null,null,{"$f":"LARGE(V5:V27,1)+1","v":23},"Brûler",{"$f":"LARGE(X5:X27,1)+1","v":79},"Détremper",null,"G",{"$f":"LARGE(AB5:AB27,1)+1","v":186},"Mousser",{"$f":"LARGE(AD5:AD27,1)+1","v":240},"Retirer",{"$f":"LARGE(AF5:AF27,1)+1","v":287},"Verser",{"$f":"LARGE(AH4:AH27,1)+1","v":25},"concevoir",null,{"$f":"LARGE(AK4:AK27,1)+1","v":81},"préparer",null,null,null,"Canneler : c’est le fait de faire de petites cannelures peu profondes à l’aide d’un couteau à canneler (appelé aussi canneleur) sur la surface de certains fruits & légumes (oranges, citrons, carottes…) pour améliorer leur présentation."]
[null,null,null,null,null,null,null,null,null,null,null,{"$f":"LARGE(L5:L28,1)+1","v":23},"Concasser",{"$f":"LARGE(N5:N28,1)+1","v":69},"Etuver",{"$f":"LARGE(P5:P28,1)+1","v":111},"Nacrer",{"$f":"LARGE(R5:R28,1)+1","v":152},"Tronçonner",null,null,null,null,{"$f":"LARGE(X5:X28,1)+1","v":80},"Disperser",{"$f":"LARGE(Z5:Z28,1)+1","v":135},"Garnir",null,"N",{"$f":"LARGE(AD5:AD28,1)+1","v":241},"Retomber",{"$f":"LARGE(AF5:AF28,1)+1","v":288},"Videler",{"$f":"LARGE(AH4:AH28,1)+1","v":26},"conduire",null,{"$f":"LARGE(AK4:AK28,1)+1","v":82},"présenter",null,null,null,"Caramélisation : phénomène correspondant au changement de couleur consécutif à une dégradation du saccharose au contact d’une source de chaleur importante. C’est une réaction de brunissement non enzymatique."]
[null,null,null,null,null,null,null,null,null,null,null,{"$f":"LARGE(L5:L29,1)+1","v":24},"Confire",{"$f":"LARGE(N5:N29,1)+1","v":70},"Evider",{"$f":"LARGE(P5:P29,1)+1","v":112},"Napper",{"$f":"LARGE(R5:R29,1)+1","v":153},"Trousser",null,null,null,"C",{"$f":"LARGE(X5:X29,1)+1","v":81},"Disposer",{"$f":"LARGE(Z5:Z29,1)+1","v":136},"Gerber",{"$f":"LARGE(AB5:AB29,1)+1","v":187},"Nacrer",{"$f":"LARGE(AD5:AD29,1)+1","v":242},"Retourner",{"$f":"LARGE(AF5:AF29,1)+1","v":289},"Voiler",{"$f":"LARGE(AH4:AH29,1)+1","v":27},"consigner",null,{"$f":"LARGE(AK4:AK29,1)+1","v":83},"prévoir",null,null,null,"Caraméliser : enduire un moule ou une pâtisserie de sucre cuit au caramel.",null,null,null,null,null,"❸","Préparer la purée"]
[null,null,null,null,null,null,null,null,null,null,null,{"$f":"LARGE(L5:L30,1)+1","v":25},"Contiser",{"$f":"LARGE(N5:N30,1)+1","v":71},"Exprimer",null,null,{"$f":"LARGE(R5:R30,1)+1","v":154},"Turbiner",null,null,{"$f":"LARGE(V5:V30,1)+1","v":24},"Candir ",{"$f":"LARGE(X5:X30,1)+1","v":82},"Dorer",{"$f":"LARGE(Z5:Z30,1)+1","v":137},"Glacer",{"$f":"LARGE(AB5:AB30,1)+1","v":188},"Napper",{"$f":"LARGE(AD5:AD30,1)+1","v":243},"Revenir",null,null,{"$f":"LARGE(AH4:AH30,1)+1","v":28},"constituer",null,{"$f":"LARGE(AK4:AK30,1)+1","v":84},"produire",null,null,null,"Chablonner : appliquer du chocolat de couverture ou de la pâte à glacer à la base des entremets, petits gâteaux, des ganaches, pour faciliter leur manipulation avant leur montage ou découpage.",null,"Lien >","Lexique en français de la boucherie Wiktionnaire",null,null,1," Préparer la purée déshydratée en suivant les indications du fabricant."]
[null,null,null,null,null,null,null,null,null,null,null,{"$f":"LARGE(L5:L31,1)+1","v":26},"Corner",null,"F",null,"P",null,null,null,null,{"$f":"LARGE(V5:V31,1)+1","v":25},"Canneler",{"$f":"LARGE(X5:X31,1)+1","v":83},"Doubler",{"$f":"LARGE(Z5:Z31,1)+1","v":138},"Gommer",null,"P",{"$f":"LARGE(AD5:AD31,1)+1","v":244},"Rincer",null,"Z",{"$f":"LARGE(AH4:AH31,1)+1","v":29},"construire",null,{"$f":"LARGE(AK4:AK31,1)+1","v":85},"programmer",null,null,null,"Chemiser : appliquer contre la paroi intérieur d’un moule ou d’une caissette, une couche de pâte, de biscuit, de gelée, de chocolat, de glace, de farine etc…"]
[null,null,null,null,null,null,null,null,null,null,null,{"$f":"LARGE(L5:L32,1)+1","v":27},"Corser",{"$f":"LARGE(N5:N32,1)+1","v":72},"Farcir",{"$f":"LARGE(P5:P32,1)+1","v":113},"Paner",null,"V",null,null,{"$f":"LARGE(V5:V32,1)+1","v":26},"Caraméliser",{"$f":"LARGE(X5:X32,1)+1","v":84},"Dresser",{"$f":"LARGE(Z5:Z32,1)+1","v":139},"Grainer",{"$f":"LARGE(AB5:AB32,1)+1","v":189},"Panacher",{"$f":"LARGE(AD5:AD32,1)+1","v":245},"Rioler",{"$f":"LARGE(AF5:AF32,1)+1","v":290},"Zester",{"$f":"LARGE(AH4:AH32,1)+1","v":30},"contrôler",null,{"$f":"LARGE(AK4:AK32,1)+1","v":86},"rebâtir",null,null,null,"Chiqueter : tailler le tour d’une pièce de feuilletage avant la cuisson avec la lame d’un couteau pour lui donner un aspect particulier.",null,"Lien >","Lexique en français de la cuisine Wiktionnaire",null,null,2,"Mettre au point l'assaisonnement. "]
[null,null,null,null,null,null,null,null,null,null,null,{"$f":"LARGE(L5:L33,1)+1","v":28},"Coucher",{"$f":"LARGE(N5:N33,1)+1","v":73},"Festonner",{"$f":"LARGE(P5:P33,1)+1","v":114},"Papilloter",{"$f":"LARGE(R5:R33,1)+1","v":155},"Vanner",null,null,{"$f":"LARGE(V5:V33,1)+1","v":27},"Caraméliser",null,null,{"$f":"LARGE(Z5:Z33,1)+1","v":140},"Graisser",{"$f":"LARGE(AB5:AB33,1)+1","v":190},"Paner",{"$f":"LARGE(AD5:AD33,1)+1","v":246},"Rissoler",null,null,{"$f":"LARGE(AH4:AH33,1)+1","v":31},"couper",null,{"$f":"LARGE(AK4:AK33,1)+1","v":87},"réceptionner",null,null,null,"Confire : remplacer l’eau de végétation des fruits par un sirop à la suite d’immersions multiples et répétées dans un sirop de sucre de plus en plus concentré.",null,null,null,null,null,3,"Muscader légèrement."]
[null,null,null,null,null,null,null,null,null,null,null,{"$f":"LARGE(L5:L34,1)+1","v":29},"Coucher",{"$f":"LARGE(N5:N34,1)+1","v":74},"Flamber",{"$f":"LARGE(P5:P34,1)+1","v":115},"Passer",{"$f":"LARGE(R5:R34,1)+1","v":156},"Videler",null,null,{"$f":"LARGE(V5:V34,1)+1","v":28},"Cerner",null,"E",{"$f":"LARGE(Z5:Z34,1)+1","v":141},"Gratiner",{"$f":"LARGE(AB5:AB34,1)+1","v":191},"Papilloter",{"$f":"LARGE(AD5:AD34,1)+1","v":247},"Rompre",null,null,{"$f":"LARGE(AH4:AH34,1)+1","v":32},"créer",null,{"$f":"LARGE(AK4:AK34,1)+1","v":88},"reconstruire",null,null,null,"Corner : utiliser une corne à l’intérieur d’un  récipient pour récupérer le maximum d’appareil.",null,"Lien >","Spécificités et usages du vocabulaire des \"métiers de la bouche\" ",null,null,4,"Réserver au chaud."]
[null,null,null,null,null,null,null,null,null,null,null,{"$f":"LARGE(L5:L35,1)+1","v":30},"Crémer",{"$f":"LARGE(N5:N35,1)+1","v":75},"Flanquer",{"$f":"LARGE(P5:P35,1)+1","v":116},"Persiller",{"$f":"LARGE(R5:R35,1)+1","v":157},"Voiler",null,null,{"$f":"LARGE(V5:V35,1)+1","v":29},"Chablonner",{"$f":"LARGE(X5:X35,1)+1","v":85},"Ebarber",{"$f":"LARGE(Z5:Z35,1)+1","v":142},"Griller",{"$f":"LARGE(AB5:AB35,1)+1","v":192},"Parer",{"$f":"LARGE(AD5:AD35,1)+1","v":248},"Rôtir",null,null,{"$f":"LARGE(AH4:AH35,1)+1","v":33},"creuser",null,{"$f":"LARGE(AK4:AK35,1)+1","v":89},"réduire",null,null,null,"Corps : terme appliqué à une pâte pour désigner son élasticité, sa résistance après son pétrissage, résultant de la formation de gluten.",null,null,null,null,null,null,"Ou marquer la cuisson des pommes de terre pour la réalisation de la purée fraîche."]
[null,null,null,null,null,null,null,null,null,null,null,{"$f":"LARGE(L5:L36,1)+1","v":31},"Crever",{"$f":"LARGE(N5:N36,1)+1","v":76},"Fleurer",{"$f":"LARGE(P5:P36,1)+1","v":117},"Piler",null,null,null,null,{"$f":"LARGE(V5:V36,1)+1","v":30},"Châtrer",{"$f":"LARGE(X5:X36,1)+1","v":86},"Ebaucher",{"$f":"LARGE(Z5:Z36,1)+1","v":143},"H",{"$f":"LARGE(AB5:AB36,1)+1","v":193},"Parfumer",{"$f":"LARGE(AD5:AD36,1)+1","v":249},"Rouler",null,null,{"$f":"LARGE(AH4:AH36,1)+1","v":34},"cultiver",null,{"$f":"LARGE(AK4:AK36,1)+1","v":90},"régler",null,null,null,"Corser : donner de l’élasticité à une pâte  en la pétrissant davantage."]
[null,null,null,null,null,null,null,null,null,null,null,{"$f":"LARGE(L5:L37,1)+1","v":32},"Cuire",{"$f":"LARGE(N5:N37,1)+1","v":77},"Foisonner",{"$f":"LARGE(P5:P37,1)+1","v":118},"Pincer",null,"Z",null,null,{"$f":"LARGE(V5:V37,1)+1","v":31},"Chauffer",{"$f":"LARGE(X5:X37,1)+1","v":87},"Ecailler",{"$f":"LARGE(Z5:Z37,1)+1","v":144},"Habiller",{"$f":"LARGE(AB5:AB37,1)+1","v":194},"Parsemer",{"$f":"LARGE(AD5:AD37,1)+1","v":250},"Roussir",null,null,{"$f":"LARGE(AH4:AH37,1)+1","v":35},"décentraliser",null,{"$f":"LARGE(AK4:AK37,1)+1","v":91},"réguler",null,null,null,"Coucher (synonyme de dresser) : façonner à la poche à douille généralement sur plaque ou tapis anti-adhérant, papier sulfurisé des appareils mous (pâte à choux, biscuits, meringues).",null,null,"Quelques expressions"]
[null,null,null,null,null,null,null,null,null,null,null,null,"D",{"$f":"LARGE(N5:N38,1)+1","v":78},"Foncer",{"$f":"LARGE(P5:P38,1)+1","v":119},"Piquer",{"$f":"LARGE(R5:R38,1)+1","v":158},"Zester",null,null,{"$f":"LARGE(V5:V38,1)+1","v":32},"Chaufroiter",{"$f":"LARGE(X5:X38,1)+1","v":88},"Ecaler",{"$f":"LARGE(Z5:Z38,1)+1","v":145},"Hacher",{"$f":"LARGE(AB5:AB38,1)+1","v":195},"Passer",null,null,null,null,{"$f":"LARGE(AH4:AH38,1)+1","v":36},"décharger",null,{"$f":"LARGE(AK4:AK38,1)+1","v":92},"remodeler",null,null,null,"Crémer : travailler une matière grasse seule ou avec du sucre, afin de lui donner la consistance d’une crème.",null,null,null,null,null,"❹","Confectionner la brandade de morue"]
[null,null,null,null,null,null,null,null,null,null,null,{"$f":"LARGE(L5:L39,1)+1","v":33},"Décanter",{"$f":"LARGE(N5:N39,1)+1","v":79},"Fondre",{"$f":"LARGE(P5:P39,1)+1","v":120},"Pocher",null,null,null,null,{"$f":"LARGE(V5:V39,1)+1","v":33},"Chemiser",{"$f":"LARGE(X5:X39,1)+1","v":89},"Echauder",{"$f":"LARGE(Z5:Z39,1)+1","v":146},"Historier",{"$f":"LARGE(AB5:AB39,1)+1","v":196},"Pasteuriser",null,"S",null,null,{"$f":"LARGE(AH4:AH39,1)+1","v":37},"dessiner",null,{"$f":"LARGE(AK4:AK39,1)+1","v":93},"remplacer",null,null,null,"Crouter : opération permettant de sécher à l’air ou en étuve une fabrication crue ou cuite afin d’obtenir une pellicule sèche et résistante à sa surface (biscuit cuillère, macarons…).",null,1,"désinfecter le matériel",null,null,1," Préchauffer le four sur la position vapeur"]
[null,null,null,null,null,null,null,null,null,null,null,{"$f":"LARGE(L5:L40,1)+1","v":34},"Décercler",{"$f":"LARGE(N5:N40,1)+1","v":80},"Fouler",{"$f":"LARGE(P5:P40,1)+1","v":121},"Poêler",null,null,null,null,{"$f":"LARGE(V5:V40,1)+1","v":34},"Chevaucher",{"$f":"LARGE(X5:X40,1)+1","v":90},"Ecorcher",{"$f":"LARGE(Z5:Z40,1)+1","v":147},"Huiler",{"$f":"LARGE(AB5:AB40,1)+1","v":197},"Peler",{"$f":"LARGE(AD5:AD40,1)+1","v":251},"Sabler",null,null,{"$f":"LARGE(AH4:AH40,1)+1","v":38},"documenter",null,{"$f":"LARGE(AK4:AK40,1)+1","v":94},"rénover",null,null,null,"D",null,2,"désinfecter le poste de travail",null,null,2,"Cuire les filets à la vapeur 7 minutes environ"]
[null,null,null,null,null,null,null,null,null,null,null,{"$f":"LARGE(L5:L41,1)+1","v":35},"Décortiquer",{"$f":"LARGE(N5:N41,1)+1","v":81},"Fraiser",{"$f":"LARGE(P5:P41,1)+1","v":122},"Pousser",null,null,null,null,{"$f":"LARGE(V5:V41,1)+1","v":35},"Chiqueter",{"$f":"LARGE(X5:X41,1)+1","v":91},"Ecosser",null,null,{"$f":"LARGE(AB5:AB41,1)+1","v":198},"Persiller",{"$f":"LARGE(AD5:AD41,1)+1","v":252},"Saigner",null,null,{"$f":"LARGE(AH4:AH41,1)+1","v":39},"écouler",null,{"$f":"LARGE(AK4:AK41,1)+1","v":95},"réorganiser",null,null,null,"Décercler : retirer avec précaution le cercle d’un fond de tarte ou d’un entremet.",null,3,"etager les bacs sur l'échelle de cuisson",null,null,null,"Ne pas trop cuire au risque de retirer les propriétés gluantes de la morue"]
[null,null,null,null,null,null,null,null,null,null,null,{"$f":"LARGE(L5:L42,1)+1","v":36},"Décuire",{"$f":"LARGE(N5:N42,1)+1","v":82},"Fileter",{"$f":"LARGE(P5:P42,1)+1","v":123},"Puncher",null,null,null,null,{"$f":"LARGE(V5:V42,1)+1","v":36},"Ciseler",{"$f":"LARGE(X5:X42,1)+1","v":92},"Ecumer",null,"I",{"$f":"LARGE(AB5:AB42,1)+1","v":199},"Peser",{"$f":"LARGE(AD5:AD42,1)+1","v":253},"Saisir",null,null,{"$f":"LARGE(AH4:AH42,1)+1","v":40},"écrire",null,{"$f":"LARGE(AK4:AK42,1)+1","v":96},"réparer",null,null,null,"Décoction : solution obtenue par l’action prolongée de l’eau bouillante sur une plante aromatique.",null,4,"selectionner le matériel"]
[null,null,null,null,null,null,null,null,null,null,null,{"$f":"LARGE(L5:L43,1)+1","v":37},"Déffilandrer",{"$f":"LARGE(N5:N43,1)+1","v":83},"Frapper",null,"Q",null,null,null,null,{"$f":"LARGE(V5:V43,1)+1","v":37},"Citronner",{"$f":"LARGE(X5:X43,1)+1","v":93},"Effilandrer",{"$f":"LARGE(Z5:Z43,1)+1","v":148},"Imbiber",{"$f":"LARGE(AB5:AB43,1)+1","v":200},"Pétrir",{"$f":"LARGE(AD5:AD43,1)+1","v":254},"Sangler",null,null,{"$f":"LARGE(AH4:AH43,1)+1","v":41},"édifier",null,{"$f":"LARGE(AK4:AK43,1)+1","v":97},"résoudre",null,null,null,"Dessécher : déshydrater, faire évaporer l’excédent d’eau se trouvant dans une préparation en la chauffant sur feu doux dans une étuve ou dans un four (ex : pâte à choux)",null,5,"suivre les protocoles",null,null,3,"Effeuiller les filets de morue cuits."]
[null,null,null,null,null,null,null,null,null,null,null,{"$f":"LARGE(L5:L44,1)+1","v":38},"Déglacer",{"$f":"LARGE(N5:N44,1)+1","v":84},"Frémir",{"$f":"LARGE(P5:P44,1)+1","v":124},"Quadriller",null,null,null,null,{"$f":"LARGE(V5:V44,1)+1","v":38},"Clarifier",{"$f":"LARGE(X5:X44,1)+1","v":94},"Effiler",{"$f":"LARGE(Z5:Z44,1)+1","v":149},"Inciser",{"$f":"LARGE(AB5:AB44,1)+1","v":201},"Piler",{"$f":"LARGE(AD5:AD44,1)+1","v":255},"Saumurer",null,null,{"$f":"LARGE(AH4:AH44,1)+1","v":42},"effectuer",null,{"$f":"LARGE(AK4:AK44,1)+1","v":98},"réviser",null,null,null,"Détailler : découper des morceaux de pâte de forme bien déterminée dans une abaisse de pâte, à l’aide d’un couteau ou d’un découpoir.",null,null,null,null,null,4,"Dans une sauteuse, faire chauffer l'huile d'olive"]
[null,null,null,null,null,null,null,null,null,null,null,{"$f":"LARGE(L5:L45,1)+1","v":39},"Dégorger",{"$f":"LARGE(N5:N45,1)+1","v":85},"Frire",null,null,null,null,null,null,{"$f":"LARGE(V5:V45,1)+1","v":39},"Clouter",{"$f":"LARGE(X5:X45,1)+1","v":95},"Egermer",{"$f":"LARGE(Z5:Z45,1)+1","v":150},"Incorporer",{"$f":"LARGE(AB5:AB45,1)+1","v":202},"Pincer",{"$f":"LARGE(AD5:AD45,1)+1","v":256},"Saupoudrer",null,null,{"$f":"LARGE(AH4:AH45,1)+1","v":43},"élaborer",null,{"$f":"LARGE(AK4:AK45,1)+1","v":99},"revoir",null,null,null,"Détrempe : mélange de farine, d’eau et de sel servant de base à la pâte feuilleté et à la pâte levée feuilleté.",null,null,null,null,null,5,"ajouter la morue effeuillée et l'ail"]
[null,null,null,null,null,null,null,null,null,null,null,{"$f":"LARGE(L5:L46,1)+1","v":40},"Dégourdir",null,"G",null,"R",null,null,null,null,{"$f":"LARGE(V5:V46,1)+1","v":40},"Coller",{"$f":"LARGE(X5:X46,1)+1","v":96},"Egoutter",{"$f":"LARGE(Z5:Z46,1)+1","v":151},"Indications packaging",{"$f":"LARGE(AB5:AB46,1)+1","v":203},"Piquer",{"$f":"LARGE(AD5:AD46,1)+1","v":257},"Sauter",null,null,{"$f":"LARGE(AH4:AH46,1)+1","v":44},"emplir",null,{"$f":"LARGE(AK4:AK46,1)+1","v":100},"sensibiliser",null,null,null,"E",null,1,"eplucher-laver-désinfecter",null,null,6,"travailler à la spatule"]
[null,null,null,null,null,null,null,null,null,null,null,{"$f":"LARGE(L5:L47,1)+1","v":41},"Dégraisser",{"$f":"LARGE(N5:N47,1)+1","v":86},"Glacer",{"$f":"LARGE(P5:P47,1)+1","v":125},"Rabattre",null,null,null,null,{"$f":"LARGE(V5:V47,1)+1","v":41},"Compoter",{"$f":"LARGE(X5:X47,1)+1","v":97},"Egrapper",{"$f":"LARGE(Z5:Z47,1)+1","v":152},"Infuser",{"$f":"LARGE(AB5:AB47,1)+1","v":204},"Plaquer",{"$f":"LARGE(AD5:AD47,1)+1","v":258},"Serrer",null,null,{"$f":"LARGE(AH4:AH47,1)+1","v":45},"employer",null,{"$f":"LARGE(AK4:AK47,1)+1","v":101},"simplifier",null,null,null,"Écumer : c’est éliminer les impuretés qui se forment à la surface de cuisson de sucre, confitures, gelées à l’aide d’une écumoire.",null,2,"faire tremper",null,null,null,"(ou travailler directement la morue effeuillée dans la cuve du batteur)."]
[null,null,null,null,null,null,null,null,null,null,null,{"$f":"LARGE(L5:L48,1)+1","v":42},"Déhousser",{"$f":"LARGE(N5:N48,1)+1","v":87},"Gommer",{"$f":"LARGE(P5:P48,1)+1","v":126},"Rafraîchir",null,null,null,null,{"$f":"LARGE(V5:V48,1)+1","v":42},"Concasser",{"$f":"LARGE(X5:X48,1)+1","v":98},"Egrener",null,null,{"$f":"LARGE(AB5:AB48,1)+1","v":205},"Pocher",{"$f":"LARGE(AD5:AD48,1)+1","v":259},"Servir",null,null,{"$f":"LARGE(AH4:AH48,1)+1","v":46},"enregistrer",null,{"$f":"LARGE(AK4:AK48,1)+1","v":102},"soulever",null,null,null,"Émonder : retirer les peaux, pellicules et enveloppe de certains fruits ou légumes.",null,3,"habiller les soles"]
[null,null,null,null,null,null,null,null,null,null,null,{"$f":"LARGE(L5:L49,1)+1","v":43},"Dénerver",{"$f":"LARGE(N5:N49,1)+1","v":88},"Graisser",{"$f":"LARGE(P5:P49,1)+1","v":127},"Raidir",null,null,null,null,{"$f":"LARGE(V5:V49,1)+1","v":43},"Confire",{"$f":"LARGE(X5:X49,1)+1","v":99},"Eliminer",null,"J",{"$f":"LARGE(AB5:AB49,1)+1","v":206},"Poêler",{"$f":"LARGE(AD5:AD49,1)+1","v":260},"Singer",null,null,{"$f":"LARGE(AH4:AH49,1)+1","v":47},"entretenir",null,{"$f":"LARGE(AK4:AK49,1)+1","v":103},"standardiser",null,null,null,"Émulsionner : opération consistant à provoquer la dispersion d’un liquide dans un autre liquide ou d’une matière non miscible (ex : ganache).",null,4,"hacher finement",null,null,7,"Mettre la morue travaillée dans la grande cuve du batteur"]
[null,null,null,null,null,null,null,null,null,null,null,{"$f":"LARGE(L5:L50,1)+1","v":44},"Dénoyauter",{"$f":"LARGE(N5:N50,1)+1","v":89},"Gratiner",{"$f":"LARGE(P5:P50,1)+1","v":128},"Rassir",null,null,null,null,{"$f":"LARGE(V5:V50,1)+1","v":44},"Conserver",{"$f":"LARGE(X5:X50,1)+1","v":100},"Emonder",{"$f":"LARGE(Z5:Z50,1)+1","v":153},"Jeter",{"$f":"LARGE(AB5:AB50,1)+1","v":207},"Porter à ébullition",{"$f":"LARGE(AD5:AD50,1)+1","v":261},"Siroper",null,null,{"$f":"LARGE(AH4:AH50,1)+1","v":48},"envoyer",null,{"$f":"LARGE(AK4:AK50,1)+1","v":104},"superviser",null,null,null,"Évider : éliminer, extraire l’intérieur de certains fruits (ex : citrons, orange).",null,5,"laver à grande eau"]
[null,null,null,null,null,null,null,null,null,null,null,{"$f":"LARGE(L5:L51,1)+1","v":45},"Denteler",{"$f":"LARGE(N5:N51,1)+1","v":90},"Griller",{"$f":"LARGE(P5:P51,1)+1","v":129},"Rayer",null,null,null,null,{"$f":"LARGE(V5:V51,1)+1","v":45},"Contiser",{"$f":"LARGE(X5:X51,1)+1","v":101},"Émulsionner",null,null,{"$f":"LARGE(AB5:AB51,1)+1","v":208},"Poudrer",{"$f":"LARGE(AD5:AD51,1)+1","v":262},"Siroter",null,null,{"$f":"LARGE(AH4:AH51,1)+1","v":49},"ériger",null,{"$f":"LARGE(AK4:AK51,1)+1","v":105},"surveiller",null,null,null,"F",null,6,"peser les denrées",null,null,8,"A la feuille en première vitesse, incorporer progressivement le lait et la crème"]
[null,null,null,null,null,null,null,null,null,null,null,null,null,null,null,null,null,null,null,null,null,{"$f":"LARGE(V5:V52,1)+1","v":46},"Contrôler",{"$f":"LARGE(X5:X52,1)+1","v":102},"Enfourner",null,"L",{"$f":"LARGE(AB5:AB52,1)+1","v":209},"Pousser",{"$f":"LARGE(AD5:AD52,1)+1","v":263},"Snacker",null,null,{"$f":"LARGE(AH4:AH52,1)+1","v":50},"établir",null,{"$f":"LARGE(AK4:AK52,1)+1","v":106},"tester",null,null,null,"Façonner : c’est donner une forme  particulière à toute sortes de pâtes par un travail manuel ou mécanique avant cuisson.",null,7,"trier et tremper"]
[null,null,null,null,null,null,null,null,null,null,null,null,null,null,null,null,null,null,null,null,null,{"$f":"LARGE(V5:V53,1)+1","v":47},"Corner",{"$f":"LARGE(X5:X53,1)+1","v":103},"Enrober",{"$f":"LARGE(Z5:Z53,1)+1","v":154},"Larder",{"$f":"LARGE(AB5:AB53,1)+1","v":210},"Praliner",{"$f":"LARGE(AD5:AD53,1)+1","v":264},"Sonder",null,null,{"$f":"LARGE(AH4:AH53,1)+1","v":51},"étendre",null,{"$f":"LARGE(AK4:AK53,1)+1","v":107},"transformer",null,null,null,"Festonner : constituer des bordures décoratives ou des formes arrondies sur des pâtisseries (ex : pithiviers, tartelette…).",null,8,"vérifier les DLC",null,null,null,"Éventuellement, mettre au point la consistance en ajoutant du lait, de l'huile d'oli­ve ou de la crème"]
[null,null,null,null,null,null,null,null,null,null,null,null,null,null,null,null,null,null,null,null,null,{"$f":"LARGE(V5:V54,1)+1","v":48},"Corser",{"$f":"LARGE(X5:X54,1)+1","v":104},"Eplucher",{"$f":"LARGE(Z5:Z54,1)+1","v":155},"Laver",{"$f":"LARGE(AB5:AB54,1)+1","v":211},"Préchauffer",{"$f":"LARGE(AD5:AD54,1)+1","v":265},"Stériliser",null,null,{"$f":"LARGE(AH4:AH54,1)+1","v":52},"examiner",null,{"$f":"LARGE(AK4:AK54,1)+1","v":108},"trier",null,null,null,"Fleurer : saupoudrer de farine un tour, une plaque ou un moule afin d’empêcher certaines préparations de coller."]
[null,null,null,null,null,null,null,null,null,null,null,null,null,null,null,null,null,null,null,null,null,{"$f":"LARGE(V5:V55,1)+1","v":49},"Coucher",{"$f":"LARGE(X5:X55,1)+1","v":105},"Equeter",{"$f":"LARGE(Z5:Z55,1)+1","v":156},"Lever",{"$f":"LARGE(AB5:AB55,1)+1","v":212},"Prélever",{"$f":"LARGE(AD5:AD55,1)+1","v":266},"Suer",null,null,{"$f":"LARGE(AH4:AH55,1)+1","v":53},"exécuter",null,{"$f":"LARGE(AK4:AK55,1)+1","v":109},"utiliser",null,null,null,"Foncer : tapisser l’intérieur d’un moule ou d’un cercle avec de la pâte, pour qu’elle épouse parfaitement sa forme.",null,1,"ciseler finement",null,null,null,"On doit obtenir une pâte homogène et compacte"]
[null,null,null,null,null,null,null,null,null,null,null,null,null,null,null,null,null,null,null,null,null,{"$f":"LARGE(V5:V56,1)+1","v":50},"Craquer",{"$f":"LARGE(X5:X56,1)+1","v":106},"Escaloper",{"$f":"LARGE(Z5:Z56,1)+1","v":157},"Lier",{"$f":"LARGE(AB5:AB56,1)+1","v":213},"Préparer",{"$f":"LARGE(AD5:AD56,1)+1","v":267},"Surgeler",null,null,{"$f":"LARGE(AH4:AH56,1)+1","v":54},"exploiter",null,{"$f":"LARGE(AK4:AK56,1)+1","v":110},"vaporiser",null,null,null,"Fond : pâtisseries utilisée comme base de fabrication et constituant généralement la couche inférieure des gâteaux.",null,2,"couper en 2",null,null,9,"Poivrer et muscader"]
[null,null,null,null,null,null,null,null,null,null,null,null,null,null,null,null,null,null,null,null,null,{"$f":"LARGE(V5:V57,1)+1","v":51},"Crémer",{"$f":"LARGE(X5:X57,1)+1","v":107},"Etaler",{"$f":"LARGE(Z5:Z57,1)+1","v":158},"Limoner",{"$f":"LARGE(AB5:AB57,1)+1","v":214},"Protéger",null,null,null,null,{"$f":"LARGE(AH4:AH57,1)+1","v":55},"extraire",null,{"$f":"LARGE(AK4:AK57,1)+1","v":111},"vérifier",null,null,null,"Foisonnement: phénomène résultant d’une augmentation de volume d’une fabrication par incorporation de gaz.",null,null,null,null,null,10," Finir de lier la brandade en ajoutant la purée."]
[null,null,null,null,null,null,null,null,null,null,null,null,null,null,null,null,null,null,null,null,null,{"$f":"LARGE(V5:V58,1)+1","v":52},"Crever",{"$f":"LARGE(X5:X58,1)+1","v":108},"Etoffer",{"$f":"LARGE(Z5:Z58,1)+1","v":159},"Lisser",{"$f":"LARGE(AB5:AB58,1)+1","v":215},"Puncher",null,null,null,null,{"$f":"LARGE(AH4:AH58,1)+1","v":56},"faire",null,null,null,null,null,null,"Fraser : écraser les ingrédients d’une pâte pour les agglomérer soit sur le marbre avec la paume de la main en la poussant devant soi, soit au batteur en écrasant avec la paume de sa main sur les parois.",null,null,null,null,null,11," Travailler"]
[null,null,null,null,null,null,null,null,null,null,null,null,null,null,null,null,null,null,null,null,null,{"$f":"LARGE(V5:V59,1)+1","v":53},"Crouter",{"$f":"LARGE(X5:X59,1)+1","v":109},"Etouffer",{"$f":"LARGE(Z5:Z59,1)+1","v":160},"Lustrer",null,null,null,null,null,null,null,null,null,null,null,null,null,null,"G",null,1,"adjoindre de la creme",null,null,12," Rectifier la consistance"]
[null,null,null,null,null,null,null,null,null,null,null,null,null,null,null,null,null,null,null,null,null,{"$f":"LARGE(V5:V60,1)+1","v":54},"Cuire",{"$f":"LARGE(X5:X60,1)+1","v":110},"Etuver",{"$f":"LARGE(Z5:Z60,1)+1","v":161},"Luter",null,"Q",null,null,null,null,null,null,null,null,null,null,null,null,"Garnir : remplir avec une préparation de crème ou autres un fond de gâteau, un moule, une poche.",null,2,"ajouter dans l'ordre les autres éléments"]
[null,null,null,null,null,null,null,null,null,null,null,null,null,null,null,null,null,null,null,null,null,{"$f":"LARGE(V5:V61,1)+1","v":55},"Culotter",{"$f":"LARGE(X5:X61,1)+1","v":111},"Evider",{"$f":"LARGE(Z5:Z61,1)+1","v":162},"Lyophiliser",{"$f":"LARGE(AB5:AB61,1)+1","v":216},"Quadriller",null,null,null,null,null,null,null,null,null,null,null,null,"Glacer :",null,3,"arroser de beurre noisette",null,null,"❺","Décanter la préparation"]
[null,null,null,null,null,null,null,null,null,null,null,null,null,null,null,null,null,null,null,null,null,null,null,{"$f":"LARGE(X5:X62,1)+1","v":112},"Exprimer",null,null,null,null,null,null,null,null,null,null,null,null,null,null,null,null,"– action de recouvrir partiellement ou entièrement la surface d’une pâtisserie avec un glaçage (ex : fondant)",null,4,"arroser de liqueur ",null,null,1,"Dans les 8 bacs GN 1/1 beurrés, répartir la brandade Bénédictine"]
[null,null,null,null,null,null,null,null,null,null,null,null,null,null,null,null,null,null,null,null,null,null,null,null,null,null,null,null,null,null,null,null,null,null,null,null,null,null,null,null,null,"– rendre brillant la surface d’une pâtisserie avec du sirop avant le passage au four ou saupoudrer une pièce de sucre glace et la passer au four, le temps de caraméliser le sucre.",null,5,"beurrer grassement"]
[null,null,null,null,null,null,null,null,null,null,null,null,null,null,null,null,null,null,null,null,null,null,null,null,null,null,null,null,null,null,null,null,null,null,null,null,null,null,null,null,null,"Grainage : phénomène résultant de la déstabilisation d’une mousse alimentaire (ex : blancs montés) ou d’une émulsion mousseuse (ex : crème fouettée) à la suite d’un battage prolongé.",null,6,"blanchir-rafraichir-couper",null,null,2,"Égaliser la surface "]
[null,null,null,null,null,null,null,null,null,null,null,null,null,null,null,null,null,null,null,null,null,null,"Lien >","Lexique en français de la boucherie",null,null,null,null,null,null,null,null,null,null,null,null,null,null,null,null,null,"Graisser : enduire d’une couche de matière grasse à l’aide d’un pinceau ou d’une bombe à graisse les parois d’un moule ou une plaque.",null,7,"crémer-réduire",null,null,3,"Saupoudrer d'emmenthal râpé"]
[null,null,null,null,null,null,null,null,null,null,null,null,null,null,null,null,null,null,null,null,null,null,"Lien >","Le dictionnaire du boucher",null,null,null,null,null,null,null,null,null,null,null,null,null,null,null,null,null,"I",null,8,"passer la sauce",null,null,4,"Parsemer de parcelles de beurre"]
[null,null,null,null,null,null,null,null,null,null,null,null,null,null,null,null,null,null,null,null,null,null,"Verbes d'action Lien >","https://www.unamur.be/services/sevrexe/prodoc/documents-mission-accompagnement-prodoc-AL/verbes-actions",null,null,null,null,null,null,null,null,null,null,null,null,null,null,null,null,null,"Imbiber : c’est faire pénétrer un liquide (sirop, alcool, liqueur etc…) dans une préparation dans le but de la rendre moins sèche ou dans le but de la parfumer.",null,9,"reviser l'assaisonnement",null,null,5,"Étager les bacs sur l'échelle de cuisson"]
[null,null,null,null,null,null,null,null,null,null,null,null,null,null,null,null,null,null,null,null,null,null,null,null,null,null,null,null,null,null,null,null,null,null,null,null,null,null,null,null,null,"Infuser : opération consistant à placer une substance aromatique dans un liquide chauffé au préalable, pendant un temps déterminé et à couvert pour capter son arôme.",null,10,"saler en cours de cuisson"]
[null,null,null,null,null,null,null,null,null,null,null,null,null,null,null,null,null,null,null,null,null,null,null,null,null,null,null,null,null,null,null,null,null,null,null,null,null,null,null,null,null,"L",null,11,"saupoudrer légèrement",null,null,"❻","Gratiner"]
[null,null,null,null,null,null,null,null,null,null,null,null,null,null,null,null,null,null,null,null,null,null,null,null,null,null,null,null,null,null,null,null,null,null,null,null,null,null,null,null,null,"Lisser : mélanger une préparation pour la rendre homogène.",null,12,"vérifier la consistance",null,null,1," Passer au four en chaleur sèche à + 170 °C"]
[null,null,null,null,null,null,null,null,null,null,null,null,null,null,null,null,null,null,null,null,null,null,null,null,null,null,null,null,null,null,null,null,null,null,null,null,null,null,null,null,null,"Lustrer : recouvrir de nappage de gelée ou de beurre fondu, une préparation afin de lui donner un aspect brillant.",null,null,null,null,null,2," et gratiner légèrement la surface"]
[null,null,null,null,null,null,null,null,null,null,null,null,null,null,null,null,null,null,null,null,null,null,null,null,null,null,null,null,null,null,null,null,null,null,null,null,null,null,null,null,null,"M",null,null,null,null,null,3,"Respecter la procédure de fin de cuisson"]
[null,null,null,null,null,null,null,null,null,null,null,null,null,null,null,null,null,null,null,null,null,null,null,null,null,null,null,null,null,null,null,null,null,null,null,null,null,null,null,null,null,"Macérer : opération consistant à faire tremper un corps dans un liquide froid pour en extraire les parties solubles ou un produit alimentaire pour le parfumer ou le conserver.",null,1,"déglacer au vin blanc",null,null,4,"Stocker en armoire chaude et maintenir à + 63 °C, en attente de consommation."]
[null,null,null,null,null,null,null,null,null,null,null,null,null,null,null,null,null,null,null,null,null,null,null,null,null,null,null,null,null,null,null,null,null,null,null,null,null,null,null,null,null,"Marbrer : réaliser divers dessins sur des gâteaux glacés (au fondant, au nappage etc …) pour améliorer leur présentation.",null,2,"dégraisser en partie"]
[null,null,null,null,null,null,null,null,null,null,null,null,null,null,null,null,null,null,null,null,null,null,null,null,null,null,null,null,null,null,null,null,null,null,null,null,null,null,null,null,null,"Masquer : recouvrir un entremets ou un fond de plat d’une légère couche de crème, de sauce ou de gelée.",null,3,"égoutter et débarrasser"]
[null,null,null,null,null,null,null,null,null,null,null,null,null,null,null,null,null,null,null,null,null,null,null,null,null,null,null,null,null,null,null,null,null,null,null,null,null,null,null,null,null,"Monter :",null,4,"étuver au beurre",null,null,"❼","Dresser et servir"]
[null,null,null,null,null,null,null,null,null,null,null,null,null,null,null,null,null,null,null,null,null,null,null,null,null,null,null,null,null,null,null,null,null,null,null,null,null,null,null,null,null,"–  battre au fouet une substance ou un appareil pour le rendre plus léger et en augmenter le volume (ex : blanc en neige).",null,5,"faire sauter vivement",null,null,1,"Détailler chaque bac GN en 12 portions"]
[null,null,null,null,null,null,null,null,null,null,null,null,null,null,null,null,null,null,null,null,null,null,null,null,null,null,null,null,null,null,null,null,null,null,null,null,null,null,null,null,null,"– assembler les différentes parties d’une pâtisserie pour en faire un gâteau plus ou moins important (monter un entremet, pièce montée).",null,6,"faire suer",null,null,2,"Servir une portion sur chaque assiette et garnir de toasts (facultatif)"]
[null,null,null,null,null,null,null,null,null,null,null,null,null,null,null,null,null,null,null,null,null,null,null,null,null,null,null,null,null,null,null,null,null,null,null,null,null,null,null,null,null,"Mouler : verser une substance ou une préparation liquide ou semi-liquide dans un moule pour en obtenir une reproduction de sa forme après solidification.",null,7,"incorporer dans la sauce",null,null,3]
[null,null,null,null,null,null,null,null,null,null,null,null,null,null,null,null,null,null,null,null,null,null,null,null,null,null,null,null,null,null,null,null,null,null,null,null,null,null,null,null,null,"N",null,8,"lier la cuisson"]
[null,null,null,null,null,null,null,null,null,null,null,null,null,null,null,null,null,null,null,null,null,null,null,null,null,null,null,null,null,null,null,null,null,null,null,null,null,null,null,null,null,"Napper : verser sur un met chaud ou froid une sauce, une gelée, ou une crème pour le recouvrir complètement.",null,9,"lustrer à l'huie",null,null,"❽ ","Commentaires"]
[null,null,null,null,null,null,null,null,null,null,null,null,null,null,null,null,null,null,null,null,null,null,null,null,null,null,null,null,null,null,null,null,null,null,null,null,null,null,null,null,null,"P",null,10,"monter au beurre",null,null,"Ⓐ"," La brandade de morue n'est constituée que de poisson"]
[null,null,null,null,null,null,null,null,null,null,null,null,null,null,null,null,null,null,null,null,null,null,null,null,null,null,null,null,null,null,null,null,null,null,null,null,null,null,null,null,null,"Pasteuriser : action de soumettre une préparation à un traitement thermique (Température inférieure à 100°C), pendant un temps défini, afin de détruire d’éventuels germes pathogènes et de prolonger leur conservations.",null,11,"mouiller au vin blanc"]
[null,null,null,null,null,null,null,null,null,null,null,null,null,null,null,null,null,null,null,null,null,null,null,null,null,null,null,null,null,null,null,null,null,null,null,null,null,null,null,null,null,"Passer : faire traverser un liquide dans un ustensile percé de trous  pour en retenir en général les impuretés (ex : chinois,  passoire, tamis).",null,12,"napper de sauce",null,null,"Ⓑ","C'est à tort que l'on appelle brandade celle additionnée de purée de pomme de terre"]
[null,null,null,null,null,null,null,null,null,null,null,null,null,null,null,null,null,null,null,null,null,null,null,null,null,null,null,null,null,null,null,null,null,null,null,null,null,null,null,null,null,"Pâton : nom donné à un morceau de pâte pesé et prêt à être façonné.",null,13,"porter à ébullition"]
[null,null,null,null,null,null,null,null,null,null,null,null,null,null,null,null,null,null,null,null,null,null,null,null,null,null,null,null,null,null,null,null,null,null,null,null,null,null,null,null,null,"Piquer : percer de nombreux petits trous la surface d’une abaisse de pâte à l’aide d’une fourchette ou d’un pique vite, dans le but d’empêcher la formation de boursouflures durant la cuisson.",null,14,"rafraichir et égoutter",null,null,"Ⓒ"," La brandade de morue peut être accompagnée "]
[null,null,null,null,null,null,null,null,null,null,null,null,null,null,null,null,null,null,null,null,null,null,null,null,null,null,null,null,null,null,null,null,null,null,null,null,null,null,null,null,null,"Pincer : faire un décor sur le pourtour d’une tarte à l’aide d’une pince spéciale.",null,15,"réduire le vin",null,null,1,"de pommes de terre à l'anglaise"]
[null,null,null,null,null,null,null,null,null,null,null,null,null,null,null,null,null,null,null,null,null,null,null,null,null,null,null,null,null,null,null,null,null,null,null,null,null,null,null,null,null,"Pocher : opération qui consiste à cuire une préparation ou des aliments dans un liquide (eau, sirop, etc…) à une température basse, généralement comprise entre 70° et 85°C.",null,16,"sauter au beurre et à l'huile",null,null,2,"en robe des champs"]
[null,null,null,null,null,null,null,null,null,null,null,null,null,null,null,null,null,null,null,null,null,null,null,null,null,null,null,null,null,null,null,null,null,null,null,null,null,null,null,null,null,"Pointage : technique survenant après le pétrissage d’une pâte levée, fermentée, permettant à la première fermentation de se réaliser et de développer des arômes caractéristiques, mais aussi de renforcer le corps de la pâte avant son façonnage.",null,null,null,null,null,3,"ou de pommes purée à l'huile d'olive"]
[null,null,null,null,null,null,null,null,null,null,null,null,null,null,null,null,null,null,null,null,null,null,null,null,null,null,null,null,null,null,null,null,null,null,null,null,null,null,null,null,null,"Punch : mélange de sirop de sucre et d’un autre ingrédient (alcool, café, jus ou purée de fruits, vanille etc…).",null,null,null,null,null,4,"et de croûtons frits"]
[null,null,null,null,null,null,null,null,null,null,null,null,null,null,null,null,null,null,null,null,null,null,null,null,null,null,null,null,null,null,null,null,null,null,null,null,null,null,null,null,null,"Puncher (synonyme d’imbiber): rayer avec la pointe de la lame d’un couteau d’office, inciser de raies parallèles la surface de certains gâteaux préalablement passée à la dorure afin de parfaire la présentation.",null,1,"cuire à couvert"]
[null,null,null,null,null,null,null,null,null,null,null,null,null,null,null,null,null,null,null,null,null,null,null,null,null,null,null,null,null,null,null,null,null,null,null,null,null,null,null,null,null,"R",null,2,"cuire à feu doux"]
[null,null,null,null,null,null,null,null,null,null,null,null,null,null,null,null,null,null,null,null,null,null,null,null,null,null,null,null,null,null,null,null,null,null,null,null,null,null,null,null,null,"Retomber : se dit d’une pâte, d’un appareil dont le volume diminue après avoir augmenté pendant le montage ou la cuisson.",null,3,"cuire a feu vif",null,null,null,"Cette Méthode de fabrication est citée à titre d'exemple"]
[null,null,null,null,null,null,null,null,null,null,null,null,null,null,null,null,null,null,null,null,null,null,null,null,null,null,null,null,null,null,null,null,null,null,null,null,null,null,null,null,null,"Rognures : chutes de pâtisseries provenant de découpes de pâtes, d’entremets.",null,4,"cuire à four moyen"]
[null,null,null,null,null,null,null,null,null,null,null,null,null,null,null,null,null,null,null,null,null,null,null,null,null,null,null,null,null,null,null,null,null,null,null,null,null,null,null,null,null,"Rompre : actions manuelles consistant après un certain temps de pointage, a rabattre une pâte levée, fermentée, pour en chasser les gaz produits, avant le façonnage.",null,5,"cuire à la vapeur",null,null,null,"Je vous conseille de faire l'acquisition de l'excellent ouvrage de Michel Grossmann et Alain Le Franc"]
[null,null,null,null,null,null,null,null,null,null,null,null,null,null,null,null,null,null,null,null,null,null,null,null,null,null,null,null,null,null,null,null,null,null,null,null,null,null,null,null,null,"Ruban : préparation qui, après avoir été travaillé au fouet ou à la spatule, se glisse comme un ruban lorsqu’on la fait retomber de hauteur (ex : génoise).",null,6,"cuire à l'eau salée"]
[null,null,null,null,null,null,null,null,null,null,null,null,null,null,null,null,null,null,null,null,null,null,null,null,null,null,null,null,null,null,null,null,null,null,null,null,null,null,null,null,null,"S",null,7,"cuire légèrement croquant"]
[null,null,null,null,null,null,null,null,null,null,null,null,null,null,null,null,null,null,null,null,null,null,null,null,null,null,null,null,null,null,null,null,null,null,null,null,null,null,null,null,null,"Sabler : opération qui consiste à brasser de la farine et de la matière grasse jusqu’à l’obtention d’un mélange rappelant la texture du sable.",null,8,"cuire sans coloration",null,null,null,"LA CUISINE DE COLLECTIVITÉ"]
[null,null,null,null,null,null,null,null,null,null,null,null,null,null,null,null,null,null,null,null,null,null,null,null,null,null,null,null,null,null,null,null,null,null,null,null,null,null,null,null,null,"T",null,9,"enfourner et cuire",null,null,null,"Cuisine et Pâtisserie"]
[null,null,null,null,null,null,null,null,null,null,null,null,null,null,null,null,null,null,null,null,null,null,null,null,null,null,null,null,null,null,null,null,null,null,null,null,null,null,null,null,null,"Tabler : technique de pré-cristallisation du chocolat de couverture sur un marbre.",null,10,"finir de cuire",null,null,null,"300 Fiches Techniques"]
[null,null,null,null,null,null,null,null,null,null,null,null,null,null,null,null,null,null,null,null,null,null,null,null,null,null,null,null,null,null,null,null,null,null,null,null,null,null,null,null,null,null,null,11,"griller et finir au four",null,null,null,"Éditions BPI 2006"]
[null,null,null,null,null,null,null,null,null,null,null,null,null,null,null,null,null,null,null,null,null,null,null,null,null,null,null,null,null,null,null,null,null,null,null,null,null,null,null,null,null,"Tourer : action de plier  en trois ou en quatre un pâton de pâte levée, feuilletée, après l’avoir allongée.",null,12,"laisser cuire"]
[null,null,null,null,null,null,null,null,null,null,null,null,null,null,null,null,null,null,null,null,null,null,null,null,null,null,null,null,null,null,null,null,null,null,null,null,null,null,null,null,null,"Tremper :",null,13,"passer au four très chaud"]
[null,null,null,null,null,null,null,null,null,null,null,null,null,null,null,null,null,null,null,null,null,null,null,null,null,null,null,null,null,null,null,null,null,null,null,null,null,null,null,null,null,"–  imbiber une pièce de pâtisseries avec du sirop",null,14,"piquer la sonde à cœur"]
[null,null,null,null,null,null,null,null,null,null,null,null,null,null,null,null,null,null,null,null,null,null,null,null,null,null,null,null,null,null,null,null,null,null,null,null,null,null,null,null,null,"–  enrober des bonbons, des intérieurs, des fruits dans du chocolat de couverture ou du fondant.",null,15,"préchauffer le four"]
[null,null,null,null,null,null,null,null,null,null,null,null,null,null,null,null,null,null,null,null,null,null,null,null,null,null,null,null,null,null,null,null,null,null,null,null,null,null,null,null,null,"V"]
[null,null,null,null,null,null,null,null,null,null,null,null,null,null,null,null,null,null,null,null,null,null,null,null,null,null,null,null,null,null,null,null,null,null,null,null,null,null,null,null,null,"Vanner : remuer une sauce ou une crème pendant son refroidissement pour la rendre homogène, limité son dessèchement en surface et accélérer sa descente en température."]
[null,null,null,null,null,null,null,null,null,null,null,null,null,null,null,null,null,null,null,null,null,null,null,null,null,null,null,null,null,null,null,null,null,null,null,null,null,null,null,null,null,"Z",null,1,"disperser au fouet"]
[null,null,null,null,null,null,null,null,null,null,null,null,null,null,null,null,null,null,null,null,null,null,null,null,null,null,null,null,null,null,null,null,null,null,null,null,null,null,null,null,null,"Zeste : peau découpée dans l’écorce des agrumes.",null,2,"dresser à la poche"]
[null,null,null,null,null,null,null,null,null,null,null,null,null,null,null,null,null,null,null,null,null,null,null,null,null,null,null,null,null,null,null,null,null,null,null,null,null,null,null,null,null,"Zester : retirer la partie extérieure de l’écorce d’agrumes (citrons, oranges, pamplemousse….) à l’aide d’un zesteur ou d’une râpe.",null,3,"dresser sur assiette"]
[null,null,null,null,null,null,null,null,null,null,null,null,null,null,null,null,null,null,null,null,null,null,null,null,null,null,null,null,null,null,null,null,null,null,null,null,null,null,null,null,null,null,null,4,"mélanger et porter à ébullition"]
[null,null,null,null,null,null,null,null,null,null,null,null,null,null,null,null,null,null,null,null,null,null,null,null,null,null,null,null,null,null,null,null,null,null,null,null,null,null,null,null,null,null,null,5,"mixer et passer au chinois"]
[null,null,null,null,null,null,null,null,null,null,null,null,null,null,null,null,null,null,null,null,null,null,null,null,null,null,null,null,null,null,null,null,null,null,null,null,null,null,null,null,"Lien >","https://www.passionpatisserie.fr/lexique",null,6,"rectifier l'assaisonnement"]
[null,null,null,null,null,null,null,null,null,null,null,null,null,null,null,null,null,null,null,null,null,null,null,null,null,null,null,null,null,null,null,null,null,null,null,null,null,null,null,null,null,null,null,7,"rendre onctueux l'appareil"]
[null,null,null,null,null,null,null,null,null,null,null,null,null,null,null,null,null,null,null,null,null,null,null,null,null,null,null,null,null,null,null,null,null,null,null,null,null,null,null,null,"Lien >","http://devenir.patissier.free.fr/cours-CAP-vocabulaire-professionnel-eleve.pdf",null,8,"répartir le fond de cuisson"]
[]
[null,null,null,null,null,null,null,null,null,null,null,null,null,null,null,null,null,null,null,null,null,null,null,null,null,null,null,null,null,null,null,null,null,null,null,null,null,null,null,null,"Lien >","http://technologiepatisserie.blogspot.com/p/le-vocabulaire-professionnel-en.html"]
[null,null,null,null,null,null,null,null,null,null,null,null,null,null,null,null,null,null,null,null,null,null,null,null,null,null,null,null,null,null,null,null,null,null,null,null,null,null,null,null,null,null,null,1,"débarrasser dans un récipient"]
[null,null,null,null,null,null,null,null,null,null,null,null,null,null,null,null,null,null,null,null,null,null,null,null,null,null,null,null,null,null,null,null,null,null,null,null,null,null,null,null,"Lien >","https://devenirpatissier.fr/vocabulaire-professionnel/",null,2,"filmer et stocker en chambre froide"]
[null,null,null,null,null,null,null,null,null,null,null,null,null,null,null,null,null,null,null,null,null,null,null,null,null,null,null,null,null,null,null,null,null,null,null,null,null,null,null,null,null,null,null,3,"refroidir en cellule"]
[null,null,null,null,null,null,null,null,null,null,null,null,null,null,null,null,null,null,null,null,null,null,null,null,null,null,null,null,null,null,null,null,null,null,null,null,null,null,null,null,"Lien >","https://www.encoreungateau.com/pourquoi-un-blog-de-patisserie/vocabulaire-du-patissier/",null,4,"réserver au frais"]
[null,null,null,null,null,null,null,null,null,null,null,null,null,null,null,null,null,null,null,null,null,null,null,null,null,null,null,null,null,null,null,null,null,null,null,null,null,null,null,null,null,null,null,5,"réserver au froid"]
[null,null,null,null,null,null,null,null,null,null,null,null,null,null,null,null,null,null,null,null,null,null,null,null,null,null,null,null,null,null,null,null,null,null,null,null,null,null,null,null,null,null,null,6,"reserver dans des bacs"]
[null,null,null,null,null,null,null,null,null,null,null,null,null,null,null,null,null,null,null,null,null,null,null,null,null,null,null,null,null,null,null,null,null,null,null,null,null,null,null,null,null,null,null,7,"stocker en chambre froide"]
[]
[]
[null,null,null,null,null,null,null,null,null,null,null,null,null,null,null,null,null,null,null,null,null,null,null,null,null,null,null,null,null,null,null,null,null,null,null,null,null,null,null,null,null,null,null,1,"maintenir à température + 63°C"]
[null,null,null,null,null,null,null,null,null,null,null,null,null,null,null,null,null,null,null,null,null,null,null,null,null,null,null,null,null,null,null,null,null,null,null,null,null,null,null,null,null,null,null,2,"maintenir au bain marie + 65°C"]
[null,null,null,null,null,null,null,null,null,null,null,null,null,null,null,null,null,null,null,null,null,null,null,null,null,null,null,null,null,null,null,null,null,null,null,null,null,null,null,null,null,null,null,3,"maintenir au froid + 3°C maxi"]
[null,null,null,null,null,null,null,null,null,null,null,null,null,null,null,null,null,null,null,null,null,null,null,null,null,null,null,null,null,null,null,null,null,null,null,null,null,null,null,null,null,null,null,4,"servir tiède"]

{"sheet":"Cuisiniers.Pesez","index":9,"n_rows":877,"n_cols":17,"rows_kept":877,"cut":false,"hidden":false,"merged":[[1,1,1,16],[2,1,2,16],[3,1,3,16],[4,1,4,16],[5,2,5,16],[7,1,9,16],[65,2,65,5],[67,2,67,3],[67,12,67,15],[68,12,71,15],[69,2,69,4],[71,2,71,4],[11,1,11,16],[43,12,48,15],[50,12,53,15],[58,12,61,15],[60,2,60,7],[62,12,64,15],[63,2,63,9],[106,2,106,10],[107,2,107,10],[108,2,108,10],[109,2,109,10],[110,1,112,1],[110,2,112,10],[72,12,74,15],[73,2,73,4],[75,2,75,5],[75,12,77,15],[85,1,85,11],[87,4,91,11],[128,2,128,5],[131,2,131,8],[133,2,133,3],[136,2,136,5],[139,2,139,5],[142,2,142,3],[113,1,115,1],[113,2,115,10],[116,1,120,1],[116,2,120,10],[124,2,124,7],[126,2,126,5],[218,1,218,16],[219,1,220,16],[221,1,221,16],[222,1,222,4],[222,6,222,8],[222,10,222,12],[222,14,222,15],[144,2,144,5],[147,2,147,6],[151,2,151,7],[153,2,153,5],[155,2,155,5],[157,2,157,5],[225,1,225,4],[225,6,225,8],[225,10,226,12],[225,14,225,15],[226,1,226,4],[226,6,226,8],[226,14,226,15],[223,1,223,4],[223,6,223,8],[223,10,223,12],[223,14,223,15],[224,1,224,4],[224,6,224,8],[224,10,224,12],[224,14,224,15],[229,1,229,4],[229,6,229,8],[229,10,229,12],[229,14,229,15],[230,1,230,4],[230,6,230,8],[230,10,230,12],[230,14,230,15],[227,1,227,4],[227,6,227,8],[227,10,227,12],[227,14,227,15],[228,1,228,4],[228,6,228,8],[228,10,228,12],[228,14,228,15],[235,1,235,4],[235,6,235,8],[235,10,235,12],[235,14,235,16],[238,1,238,3],[242,1,243,6],[242,8,242,14],[231,1,231,4],[231,6,231,8],[231,10,231,12],[231,14,231,15],[232,14,232,15],[234,6,234,8],[243,0,267,0],[250,1,250,6],[254,8,254,14],[255,8,258,8],[255,9,258,9],[255,10,256,11],[255,12,256,12],[255,13,256,13],[255,14,256,14],[256,5,256,6],[261,8,262,14],[262,1,263,1],[262,2,263,2],[262,4,263,4],[262,5,263,5],[264,1,264,6],[264,8,265,13],[257,5,257,6],[257,10,258,11],[257,12,258,12],[257,13,258,13],[257,14,258,14],[259,1,260,1],[259,2,260,2],[259,4,260,4],[259,5,260,5],[260,8,260,14],[266,1,267,6],[266,8,267,13],[268,8,269,8],[268,9,269,9],[268,10,269,10],[268,11,269,11],[268,12,269,12],[268,13,269,13],[269,1,269,6],[270,0,288,0],[270,1,271,6],[270,8,271,8],[270,9,271,9],[270,10,271,10],[270,11,271,11],[276,8,277,8],[276,9,277,9],[276,10,277,10],[276,11,277,11],[270,12,271,12],[270,13,271,13],[272,1,274,6],[272,8,273,13],[274,8,275,8],[274,9,275,9],[274,10,275,10],[274,11,275,11],[274,12,275,12],[274,13,275,13],[276,12,277,12],[276,13,277,13],[280,8,281,13],[283,8,285,12],[286,1,288,5],[286,8,287,8],[286,9,287,9],[286,10,287,10],[286,11,287,11],[286,12,287,12],[288,8,289,8],[288,9,289,9],[288,10,289,10],[288,11,289,11],[288,12,289,12],[290,1,291,6],[290,8,291,8],[290,9,291,9],[290,10,291,10],[290,11,291,11],[290,12,291,12],[292,1,293,1],[292,2,293,2],[292,3,293,3],[292,4,293,4],[292,5,293,6],[292,8,293,8],[292,9,293,9],[292,10,293,10],[292,11,293,11],[294,12,295,12],[296,1,296,6],[296,8,297,8],[296,9,297,9],[296,10,297,10],[296,11,297,11],[296,12,297,12],[292,12,293,12],[294,1,295,1],[294,2,295,2],[294,3,295,3],[294,4,295,4],[294,5,295,6],[294,8,295,8],[294,9,295,9],[294,10,295,10],[294,11,295,11],[306,1,307,1],[306,2,307,3],[306,4,307,5],[306,6,307,7],[306,8,307,9],[306,10,307,10],[298,8,298,12],[299,8,300,12],[302,1,303,10],[304,1,304,10],[305,2,305,3],[305,4,305,5],[305,6,305,7],[305,8,305,9],[312,1,312,10],[313,2,313,10],[314,1,315,1],[314,2,315,10],[316,1,316,10],[317,1,317,4],[309,1,309,10],[310,1,311,1],[310,2,311,3],[310,4,311,5],[310,6,311,7],[310,8,311,9],[310,10,311,10],[320,1,321,10],[323,1,325,13],[326,2,326,12],[327,2,327,12],[328,2,329,12],[330,3,330,12],[318,1,318,2],[318,4,318,5],[318,7,318,8],[319,1,319,2],[319,4,319,5],[319,7,319,8],[331,8,333,8],[331,11,333,11],[331,12,333,12],[335,2,336,2],[335,3,336,3],[335,4,336,4],[335,5,336,5],[335,6,336,6],[335,7,336,7],[335,8,336,8],[331,2,333,2],[331,3,333,3],[331,4,333,4],[331,5,333,5],[331,6,333,6],[331,7,333,7],[335,11,336,11],[335,12,336,12],[340,3,340,12],[341,2,341,11],[342,2,343,2],[342,3,343,3],[342,4,343,4],[342,5,343,5],[342,6,343,6],[342,7,343,7],[354,3,354,12],[355,2,357,12],[363,2,364,12],[370,2,371,12],[373,1,373,9],[374,1,374,9],[342,8,343,8],[342,11,343,11],[342,12,343,12],[344,3,344,8],[349,9,350,10],[349,11,350,12],[375,1,376,9],[379,1,380,9],[381,1,382,9],[383,1,384,2],[383,3,384,3],[383,4,384,4],[383,5,384,5],[383,6,384,6],[383,7,384,7],[383,8,384,8],[410,1,410,2],[410,5,410,6],[410,8,410,9],[410,12,410,13],[411,1,415,1],[411,2,415,2],[411,8,415,8],[411,9,415,9],[383,9,384,9],[389,1,391,9],[392,1,393,9],[401,1,402,9],[409,1,409,6],[409,8,409,13],[430,10,430,13],[433,10,433,12],[442,1,443,6],[442,8,443,9],[442,10,443,11],[442,12,443,12],[442,13,443,13],[420,5,421,8],[420,10,421,13],[422,10,422,13],[423,5,423,8],[423,10,423,13],[424,10,425,10],[424,11,425,11],[424,12,425,12],[424,13,425,13],[444,1,445,6],[444,8,444,9],[445,8,445,9],[446,2,446,6],[446,8,446,9],[447,2,447,6],[447,8,447,9],[429,5,429,8],[430,5,430,8],[453,1,454,1],[453,2,454,6],[455,1,456,1],[455,2,456,6],[459,1,460,2],[459,3,460,3],[459,4,460,4],[448,2,448,6],[448,8,448,9],[449,2,449,6],[450,2,450,6],[451,2,451,6],[452,2,452,6],[460,13,461,13],[461,1,462,1],[461,2,462,2],[461,3,462,3],[461,4,462,4],[462,7,463,7],[462,8,463,8],[462,9,463,9],[462,10,463,10],[462,11,463,11],[460,7,461,7],[460,8,461,8],[460,9,461,9],[460,10,461,10],[460,11,461,11],[460,12,461,12],[462,12,463,12],[462,13,463,13],[464,1,465,1],[464,2,465,2],[464,3,465,3],[464,4,465,4],[464,7,464,13],[465,7,466,7],[465,8,466,8],[465,9,466,9],[465,10,466,10],[465,11,466,11],[465,12,466,12],[465,13,466,13],[466,1,467,1],[466,2,467,2],[466,3,467,3],[466,4,467,4],[467,7,467,13],[468,1,468,4],[470,1,471,16],[473,1,473,13],[474,0,497,0],[474,1,475,13],[476,1,477,13],[487,2,487,12],[488,7,488,12],[489,3,489,4],[496,1,497,13],[530,1,530,9],[543,1,543,6],[543,8,543,13],[551,9,551,13],[561,12,561,13],[562,6,563,7],[562,12,562,13],[499,1,499,13],[500,0,516,0],[500,1,501,13],[502,1,503,13],[504,1,504,13],[506,1,506,2],[506,6,506,7],[506,10,506,11],[515,1,516,13],[580,6,580,7],[581,6,581,7],[585,6,585,7],[586,6,586,7],[603,1,603,6],[609,1,609,4],[568,12,568,13],[569,6,570,7],[569,12,569,13],[571,12,571,13],[576,12,576,13],[578,6,579,7],[635,2,635,4],[635,7,635,8],[635,10,635,11],[636,2,636,4],[636,7,636,8],[636,10,636,11],[612,1,612,5],[616,1,616,6],[617,1,617,6],[623,1,623,5],[627,1,627,4],[634,2,634,11],[639,2,639,4],[639,7,639,8],[639,10,639,11],[640,2,640,4],[640,7,640,8],[640,10,640,11],[637,2,637,4],[637,7,637,8],[637,10,637,11],[638,2,638,4],[638,7,638,8],[638,10,638,11],[643,2,643,4],[647,2,647,11],[648,2,648,11],[649,2,649,11],[650,2,650,11],[651,2,651,11],[641,2,641,4],[641,7,641,8],[641,10,641,11],[642,2,642,4],[642,7,642,8],[642,10,642,11],[666,3,666,5],[668,3,668,5],[670,3,670,5],[675,2,675,11],[677,2,680,11],[681,2,684,11],[688,8,689,8],[688,9,689,9],[653,2,655,2],[654,3,654,5],[655,3,655,5],[657,2,662,2],[658,3,658,5],[659,3,659,5],[660,3,660,5],[661,3,661,5],[662,3,662,5],[685,2,686,5],[685,6,686,7],[685,8,686,8],[685,9,686,10],[685,11,686,11],[688,2,689,3],[688,4,689,4],[688,5,689,5],[688,6,689,6],[688,7,689,7],[703,2,703,12],[704,2,704,12],[705,4,705,12],[706,2,706,12],[707,2,708,3],[707,4,708,5],[691,10,692,11],[693,2,694,2],[693,3,694,3],[693,4,694,5],[693,6,694,6],[693,7,694,7],[693,9,694,9],[693,10,694,11],[691,2,692,2],[691,3,692,3],[691,4,692,5],[691,6,692,6],[691,7,692,7],[691,8,692,9],[714,2,715,3],[714,4,715,5],[714,6,715,8],[714,12,715,12],[716,2,716,3],[716,4,716,5],[716,6,716,8],[709,2,709,3],[709,4,709,5],[710,2,710,3],[710,4,710,5],[712,2,712,12],[713,4,713,12],[723,2,724,3],[723,4,724,5],[723,6,724,6],[723,7,724,12],[725,2,725,12],[726,2,726,3],[726,4,726,5],[717,2,717,3],[717,4,717,5],[717,6,717,8],[721,2,722,3],[721,4,722,5],[721,6,722,6],[721,7,721,12],[730,2,730,3],[730,4,730,5],[731,2,731,3],[731,4,731,5],[732,2,732,3],[732,4,732,5],[727,2,727,3],[727,4,727,5],[728,2,728,3],[728,4,728,5],[729,2,729,3],[729,4,729,5],[736,2,736,3],[736,4,736,5],[737,2,737,3],[737,4,737,5],[740,2,742,12],[746,1,746,13],[733,2,733,3],[733,4,733,5],[734,2,734,3],[734,4,734,5],[735,2,735,3],[735,4,735,5],[748,1,748,13],[752,9,752,11],[762,0,763,0],[762,1,763,12],[762,13,763,13],[764,0,789,0],[764,1,764,13],[765,1,768,13],[769,1,769,13],[770,11,770,12],[787,2,787,13],[788,2,788,13],[789,1,789,13],[791,0,792,0],[791,1,792,12],[791,13,792,13],[771,11,771,12],[783,2,783,3],[783,5,783,6],[783,8,783,9],[783,11,783,12],[785,1,786,13],[825,1,825,13],[829,0,830,16],[819,5,819,6],[819,8,819,9],[819,11,819,12],[821,1,822,13],[823,2,823,13],[824,2,824,13],[793,0,825,0],[793,1,793,13],[794,1,797,13],[798,1,798,13],[799,11,799,12],[800,11,801,12],[807,1,807,13],[808,11,808,12],[809,11,809,12],[819,2,819,3]]}
[{"$f":"CELL(\"largeur\",A1)","v":3},15,15,15,15,15,15,15,15,15,15,15,15,15,11,16,11]
[null,"Cuisiniers : PESEZ …..Evitez les volumes , n'utilisez que les poids comme les pâtissiers"]
[null,"Les cuisiniers \"sont des artistes\"……..ce qui ne doit pas les empêcher … d'UTILISEZ UNE BALANCE…...les résultats seront plus réguliers"]
[null,"Cuisiniers : PESEZ …..même le sel…..on ne sale pas 50L de sauce à la \"chichette\" au \"pif\" ou à l'expérience"]
[null," la sauce crémée ne se sale pas comme la sauce tomatée etc……."]
[null,"lien >","Les unités pifométriques"]
[]
[null,"Mise à jour du 16 décembre 2017 - Annule ou complète les versions précédentes lies liens sont parfois éphémères; pas de panique…..demandez à Google …il vous retrouvera un lien équivalent"]
[]
[]
[]
[null,"J'attire votre attention pour la saisie des quantités    supposons qu'il y ait 400g de viande 2 œufs ou 2 pieds de veau et 5 cl de crème dans la recette …..Excel aura du mal à faire la différence"]
[]
[null,null,"ATTENTION : les saisies des poids unitaires se font en gramme"]
[]
[null,null,"Unités","Quoi","Poids Unitaire","❹ ingrédients",null,null,null,null,null,null,null,"quelques numérotation pour les process"]
[]
[null,null,"pour 1.050Kg  saisissez 1050 la cellule est formatée pour ajouter g",null,null,null,null,null,null,null,null,null,null,"❶"]
[null,null,null,null,1050,"bœuf",null,null,null,null,null,null,null,"❷","Vous pouvez coller ces formes dans vos fiches"]
[null,null,null,null,400,"veau",null,null,null,null,null,null,null,"❸"]
[null,null,null,null,null,null,null,null,null,null,null,null,null,"❹"]
[null,null,"le poids UNITAIRE pour les RECETTES AU POIDS est indispensable",null,null,null,null,null,null,null,null,null,null,"❺"]
[null,null,"(pas le poids des 2 œufs \"100g\" mais le poids d'UN œuf de 50g par exemple)",null,null,null,null,null,null,null,null,null,null,"❻"]
[null,null,null,null,null,null,null,null,null,null,null,null,null,"❼"]
[null,null,"Unités","Quoi","Poids Unitaire","❹ ingrédients",null,null,null,null,null,null,null,"❽"]
[null,null,2,"œufs",50,"Œufs de 50 g",null,null,null,null,null,null,null,"❾"]
[null,null,"saisir QUOI pour les œufs n'est pas obligatoire ",null,null,null,null,null,null,null,null,null,null,"❿"]
[null,null,"mais pour une pincée d'épices…une cuillère à café….une brindille c'est indispensable",null,null,null,null,null,null,null,null,null,null,"⓫"]
[null,null,null,null,null,null,null,null,null,null,null,null,null,"⓬"]
[null,null,"Recettes à la PORTION",null,null,null,null,null,null,null,null,null,null,"⓭"]
[null,null,"pour les recettes à la portion vous avez la possibilité de ne pas ajouter le poids unitaire de certains ingrédients",null,null,null,null,null,null,null,null,null,null,"⓮"]
[null,null,"si vous saisissez 2 œufs c'est possible; mais pas dans la même colonne cela fausserait le poids total ",null,null,null,null,null,null,null,null,null,null,"⓯"]
[null,null,"Excel calculera 2 comme 2 Kg",null,null,null,null,null,null,null,null,null,null,"⓰"]
[null,null,"donc pour les produits à l'unité saisissez vos valeurs dans la première colonne",null,null,null,null,null,null,null,null,null,null,"⓱"]
[null,null,null,null,null,null,null,null,null,null,null,null,null,"⓲"]
[null,null,"Unités","Quoi","Poids Unitaire","❹ ingrédients",null,"FORMATS POUR LES FICHES AU Kg",null,null,"rapportez tout au Kg = 0,400 Kg de viande",null,null,"⓳"]
[null,null,2,"œufs",null,"Œufs de 50 g",2,"œufs",0.05,2,"œufs",0.05,"Œufs de 50 g","⓴"]
[null,null,5,"C/C",null,"vinaigre",5,"C/C",null,5,"C/C",null,"vinaigre"]
[null,null,1,"pincée",null,"paprika",1,"pincée",null,1,"pincée",null,"paprika",null,"symbole diamètre "]
[null,null,1,"branche",null,"laurier",1,"branche",null,1,"branche",null,"laurier",null," Ø"]
[null,null,1,"pied",null,"pied de veau",1,"pied",null,1,"pied",null,"pied de veau",null,"\u0098"]
[null,null,null,null,null,null,null,null,null,null,null,null,null,"\u0084","\u0083"]
[null,null,"les ¼ de botte de fines herbes en 0,25 les demi = 0.5 les 3/4 = 0.75"]
[null,null," idem pour les feuilles de gélatine les pieds de veau -les feuilles de basilic etc….",null,null,null,null,null,null,null,null,null,"Avant de saisir quoi que ce soit dans une cellule cliquez dessus pour vérifier qu'il n'y ait pas de formule"]
[null,null,0.5,"feuilles",null,"gélatine",null,"C/C","cuillère/Café"]
[null,null,0.25,"botte",null,"fines herbes",null,"C/P","cuillère/Potage"]
[]
[null,null,"Convertissez tout de suite les volumes en poids sur la base de 1L = 1Kg "]
[null,null,"5 cl = 50g"]
[null,null,"sauf cas exeptionnel pour recettes de précision "]
[null,null,null,"Pour le lait entier, la densité donnée habituellement est de 1,030 par rapport à l'eau qui est de 1. ",null,null,null,null,null,null,null,null,"Pour imprimer : sélectionnez les recettes qui vous conviennent : définir la zone d'impression -Mise à l'échelle : Ajuster la feuille à 1 page"]
[null,null,null,"On peut donc considérer que les 0,030 corespondent à la graisse du lait entier. "]
[null,null,null,"Pour le lait demi-écrémé, la graisse ne devrait représenter que 0,030/2, donc 0,015. "]
[null,null,null,"Donc la masse d'un litre de lait demi-écrémé doit être de 1,015 Kg (1015 g)."]
[]
[]
[]
[null,null,"Poids des aliments sur internet"]
[null,"lien >","http://www.aliments.org/poids.htm",null,null,null,null,null,null,null,null,null,"les valeurs #DIV/0!  indiquent seulement que les recettes sont \"vierges\" sur la feuille de saisie "]
[]
[null,"lien >","http://www.nubel.be/fra/manual/liste_des_denrees_alimentaires.asp"]
[]
[null,null,"Tableau des calibres Fruits Frais",null,null,null,null,null,null,null,null,null,"si vous n'utilisez pas toutes les lignes vous pouvez masquer cette valeur par une couleur de police BLANC"]
[null,"lien >","http://www.crenoexpert.fr/flipbooks/expproduit/TABLEAUX-CALIBRES-FRUITS-2.pdf"]
[]
[null,"lien >","ff-documents-apprentis-Patissiers.xlsx"]
[]
[null,"lien >","ff-Croquis.xlsx",null,null,null,null,null,null,null,null,null,"POUR LES FICHES RECETTES A LA PORTION"]
[null,null,null,null,null,null,null,null,null,null,null,null," Nb de portions Si vous estimez que les grammages sont trop ou pas assez copieux pour vos convives : modifiez les sur ces tableaux les modifications se feront sur le tableau à imprimer"]
[null,"lien >","ff-qualiterecettes2007.xls"]
[]
[null,"lien >","ff-tableau-cuisson.pdf"]
[null,null,null,null,null,null,null,null,null,null,null,null,"Pas assez copieux : diminuez le nombre de portions cela augmentera les grammages à la portion sur le tableau à imprimer"]
[null,"lien >","PT-bonnes-pratiques.doc   "]
[]
[null,"lien >","Banque d'images pour agrémenter vos documents",null,null,null,null,null,null,null,null,null,"Trop copieux : augmentez le nombre de portions cela diminuera les grammages à la portion sur le tableau à imprimer"]
[]
[]
[]
[]
[]
[null,null,"Numérotation Format : Images pour compléter parce que les Symboles sont limités au N° 20"]
[]
[]
[]
[null,"formats personnalisés"]
[]
[null,"0.00\\ \" cm³\"",3,null,"Dans caractères spéciaux => symboles => Nombres et symboles. Là tu descends (tu as d'abord une série de nombre entourés, puis des nombres sous fractions, ...) et enfin tu as deux lignes de 0 à 9 écrit petit, ceux sont eux, les exposants et les indices."]
[]
[null,"le ³ se fait en tapant alt+0179"]
[]
[null,"le ² se fait en tapant alt+0178"]
[]
[null,null,null,null,null,"ou en copier-coller","m² ","M² ","m³ ","M³ ","cm² ","cm³ "]
[]
[null,"Format | cellule | personnalisé | 0\" m²\"",null,null,null,"❶","❷","❸","❹","❺","X","t"]
[]
[null,"❻","❼","❽","❾","❿","⓫","⓬","⓭","⓮","Z","q"]
[]
[null,null,null,"N° de colonne",{"$f":"COLUMN()","v":5},null,"Adresse de cellule",{"$f":"ADDRESS(ROW(),COLUMN(),4)","v":"H100"},null,null,"u","p"]
[]
[null,null,null,"Fonction : Adresse colonne",{"$f":"LEFT(ADDRESS(1,COLUMN(),4),LEN(ADDRESS(1,COLUMN(),4))-1)","v":"E"},null,"N° de ligne",{"$f":"ROW()","v":102},null,"le ³ se fait en tapant alt+0179"]
[]
[null,null,"Adresse PC",{"$f":"CELL(\"nomfichier\")","v":"E:\\0-UPRT\\1-UPRT.FR-SITE-WEB\\re-recettes-jean-marc-catteau\\re-catteau-galettes\\[PC-galette-garniture-mexicaine.xls]original"}]
[]
[]
[null,"A","TEST POLICE DE CARACTERES"]
[null,"B","Saisir une ou des lettres / nombres ou une phrase cellule C jaune"]
[null,"C","Saisir ICI"]
[null,null,"Sélectionnez toute les cellules  ci-dessous et changez de police de caractère pour voir"]
[null,"C",{"$f":"C109","v":"Saisir ICI"}]
[]
[]
[null,"A",{"$f":"+C107","v":"TEST POLICE DE CARACTERES"}]
[]
[]
[null,"B",{"$f":"+C108","v":"Saisir une ou des lettres / nombres ou une phrase cellule C jaune"}]
[]
[]
[]
[]
[]
[]
[null,null,"Tables des caractères Unicode - Alphanumériques cerclés"]
[null,"lien >","caractères  Alphanumériques cerclés"]
[]
[null,"lien >","http://unicode.org/"]
[]
[null,"lien >","visualiseur d'Emoji et de symboles"]
[]
[null,null,"Sélection de polices pour l'école "]
[null,"lien >","https://pragmatice.net/kitinstit/3_installer_produire_polices_selection.htm"]
[]
[null,"lien >","http://www.philing.net/"]
[]
[null,null,"Petites leçons de Typographie"]
[null,"lien >","http://jacques-andre.fr/faqtypo/lessons.pdf"]
[]
[null,null,"Document à télécharger"]
[null,"lien >","Mémo caractères spéciaux sous Windows "]
[]
[null,null,"Polices de Caractères à Télécharger"]
[null,"lien >","http://fr.fontriver.com/"]
[]
[null,"lien >","http://fr.fonts2u.com/category.html?id=21"]
[]
[null,null,"Retrouver une police utilisée - TechTour : Démo "]
[null,"lien >","https://www.youtube.com/watch?v=wMgBzUHzKvM"]
[]
[]
[null,"3 sites à conserver pour vos recherches de formules Excel "]
[null,null,"https://web.archive.org/web/20150919082310/http://www.excelabo.net/"]
[]
[null,null,"http://www.mdf-xlpages.com/modules/publisher/"]
[]
[null,null,"Excel Québec : Formules et fonctions Excel"]
[]
[null,null,"https://www.excel-downloads.com/resources/"]
[]
[null,"Utilitaire pour supprimer les espace vides dans une phrase"]
[null,null,null,"exemple de texte avec espaces (83 caractères en comptant les espaces)"]
[null,null,null,"•Contamination microbiologique (B)             •Multiplication des germes (B)      "]
[null,null,null,"•Contaminationmicrobiologique(B)•Multiplicationdesgermes(B)",null,null,null,null,"59 caractères en comptant les points"]
[null,"Collez votre texte avec espaces dans la cellule blanche"]
[null,null,null,{"$f":"LEN(F165)","v":58},"Caractères","Utilitaire pour supprimer les espace vides dans une phrase"]
[]
[null,"Récupérez votre texte dans la cellule verte "]
[null,null,null,{"$f":"LEN(F168)","v":50},"Caractères",{"$f":"SUBSTITUTE(F165,\" \",\"\")","v":"Utilitairepoursupprimerlesespacevidesdansunephrase"}]
[null,null,"cliquez sur la cellule verte puis sur sur Copier "]
[null,null,"placez vous dans votre document : "]
[null,null," puis collage spécial Valeur pour ne pas copier la formule"]
[]
[null,null,"la formule utilisée : ","SUBSTITUE(G525;\" \";\"\")"]
[]
[]
[null,null,null,"Excel Québec : Formules et fonctions Excel"]
[]
[null,null,"Quelques fonctions d'excel",null,null,null,null,null,"Publié le","Vues"]
[null,null,"Rechercher une Fonction",null,null,null,null,null,"2013-05-28",4416]
[null,null,"T() - Tester et renvoyer du texte",null,null,null,null,null,"2012-07-02",14900]
[null,null,"EPURAGE() - Supprimer certains caractères indésirables",null,null,null,null,null,"2012-06-02",36257]
[null,null,"REMPLACER() - Echanger une chaîne de caractères par une autre",null,null,null,null,null,"2012-06-02",14390]
[null,null,"CTXT() - Convertir un nombre en texte",null,null,null,null,null,"2012-05-23",48910]
[null,null,"REPT() - Répéter des caractères un certain nombre de fois",null,null,null,null,null,"2012-04-26",14751]
[null,null,"L'Assistant Somme Conditionnelle",null,null,null,null,null,"2011-11-01",10084]
[null,null,"CELLULE() - Nom de l'onglet, du fichier ou du répertoire dans une cellule",null,null,null,null,null,"2010-10-03",45222]
[null,null,"EXACT() - Comparer deux chaînes de texte",null,null,null,null,null,"2010-04-26",65784]
[null,null,"Purgez les espaces inutiles !",null,null,null,null,null,"2010-04-05",96965]
[null,null,"SUPPRESPACE() - Supprimer les espaces inutiles dans une cellule",null,null,null,null,null,"2010-04-05",45902]
[null,null,"STXT() - Extraire une chaîne de caractères au sein d'une autre",null,null,null,null,null,"2010-03-13",122444]
[null,null,"CHERCHE() TROUVE() - Retourne la position d'une chaîne de caractères",null,null,null,null,null,"2010-01-04",100241]
[null,null,"NBCAR() - Compter les caractères d'une chaîne de texte ou d'une plage de cellules",null,null,null,null,null,"2009-11-21",23956]
[null,null,"SUBSTITUE() - Remplacer une chaîne de texte par une autre",null,null,null,null,null,"2009-11-08",113684]
[null,null,"CAR() - CODE() : Utilisation des codes caractères",null,null,null,null,null,"2009-10-25",27154]
[null,null,"CONCATENER() - Assembler plusieurs chaînes de texte en une seule.",null,null,null,null,null,"2009-10-10",25774]
[null,null,"TEXTE() - Convertir une valeur numérique en texte formaté",null,null,null,null,null,"2009-09-29",79344]
[null,null,"DROITE() - GAUCHE() : Extraire les premiers ou derniers caractères d'une chaîne.",null,null,null,null,null,"2009-09-12",145176]
[null,null,"MAJUSCULE() - MINUSCULE() - NOMPROPRE(): Modifier la casse d'un texte",null,null,null,null,null,"2009-08-23",7657]
[null,null,"CNUM() - Convertir une chaîne en valeur numérique",null,null,null,null,null,"2009-08-19",45164]
[null,null,"DATEDIF() : Calculer la différence entre deux dates",null,null,null,null,null,"2009-07-26",105218]
[null,null,"Nommer une Plage Dynamique",null,null,null,null,null,"2008-12-06",59780]
[null,null,"Nommer une Plage de Cellules",null,null,null,null,null,"2008-12-05",75563]
[null,null,"Références Relatives & Absolues",null,null,null,null,null,"2008-12-05",15781]
[null,null,"Formule pour Nombres Premiers"]
[]
[null,null,"UN EXEMPLE DE GRAPHIQUE - cliquez dessus pour le modifier"]
[]
[]
[]
[]
[]
[]
[]
[]
[]
[]
[]
[]
[1,"TABLEAUX  DIVERS A COPIER / COLLER DANS VOS DOCUMENTS"]
[null,"Certains tableaux ont à peu près les mêmes fonctions pour vous laisser le libre choix  en fonction de votre utilisation"]
[]
[null,"LIENS INTERNET POUR RECHERCHE DE FORMULES"]
[null,"http://matoumatheux.ac-rennes.fr/sommaire.php?niv=6",null,null,null,null,"Le sirop de menthe",null,null,null,"Le gâteau de riz",null,null,null,"Les rubans"]
[null,"http://matoumatheux.ac-rennes.fr/admin/capture/chargement.htm",null,null,null,null,"Le cocktail mi-raisin",null,null,null,"Le far breton",null,null,null,"L'aire d'un disque"]
[null,"http://matoumatheux.ac-rennes.fr/accueil.htm",null,null,null,null,"Le cocktail verger",null,null,null,"La boulangerie",null,null,null,"Le rayon d'un disque"]
[null,"http://matoumatheux.ac-rennes.fr/divers/general/accueil.htm",null,null,null,null,"Le cocktail banane",null,null,null,"http://matoumatheux.ac-rennes.fr/geom/unite/accueil6.htm",null,null,null,"L'aire d'une couronne"]
[null,"http://matoumatheux.ac-rennes.fr/divers/liens/liens.htm",null,null,null,null," Le cocktail rouge",null,null,null,null,null,null,null,"L'aire latérale d'un cylindre"]
[null,"La multiplication avec les doigts",null,null,null,null,"Le sirop de menthe",null,null,null,"Conversions d'unités de longueur",null,null,null,"Le volume d'un cylindre"]
[null,"Classer des questions",null,null,null,null,"Rectangle ou disque",null,null,null,"Conversion d'unités de masse",null,null,null,"Le volume d'un cylindre"]
[null,"Les seringues",null,null,null,null,"Segment",null,null,null,"Attaché à un piquet",null,null,null,"Le mille-feuille"]
[null,"Les étiquettes",null,null,null,null,"Colorier un poisson",null,null,null,"Attaché à un piquet (1)",null,null,null,"L'aire d'un rectangle"]
[null,"Le verre mesureur",null,null,null,null,"La crème pâtissière",null,null,null,"Le chien fait le tour de son domaine",null,null,null,"Le gâteau"]
[null,null,null,null,null,null,null,null,null,null,null,null,null,null,"La casserole"]
[]
[null,null,null,null,null,null,"177 vidéos dans cette partie"]
[null,"http://webtv.ac-versailles.fr/restauration/Patisserie",null,null,null,null,"http://webtv.ac-versailles.fr/restauration/Patisserie",null,null,null,"http://chefsimon.lemonde.fr/recettes/tag/dessert",null,null,null,"https://www.google.fr/webhp?sourceid=chrome-instant&ion=1&espv=2&ie=UTF-8#q=RECETTES+PATISSERIE"]
[]
[]
[null,"Vous recherchez un décor  >",null,null,"cake design",null,"wedding cake photos",null,null,"wedding cake youtube",null,null,"FAIRE UN GÂTEAU VÉGÉTAL AVEC LES FLEURS DU JARDIN"]
[]
[]
[]
["ICI","Différentes formules pour calculer l'Aire ou surface du cercle",null,null,null,null,null,null,"CONVERSIONS"]
["Différentes formules pour calculer l'Aire ou surface du cercle",null,null,null,null,null,null,null,"1m2 = 10.000 cm2 ",null,null,"1 cm = 0,01 m donc "]
[null,null,null,null,null,null,null,null,"ou ",null,null,"1 cm² = 0,01 x 0,01 = 0,0001 m² = 10^-4 m² "]
[null,"❶","PI()*(Rayon^2)",null,null,null,null,null,"1cm2=1/10.000 m2"]
[null,"❷","PI()*(Rayon*Rayon)",null,null,null,null,null,"1cm^2=0.0001m^2",null,null,"Pour passer de m² en cm² il faut faire l'inverse "]
[null,"❸","PI()*(Diamètre/2)*(Diamètre/2)",null,null,null,null,null,"17 cm²=0.0017 m². ",null,null,"1 m = 100 cm "]
[null,null,null,null,null,null,null,null,null,null,null,"1 m² = 100 x 100 = 10 000 cm²"]
[]
[null,"Différentes formules pour calculer le volume d'un entremet",null,null,null,null,null,null,"10 000 cm2 = 100 dm2 = 1 m2 ",null,null,"copier/coller"]
[null,null,null,null,null,null,null,null,"1 cm2 = 0.001 dm2 = 0.00001 m2",null,null,0,0,0,0]
[null,"❶","((PI()*(Rayon^2)*Hauteur))"]
[null,"❷","(PI()*(Rayon*Rayon)*Hauteur)"]
[null,"❸","((Diamètre/2)*(Diamètre/2)*3.1416)*Hauteur",null,null,null,null,null,"Nombre de parts et poids d'une portion"]
[null,null,null,null,null,null,null,null,"Poids Total",8.35,"poids d'1 portion",null,0.25,{"$f":"IF(ISBLANK(M257),I260,M257)","v":33.4},"parts"]
[null,"L'aire d'un cercle de 22cm est égale à 3,14 x (11x11) = 379,94 cm2",null,null,null,{"$f":"3.14*(11*11)","v":379.94}]
[null,"L'aire d'un cercle de 22cm est égale à PI() x (11x11) = 380.13 cm2",null,null,null,"PI()*(11*11)",null,null,null,null,"Nb de parts",null,70,{"$f":"J256/M258","v":0.11928571428571429},"la portion"]
[null,"Nb de cercles","Diamètre",null,"rayon","Aire ou Surface"]
[null,1,22,null,{"$f":"C260/2","v":11},{"$f":"PI()*(E260^2)","v":380.13271108436498},null,null,{"$f":"IF(ISBLANK(M256),0,J256/M256)","v":33.4}]
[null,null,null,null,null,null,null,null,"Saisissez les valeurs dans les cellules fond jaune encre rouge "]
[null,null,null,null,null,null,null,null,"Adaptation : Joël Leboucher..UPRT \"Union des Personnels de la Restauration Territoriale\"  membre du réseau RESTAU'CO"]
[null,1,22,null,{"$f":"C263/2","v":11},{"$f":"PI()*(E263^2)","v":380.13271108436498}]
[]
[null,"Pour intégrer ce tableau sous des documents Modèle B3-B -2015 réduisez la largeur des colonnes à 9",null,null,null,null,null,null,"Transférer  des cercles dans des cadres"]
[null,"Sinon : Pour une meilleure lisibilité vous pouvez élargir les colonnes à 15 -ou Affichage Zoom 125%"]
[null,"Adaptation : Joël Leboucher..UPRT \"Union des Personnels de la Restauration Territoriale\"  membre du réseau RESTAU'CO",null,null,null,null,null,null,"CERCLES A TRANSFÉRER"]
[]
[null,null,null,null,null,null,null,null,"Nb de cercles","Diamètre","rayon","Poids crème liquide","Volume","Coeff."]
["ICI","Gastro Norm"]
["Gastro Norm","https://fr.wikipedia.org/wiki/Gastro_Norm",null,null,null,null,null,null,1,22,{"$f":"J271/2","v":11},0.15,{"$f":"(PI()*(K271^2)*I271)","v":380.13271108436498},{"$f":"N275","v":1.5783961298369786}]
[]
[null,"Le format de base est le GN 1/1, qui fait 530 x 325 mm. Les autres sont des multiples ou des sous-multiples de ce module de base. Les formats généralement rencontrés chez les professionnels sont1 :",null,null,null,null,null,null,"dans des moules et caisses rectangles"]
[]
[null,null,null,null,null,null,null,null,1,30,20,{"$f":"(L271*N271)*I271","v":0.2367594194755468},{"$f":"(J275*K275)*I275","v":600},{"$f":"M275/M271","v":1.5783961298369786}]
[]
[null,null,null,null,null,null,null,null,"Nb de moules","Longueur","Largeur","Poids crème liquide","Volume","Coeff."]
[]
[null,null,null,null,null,null,null,null,"Saisissez vos valeurs dans les cellules fond jaune encre rouge"]
[null,null,null,null,null,null,null,null,"Lien Auteur:","http://www.cestmafournee.com/2013/06/quelles-quantites-pour-mon-moule.html"]
[null,null,null,null,null,null,null,null,"Adaptation : Joël Leboucher..UPRT \"Union des Personnels de la Restauration Territoriale\"  membre du réseau RESTAU'CO"]
[]
[]
[null,null,null,null,null,null,null,null,"Différentes formules pour calculer le volume d'un cylindre (cercle à tarte)"]
[]
[]
[null,"Les profondeurs les plus courantes sont 20, 40, 65, 100, 150 et 200 mm.",null,null,null,null,null,null,"Nb de cercles","Diamètre","rayon","Hauteur","Volume"]
[]
[null,null,null,null,null,null,null,null,1,22,{"$f":"J289/2","v":11},1,{"$f":"((PI()*(K289^2)*L289))*I289","v":380.13271108436498}]
[]
[null,"Calculez le volume des moules et cadres rectangles",null,null,null,null,null,null,"Nb de cercles","Diamètre","Hauteur",null,"Volume"]
[]
[null,"Nb de moules","Longueur","Largeur","Hauteur","Volume",null,null,1,22,1,null,{"$f":"(((J293/2)*(J293/2)*3.1416)*K293)*I293","v":380.1336}]
[]
[null,1,30,20,1,{"$f":"((C295*D295)*E295)*B295","v":600},null,null,"Nb de cercles","Diamètre","Hauteur","Nb de parts","Volume"]
[]
[null,"Saisissez vos valeurs dans les cellules fond jaune encre rouge",null,null,null,null,null,null,1,22,1,3,{"$f":"(((J297/2)*(J297/2)*PI()*K297)*I297)/L297","v":126.71090369478833}]
[null,"Adaptation : Joël Leboucher..UPRT \"Union des Personnels de la Restauration Territoriale\"  membre du réseau RESTAU'CO"]
[null,null,null,null,null,null,null,null,"Saisissez vos valeurs dans les cellules fond jaune encre rouge"]
[null,null,null,null,null,null,null,null,"Adaptation : Joël Leboucher..UPRT \"Union des Personnels de la Restauration Territoriale\"  membre du réseau RESTAU'CO"]
[]
[]
[null,"Quel poids de pâte ou de liquide faut-il dans un ou des cercle (s)"]
[]
[null,"QUE VOULEZ VOUS FAIRE"]
[null,null,"Nb de cercles",null,"Diamètre",null,"Hauteur",null,"Poids de pâte ou liquide en Kg",null,"Volume"]
[null,"❶",1,null,26,null,4,null,{"$f":"(I311/K311)*K307","v":0.47499999999999998},null,{"$f":"(((E307/2)*(E307/2)*PI())*G307)*C307","v":2123.7166338267002}]
[]
[]
[null,"VALEURS DE RÉFÉRENCE "]
[null,"❷",1,null,26,null,4,null,0.47499999999999998,null,{"$f":"(((E311/2)*(E311/2)*PI())*G311)*C311","v":2123.7166338267002}]
[]
[null,"Encre bleue valeurs de base - encre rouge vos besoins"]
[null,"❶","Saisissez votre diamètre -le nombre de cercles à faire et la hauteur sur cette ligne"]
[null,"❷","Valeurs de référence pour un fond de tarte standard de 26 cm..j'ai pris pour exemple une tarte classique  comme base de calculs pour ce tableau. Vous pouvez saisir sur cette ligne des valeurs qui correspondent à votre échantillon ou votre modèle standard"]
[]
[]
[null,"Pâte brisée sucrée",null,null,null,null,null,null,"Poids",{"$f":"SUM(D319:D320,G319:G320,J319:J320)","v":0.47500000000000003}]
[null,"farine",null,0.25,"sel",null,5.0000000000000001E-3,"sucre semoule",null,2.5000000000000001E-2]
[null,"beurre",null,0.125,"œuf (1 jaune)",null,0.02,"eau",null,0.05]
[null,"Adaptation : Joël Leboucher..UPRT \"Union des Personnels de la Restauration Territoriale\"  membre du réseau RESTAU'CO"]
[]
[]
[null,"POIDS DE PATE NECESSAIRE POUR FONCER DES CADRES OU DES BACS GATRO (ici en référence : bacs gastro 1/1 pour Exemple)"]
[]
[]
[null,null,"NE PAS CONFONDRE CADRES ET CERCLES"]
[null,null,"Saisissez vos proportions cellules jaunes encre rouge"]
[null,null,"Combien de cadres voulez vous faire - passe au bleu si supérieur à 1 cadre pour attirer votre attention"]
[]
[null,null,null,"QUE VOULEZ VOUS FAIRE"]
[null,null,"Nb de cadres/bacs","Largeur en cm","Longueur en cm","Hauteur en cm","Epaisseur de l'abaisse en millimètre","hauteur de crête en millimètre","largeur de \"rognures\" en millimètre",null,null,"Poids de pâte prévu ","Avec votre poids de pâte"]
[]
[]
[null,null,"q","q","q","q","q","q","q"]
[null,null,1,32.5,53,2.5,2.5,5,5,null,null,{"$f":"(L343/M348)*M340","v":1.7392499999999997},{"$f":"(M345/M348)*M340","v":1.75}]
[]
[null,null,"❶","❷","❸","❼","❹","❺","❻",null,null,"❽","❾"]
[null,null,{"$f":"(D336*E336)*C336","v":1722.5},{"$f":"((D336*F336)*2)*C336+((E336*F336)*2)*C336","v":427.5},{"$f":"((D336*H339)*2)*C336+((E336*H339)*2)*C336","v":85.5},{"$f":"((D336*I339)*2)*C336+((E336*I339)*2)*C336","v":85.5},{"$f":"G336/10","v":0.25},{"$f":"H336/10","v":0.5},{"$f":"I336/10","v":0.5},null,null,{"$f":"SUM(C339:F339)","v":2321},{"$f":"(C339*F336)/1000","v":4.3062500000000004}]
[null,null,null,null,null,null,null,null,"Volume de pâte avec vos données",null,null,"❿",{"$f":"L339*G339","v":580.25}]
[null,null,null,"VALEURS DE RÉFÉRENCE "]
[null,null,"Si vous n'êtes pas d'accord avec le poids prévu pour 4 bacs gastro - Saisissez votre poids de pâte",null,null,null,null,null,null,null,null,null,"q"]
[null,null,4,32.5,53,2.5,2.5,5,5,null,null,{"$f":"E359","v":6.956999999999999},7]
[]
[null,null,{"$f":"ROW()-2","v":343},"Valeurs de référence fond gris encre bleue",null,null,null,null,null,null,null,null,{"$f":"IF(ISBLANK(M343),L343,M343)","v":7}]
[null,null,"❶","❷","❸","❼","❹","❺","❻",null,null,"❽","❾"]
[null,null,{"$f":"(D343*E343)*C343","v":6890},{"$f":"((D343*F343)*2)*C343+((E343*F343)*2)*C343","v":1710},{"$f":"((D343*H347)*2)*C343+((E343*H347)*2)*C343","v":342},{"$f":"((D343*I347)*2)*C343+((E343*I347)*2)*C343","v":342},{"$f":"G343/10","v":0.25},{"$f":"H343/10","v":0.5},{"$f":"I343/10","v":0.5},null,null,{"$f":"SUM(C347:F347)","v":9284},{"$f":"(C347*F343)/1000","v":17.225000000000001}]
[null,null,null,null,null,null,null,null,"Volume de pâte de Référence",null,null,"❿",{"$f":"L347*G347","v":2321}]
[]
[null,null,"❶","Surface du fond des cadres",null,"❺","Epaisseur de l'abaisse en cm",null,"❾","Volume des cadres/bacs en litres"]
[null,null,"❷","Surface de la hauteur des cadres",null,"❻","largeur de crête en cm"]
[null,null,"❸","surface de crête",null,"❼","largeur de \"rognures\" en cm",null,"❿","Volume de pâte en cm³ "]
[null,null,"❹","surface de \"rognures\"",null,"❽","Surface de pâte"]
[]
[null,null,null,"RÉFÉRENCE "]
[null,null,"Référence bac GN 1/1 perforés - largeur 325mm (32cm) - longueur 530 mm (53cm) - H25mm (2.5cm) tarte au citron pour 100 \"La cuisine de Collectivité\" page294 -Michel Grossmann et Alain Le franc - Edt.BPI  2006 - Poids de pâte sablée pour 4 bacs gastro"]
[]
[]
[null,null,null,"Pâte sablée",{"$f":"SUM(E360:E362,I360:I362)","v":6.956999999999999}]
[null,null,null,"farine",3.5,null,null,"œufs liquides 0.5L",0.55000000000000004]
[null,null,null,"beurre",1.6,null,null,"levure chimique",4.4999999999999998E-2]
[null,null,null,"sucre semoule ",1.25,null,null,"sel fin",1.2E-2]
[null,null,"Le poids de l’oeuf"]
[null,null,"En pâtisserie les ingrédients se mesure à l’unité ou au poids pour les recettes professionnnelles. Les oeufs font environ 55g"]
[]
[null,null,"1 jaune d’oeuf pèse envrion : 20g  – 1 blanc d’oeuf pèse environ : 30g – 1 coquille 5g"]
[null,null,"Equivalences en litre - 1 litre = environ"]
[null,null,"20 oeufs entiers (x 55g =1.100Kg)",null,null,"ou 50 jaunes (x 20g = 1Kg)",null,"ou 32 blancs (x 30g = 0.960Kg)"]
[null,null,"Lien internet","http://www.mylittlerecettes.com/cap-patissier-les-oeufs-en-patisserie/"]
[]
[null,null,"Adaptation : Joël Leboucher..UPRT \"Union des Personnels de la Restauration Territoriale\"  membre du réseau RESTAU'CO"]
[]
[]
[null,"FORMAT DE CELLULES CARRÉES"]
[null,"forum.excel-pratique.com/excel/donner-la-forme-de-carres-reguliers-a-toutes-les-cellules"]
[null,"Je voudrais que toutes les cellules de la feuille aient la forme de 'carrés'. Comment régler la largeur et la hauteur des cellules pour constituer des carrés ? Autrement dit y-a-t-il un rapport à observer entre les valeurs à donner aux largeurs et hauteurs des cellules? "]
[]
[null,"méthode bidouillage : "]
[null,"Les lignes doivent être environ 5.51 fois plus hautes que les colonnes ",null,null,null,null,"5.694 "]
[null,"donc sélectionne toutes tes colonnes que tu veux homogénéiser, et fait clic droit dans l'en-tete des colonnes / largeur de colonne. Là tu mets la valeur que tu veux. "]
[]
[null,"puis tu sélectionnes toutes tes lignes que tu veux, clic droit dans l'en-tête des lignes/ hauteur de ligne, et là tu mets ta valeur précédente x 5,51. "]
[]
[null,"largeur colonne",null,9.86,"multiplicateur",5.694,"hauteur de ligne",{"$f":"D384*F384","v":56.14284},"valeur",{"$f":"H384","v":56.14284}]
[]
[null,null,"Je me suis interrogé comment vous faisiez pour être si précis, je suppose que ce n'est à l'oeil ? "]
[null,null,"Je comprends qu'il n'y a pas de possibilité de décider : "]
[null,null,"de l'unité de mesure des largeurs et hauteurs, "]
[null,null,"du nombre d'unités."]
[null,"En fait je dessine un carré avec l'outil dessin (en enfoncant la touche Shift), puis je fait concorder exactement les traits de ligne et colonne sur le carré. Enfin, je regarde les largeur et hauteur que celà me donne, et je divise le plus grand par le plus petit. Voilà! "]
[]
[]
[null,"Je viens à nouveau de vérifier en faisant vraiment un grand carré, et le ratio est de 5,3 (ne pas mettre trop de virgule, en fait ça ne sert à rien). "]
[]
[null,null,"Pour les lignes, un pixel = 0.75 "]
[null,null,"pour les colonne, un pixel = 0.08 "]
[]
[null,null,"Pour t'aider un peu plus, a peu près : "]
[null,null,"Pour un carré de 1cm sur 1 cm, il faut "]
[null,null,"28.35 en hauteur de ligne "]
[null,null,"5.35 en largeur de colonne. "]
[null,"Après, celà va dépendre de comment tu imprimes, tes ajustements sur ta feuille, la taille de ton carré à de grandes chances de ne pas être de 1cm de coté. "]
[]
[null,"http://forum.excel-pratique.com/excel/donner-la-forme-de-carres-reguliers-a-toutes-les-cellules-t9229.html"]
[]
[]
[]
[]
[]
[null,"conversion : volume / poids",null,null,null,null,null,null,"conversion : volume / poids"]
[null,"Volume",null,"produit","densité","Poids",null,null,"Volume",null,"produit","densité","Poids"]
[null,20,{"$f":"B412/100","v":0.2},"Eau",1,{"$f":"(B412*E412)*10","v":200},{"$f":"F412/1000","v":0.2},null,10,{"$f":"I412/10","v":1},"Eau",1,{"$f":"(I412*L412)*100","v":1000},{"$f":"M412/1000","v":1}]
[null,null,null,"lait entier",1.03,{"$f":"(B412*E413)*10","v":206},{"$f":"F413/1000","v":0.20599999999999999},null,null,null,"lait entier",1.03,{"$f":"(I412*L413)*100","v":1030},{"$f":"M413/1000","v":1.03}]
[null,null,null,"lait 1/2 écrémé",1.0149999999999999,{"$f":"(E414*B412)*10","v":202.99999999999997},{"$f":"F414/1000","v":0.20299999999999996},null,null,null,"lait 1/2 écrémé",1.0149999999999999,{"$f":"(L414*I412)*100","v":1014.9999999999999},{"$f":"M414/1000","v":1.0149999999999999}]
[null,null,null,"huile",0.92,{"$f":"(E415*B412)*10","v":184.00000000000003},{"$f":"F415/1000","v":0.18400000000000002},null,null,null,"huile",0.92,{"$f":"(L415*I412)*100","v":920.00000000000011},{"$f":"M415/1000","v":0.92000000000000015}]
[null,null,null,"alcool",0.8,{"$f":"(E416*B412)*10","v":160},{"$f":"F416/1000","v":0.16},null,null,null,"alcool",0.8,{"$f":"(L416*I412)*100","v":800},{"$f":"M416/1000","v":0.8}]
[]
[]
[]
[]
[null,null,null,null,null,"Aide mémoire sur la base eau : 1L = 1Kg - 1 gr = 0.001Kg  > 2 zéros après la virgule du Kg ",null,null,null,null,"Aide mémoire sur la base eau : 1L = 1Kg - 1 gr = 0.001Kg  > 2 zéros après la virgule du Kg "]
[]
[null,null,null,null,null,"Kg","hg","dag","gr",null,"3 cl = 30g = 0.03kg    /    30 cl = 300g = 0.3kg     /     3 dl = 300g = 0.3 kg"]
[null,null,null,null,null,"Saisissez votre volume",null,null,null,null,"sur la base eau : 1L = 1Kg "]
[null,null,null,null,null,"L","dl","cl","ml",null,"Litres (l.) ","Centilitres (cl.) ","Décilitres (dl.) ","Kilogrammes (kg.) "]
[null,null,null,null,null,1,{"$f":"F426*10","v":10},{"$f":"G426*10","v":100},{"$f":"H426*10","v":1000}]
[null,null,null,null,null,{"$f":"G427/10","v":0.1},1,{"$f":"G427*10","v":10},{"$f":"G427*100","v":100},null,"1litre","100 cl","10 dl","1 kg"]
[null,null,null,null,null,{"$f":"G428/10","v":0.01},0.1,1,{"$f":"G428*100","v":10},null,"1/2 litre","50 cl","5 dl","0,500 kg"]
[null,null,null,null,null,{"$f":"I429/1000","v":1E-3},{"$f":"I429/100","v":0.01},{"$f":"I429/10","v":0.1},1,null,"1/4 litre","25 cl","2,5 dl","0,250 kg"]
[null,null,null,null,null,"3 cl = 30g = 0.03kg    /    30 cl = 300g = 0.3kg     /     3 dl = 300g = 0.3 kg",null,null,null,null,"1/8 litre","12, 5 c","1,25 dl","0,125 kg"]
[null,null,null,null,null,"http://www.cuisinealafrancaise.com/fr/2-poids-et-mesures",null,null,null,null,"http://www.cuisinealafrancaise.com/fr/2-poids-et-mesures"]
[]
[]
[null,"lien >","l'huile = 0,920 Kg/L",null,null,null,null,null,null,null,"Convertir des temps"]
[null,null,null,null,null,null,null,null,null,null,"Heures","Minutes","Centièmes"]
[null,"Alcool = 0,800 Kg/L",null,null,null,null,null,null,null,null,4.1666666666666664E-2,60,100]
[null,"eau salée nature = 1,130 Kg/L en fonction du sel ajouté",null,null,null,null,null,null,null,null,4.1666666666666664E-2,{"$f":"(L436/K436)*K437","v":60},{"$f":"(M436/K436)*K437","v":100}]
[null,"lien >","densité des liquides pour cocktails",null,null,null,null,null,null,null,{"$f":"(K436/L436)*L438","v":6.2499999999999993E-2},90,{"$f":"(M436/L436)*L438","v":150}]
[null,null,null,null,null,null,null,null,null,null,{"$f":"(K436/M436)*M439","v":1.6666666666666666E-2},{"$f":"(L436/M436)*M439","v":24},40]
[]
[]
[]
[null,"LIAISON AU TAPIOCA",null,null,null,null,null,null,"SERVICE DES SAUCES",null,"Plat mode de cuisson",null,"Grammages sauce p.p.","1 Kg pour :"]
[]
[null,"POUR 1 LITRE DE SAUCE TERMINÉE",null,null,null,null,null,null,"Sans sauce",null,"grillé,frit,nature"]
[null,null,null,null,null,null,null,null,"Déglaçage",null,"roti,poélé",null,"20/30 g","33 à 50 p."]
[null,"30 gr","pour lier 1L de soupe à l'oignon ",null,null,null,null,null,"Sauce courte",null,"pièces sautées",null,"40/50 g","20 à 25 p."]
[null,"30 gr","pour lier 200g de chair à saucisse pour tomates farcies ",null,null,null,null,null,"Sauce longue",null,"ragoûts,braisés",null,"60/80 g","12 à 16 p."]
[null,"30 gr","pour lier 1Kg de tomates concassées avec jus ",null,null,null,null,null,"Bouillon",null,"pochés,plats complets",null,"90/150 g","6 à 11 p."]
[null,"40 gr","pour quiche avec 2 œufs"]
[null,"50 gr","sauce bien liée épaisse"]
[null,"60 gr","plus 8 œufs pour crème patissière"]
[null,"60 gr","un velouté ou une sauce veloutée"]
[null,"70/80 gr","béchamelle gluante, solidification à froid, donc épaississement important lors de la chute en température"]
[]
[null,"90 gr","pour lier 1L de lait pour gratin d'épinards avec 4 œufs et 120g de gruyère"]
[]
[]
[null,"Quantités nettes à prévoir : Mater Prim Adul Adul +  ",null,null,null,null,null,"PURÉE DÉSHYDRATÉE"]
[null,"Grammages nets",null,"Quantité Totale ",{"$f":"(B462*B465)+(C462*C465)+(D462*D465)+(E462*E465)","v":228.85000000000002},null,null,"Purée déshydratée","Eau","Lait déshydraté","Lait frais","Crème fraiche","Beurre","Poids reconstitué"]
[null,null,null,null,null,null,null,0.12,1,0.11,0,0.01,5.0000000000000001E-3,{"$f":"SUM(H461:M461)","v":1.2450000000000001}]
[null,6.5000000000000002E-2,7.4999999999999997E-2,0.12,0.15]
[null,null,null,null,null,null,null,{"$f":"(H461/N461)*N463","v":2.1204819277108431},{"$f":"(I461/N461)*N463","v":17.670682730923691},{"$f":"(J461/N461)*N463","v":1.9437751004016062},{"$f":"(K461/N461)*N463","v":0},{"$f":"(L461/N461)*N463","v":0.17670682730923692},{"$f":"(M461/N461)*N463","v":8.8353413654618462E-2},22]
[null,"Maternelles","Primaires","Adultes ","Adultes +"]
[null,920,1700,240,85,null,null,"Poids à l'arrondi supérieur"]
[null,null,null,null,null,null,null,{"$f":"ROUNDUP(H463,2)","v":2.13},17.680000000000003,1.95,0,0.18000000000000002,0.09,{"$f":"SUM(H466:M466)","v":22.03}]
[null," Effectifs",{"$f":"SUM(B465:E465)","v":2945},"Parts Adultes",{"$f":"IF(E460=0,0,E460/D462)","v":1907.0833333333335}]
[null,null,null,null,null,null,null,"Saisissez vos valeurs dans les cellules fond ivoire ou jaune"]
[null,"Saisissez vos valeurs dans les cellules fond ivoire ou jaune"]
[]
[null,"AIDES A LA DÉCISION"]
[]
[]
["ICI",{"$f":"B475","v":"Gélatine alimentaire"}]
[{"$f":"B475","v":"Gélatine alimentaire"},"Gélatine alimentaire"]
[]
[null,"Mickaël Rabeau Formateur AFPA Rochefort sur mer 2016"]
[]
[null,null,null,null,null,null,null,null,null,null,null,null,null,"n'hésitez pas a cliquer sur les liens internet"]
[null,null,"Obtenue par hydrolyse du collagène contenu dans les peaux et os des animaux. Se vend en feuilles ou en poudre."]
[null,null,"Gélatine feuille"]
[null,null,"La gélatine gonfle dans l'eau froide, se dissout dans l'eau chaude et se prend en gelée en refroidissant."]
[null,null,"Emplois  : Sert à la préparation de certains entremets, pour la confection de gelées et la stabilisation des glaces. Pastillage."]
[null,null,"Une feuille pèse environ 2 g ou 2,5 g"]
[null,null,"Attention pour les pulpes de Kiwi, ananas, papaye : cuire les pulpes à 60°C pour détruire l'enzyme qu'elles contiennent."]
[null,null,"La gélatine prend 5-6 fois son poids en eau (10 g de gélatine et 50- 60 g d'eau)"]
[]
[null,null,"GELATINE en feuille"]
[null,null,null,null,null,"❶",null,"Liens internet 2013"]
[null,null,"❷","Feuille entière (1 =",null,2,null,"feuilles de gélatine - Le Salon du Blog Culinaire"]
[null,null,10,"feuilles",null,{"$f":"C491*F490","v":20},null,"Gélatine et agar-agar : principes et utilisations"]
[null,null,null,null,null,null,null,"Agar Agar"]
[null,null,null,null,null,null,null,"Glaçage brillant au chocolat - Fiche recette ... - Meilleur du Chef"]
[null,null,"❶","si vous n'êtes pas d'accord avec le poids d'une feuille - saisissez ce qui vous convient"]
[null,null,"❷","Combien de feuilles - à vous de saisir un nombre"]
[null,{"$f":"CELL(\"nomfichier\",A492)","v":"E:\\0-UPRT\\1-UPRT.FR-SITE-WEB\\re-recettes-jean-marc-catteau\\re-catteau-galettes\\[GA-garniture.mexicaine.xlsm]Cuisiniers.Pesez"}]
[null,"Adaptation : Joël Leboucher..UPRT \"Union des Professionnels de la Restauration Territoriale\"  membre du réseau RESTAU'CO"]
[]
[]
["ICI",{"$f":"B501","v":"ŒUFS poids et %"}]
[{"$f":"B501","v":"ŒUFS poids et %"},"ŒUFS poids et %"]
[]
[null,"Police de couleur pour saisir vos valeurs    Noir = formules"]
[]
[null,"ŒUFS poids et %"]
[null,"❷",null,"❶",null,null,"❷",null,"❶",null,"❷",null,"❶"]
[null,"Œuf entier  ( 1 =",null,50,1,null,"Jaunes d'œufs ( 1 =",null,20,{"$f":"I507/D507","v":0.4},"Blancs d'œufs  ( 1 =",null,30,{"$f":"M507/D507","v":0.6}]
[null,4,"œufs =",{"$f":"B508*D507","v":200},"gr",null,10,"jaunes =",{"$f":"G508*I507","v":200},"gr",12,"blancs =",{"$f":"K508*M507","v":360},"gr"]
[null,"Poids","Protéines","M.Grasse","eau",null,"Poids","Protéines","M.Grasse","eau","Poids","Protéines","M.Grasse","eau"]
[null,{"$f":"D508","v":200},{"$f":"B510*C511","v":24.489795918367346},{"$f":"B510*D511","v":22.448979591836736},{"$f":"B510*E511","v":153.0612244897959},null,{"$f":"I508","v":200},{"$f":"G510*H511","v":34.4},{"$f":"G510*I511","v":64.600000000000009},{"$f":"G510*J511","v":101},{"$f":"M508","v":360},{"$f":"K510*L511","v":39.96},{"$f":"K510*M511","v":0},{"$f":"K510*N511","v":320}]
[null,{"$f":"C511+D511+E511","v":1},0.12244897959183673,0.11224489795918367,0.76530612244897955,null,{"$f":"H511+I511+J511","v":1},0.17199999999999999,0.32300000000000001,0.505,{"$f":"L511+M511+N511","v":0.99988888888888894},0.111,0,0.88888888888888895]
[null,null,"❶","❶","❶",null,null,"❶","❶","❶",null,"❶",null,"❶"]
[null,"❶","si vous n'êtes pas d'accord avec les grammages saisis - saisissez ce qui vous convient"]
[null,"❷","Combien d'œufs - de jaunes ou de blancs - à vous de saisir un nombre",null,null,null,null,null,null,null,null,null,null,"n'hésitez pas a cliquer sur les liens internet"]
[null,null,null,"Lien internet :","Œufs 101 - Introduction aux œufs » Lesoeufs.ca"]
[null,"Adaptation : Joël Leboucher..UPRT \"Union des Professionnels de la Restauration Territoriale\"  membre du réseau RESTAU'CO"]
[]
[]
[]
[]
[null,null,null,null,null,null,null,null,null,"Prix D'ACHAT / Prix de VENTE"]
[null,null,"PRIX D'ACHAT",0.44,null,"PRIX D'ACHAT",100,null,"PRIX VENTE",115]
[null,null,"%  d'augmentation",60,null,"Augmentation",10,null,"PRIX D'ACHAT",133]
[null,null,"Augmentation",{"$f":"D522*D523%","v":0.26400000000000001},null,"PRIX VENTE",{"$f":"IF(G522=0,0,G522+G523)","v":110},null,"Augmentation",{"$f":"IF(J522=0,0,IF(J523=0,0,J522-J523))","v":-18}]
[null,null,"PRIX VENTE",{"$f":"((D522*D523)/100)+D522","v":0.70399999999999996},null,"%  d'augmentation",{"$f":"IF(G522=0,0,IF(ISBLANK(G522),0,(G523/G522)*100))","v":10},null,"%  d'augmentation",{"$f":"IF(J523=0,0,IF(ISBLANK(J523),0,(J524/J523)*100))","v":-13.533834586466165}]
[]
[null,null,"PRIX D'ACHAT",5.8970000000000002,null,"PRIX VENTE",9.64,null,"PRIX VENTE",100]
[null,null,"PRIX VENTE",9.64,null,"%  d'augmentation",63.5,null,"Augmentation",50]
[null,null,"Augmentation",{"$f":"IF(D527=0,0,IF(D528=0,0,D528-D527))","v":3.7430000000000003},null,"Augmentation",{"$f":"G527-G530","v":3.7439755351681958},null,"PRIX D'ACHAT",{"$f":"IF(J527=0,0,IF(ISBLANK(J527),0,J527-J528))","v":50}]
[null,null,"%  d'augmentation",{"$f":"IF(D527=0,0,IF(ISBLANK(D527),0,(D529/D527)*100))","v":63.472952348651859},null,"PRIX D'ACHAT",{"$f":"(G527/(100+G528)*100)","v":5.8960244648318048},null,"%  d'augmentation",{"$f":"IF(J529=0,0,IF(ISBLANK(J528),0,(J528/J529)*100))","v":100}]
[null,"Saisissez vos valeurs dans les cellules fond ivoire ou jaune"]
[]
[]
[null,15,15,15,15,15,15,"largeur de colonnes",15,15,15,15,15,15,"largeur de colonnes"]
[null,"Aide à la décision en Gr",null,null,null,null,"Pourcentages NET / BRUT et BRUT / NET",null,"Aide à la décision en Kg",null,null,null,null,"Pourcentages NET / BRUT et BRUT / NET"]
[null,"POIDS NET",1000,"POIDS NET",1000,"POIDS NET",100,null,"POIDS NET",1,"POIDS NET",1,"POIDS NET",1]
[null,"POIDS BRUT",2000,"POIDS de PERTE",327,"%  de PERTE",40,null,"POIDS BRUT",2,"POIDS de PERTE",2,"%  de PERTE",50]
[null," Poids de perte",{"$f":"IF(C536=0,0,IF(C537=0,0,C537-C536))","v":1000},"Poids brut",{"$f":"IF(E536=0,0,E536+E537)","v":1327}," Poids de perte",{"$f":"G539*G537%","v":66.666666666666671},null," Poids de perte",{"$f":"IF(J536=0,0,IF(J537=0,0,J537-J536))","v":1},"Poids brut",{"$f":"IF(L536=0,0,L536+L537)","v":3}," Poids de perte",{"$f":"N539*N537%","v":1}]
[null,"%  de perte",{"$f":"IF(C536=0,0,IF(C537=0,0,C538/C537))","v":0.5},"%  de perte",{"$f":"IF(E536=0,0,E537/E538)","v":0.24642049736247174},"Poids brut",{"$f":"G536/(100-G537)*100","v":166.66666666666669},null,"%  de perte",{"$f":"IF(J536=0,0,IF(J537=0,0,J538/J537))","v":0.5},"%  de perte",{"$f":"IF(L536=0,0,L537/L538)","v":0.66666666666666663},"Poids brut",{"$f":"N536/(100-N537)*100","v":2}]
[null,"POIDS BRUT",1780,"POIDS BRUT",2310,"POIDS BRUT",500,null,"POIDS BRUT",2,"POIDS BRUT",2,"POIDS BRUT",1]
[null,"POIDS NET",1000,"POIDS de PERTE",720,"%  de PERTE",50,null,"POIDS NET",1,"POIDS de PERTE",1,"%  de PERTE",50]
[null," Poids de perte",{"$f":"IF(C540=0,0,IF(C541=0,0,C540-C541))","v":780},"Poids net",{"$f":"IF(E540=0,0,IF(E541=0,0,E540-E541))","v":1590}," Poids de perte",{"$f":"G540*G541%","v":250},null," Poids de perte",{"$f":"IF(J540=0,0,IF(J541=0,0,J540-J541))","v":1},"Poids net",{"$f":"IF(L540=0,0,IF(L541=0,0,L540-L541))","v":1}," Poids de perte",{"$f":"N540*N541%","v":0.5}]
[null,"%  de perte",{"$f":"IF(C540=0,0,C542/C540)","v":0.43820224719101125},"%  de perte",{"$f":"IF(E540=0,0,IF(E541=0,0,E541/E540))","v":0.31168831168831168},"Poids net",{"$f":"G540-G542","v":250},null,"%  de perte",{"$f":"IF(J540=0,0,J542/J540)","v":0.5},"%  de perte",{"$f":"IF(L540=0,0,IF(L541=0,0,L541/L540))","v":0.5},"Poids net",{"$f":"N540-N542","v":0.5}]
[null,"Saisissez vos valeurs dans les cellules fond ivoire ou jaune",null,null,null,null,null,null,"Saisissez vos valeurs dans les cellules fond ivoire ou jaune"]
[]
[]
[]
[]
[null,null,null,null,null,null,null,null,null,"A chacun d'utiliser le lien qui lui convient le mieux"]
[]
[null,null,null,null,null,null,null,null,null,"lien vidéo Youtube"]
[null,null,null,null,null,null,null,null,null,"Calculer un pourcentage - exemple"]
[null,null,null,null,null,null,null,null,null,null,"https://www.youtube.com/watch?v=mGDjvAcvigc"]
[null,null,null,null,null,null,null,null,null,null,"https://www.youtube.com/c/YMONKA"]
[null,null,null,null,null,null,null,null,null,null,"https://www.youtube.com/watch?v=tSp2xkS-tKs"]
[null,"https://www.maths-et-tiques.fr/telech/Pourcent.pdf",null,null,null,null,null,null,null,null,"https://www.youtube.com/watch?v=dWC54hCv0pc"]
[null,"http://www.maths-et-tiques.fr/index.php/cours-en-videos",null,null,null,null,null,null,null,null,"https://www.youtube.com/watch?v=psIZ0y_8VVc"]
[null,null,null,null,null,null,null,null,null,null,"https://www.youtube.com/watch?v=PyDvkMr3qfg"]
[null,"Poids brut ou poids net ? Ne payez pas l'emballage !",null,null,null,null,null,null,null,null,"https://www.youtube.com/watch?v=_PTjJ7UD4eo"]
[null,"https://www.economie.gouv.fr/files/files/directions_services/dgccrf/documentation/publications/depliants/poidsbrut_poidsnet.pdf"]
[]
[null,null,null,null,null,null,null,null,null,null,null,null,"Pour prendre 20% de 140"]
[null,"Valeur d'un pourcentage, calcul simplifié",null,null,null,null,"Pour prendre, par exemple, le 5 % de 87 Kg",null,null,null,null,null,"il suffit de multiplier 140 par 20 %"]
[null,"Pour prendre, par exemple, le 5 % de 87 Kg",null,null,"87-5%",null,null,null,null,"Pour prendre 20% de 140",null,null,"POIDS BRUT",140]
[null,"Au lieu de multiplier par 5, puis de diviser par 100,",null,null,null,null,"POIDS BRUT",87,null,"il suffit de multiplier 140 par 20 %",null,null,"%  de PERTE",20]
[null," il est plus simple de multiplier par ",null,null,null,null,"%  de PERTE",5,null,"c'est-à-dire faire : (140 * 20) / 100",null,null," Poids de perte",{"$f":"(N564*N565)/100","v":28}]
[null,"5 / 100 = 0.05, ",null,null,null,null,"coefficient",{"$f":"H566/100","v":0.05},null,"ou plus simplement : ",null,null,"coefficient",{"$f":"N565/100","v":0.2}]
[null,"opération qu'on peut réaliser mentalement.",null,null,null,null," Poids de perte",{"$f":"H565*H567","v":4.3500000000000005},null,"140 * 0.2(On obtient : 28)",null,null," Poids de perte",{"$f":"N564*N567","v":28}]
[null,"Le calcul se réduit maintenant à une seule opération arithmétique, a savoir",null,null,null,null,null,null,null,"Si on avait à trouver 40% de 140, ",null,null,"ou plus simplement : "]
[null,"(87 Kg) x 0.05 = 4.35 Kg",null,null,null,null,"Pour déduire, par exemple, le 5 % de 87 Kg",null,null,"on aurait multiplié 140 par 0.4",null,null,"140 * 0.2(On obtient : 28)"]
[null,null,null,null,null,null,null,null,null,"90% ? On multiplie 140 par 0.9",null,null,{"$f":"N567","v":0.2},{"$f":"N564*M571","v":28},"."]
[null,"Pour déduire, par exemple, le 5 % de 87 Kg",null,null,null,null,"POIDS BRUT",87,null,null,null,null,"Si on avait à trouver 40% de 140, "]
[null,"Commencer par un calcul oral: quand on déduit le",null,null,null,null,"%  de PERTE",5,null,null,null,null,"on aurait multiplié 140 par 0.4"]
[null," 5 %, il reste le 95 %     ( 100 - 5 )",null,null,null,null,"coefficient",{"$f":"(100-H573)/100","v":0.95},null,null,null,null,"%  de PERTE",40]
[null,"On peut alors calculer directement le résultat, à savoir: ",null,null,null,null,"Poids net",{"$f":"H572*H574","v":82.649999999999991},null,null,null,null,{"$f":"N574/100","v":0.4},{"$f":"N564*M575","v":56}]
[null,"(87 Kg) × 0.95 = 82.65 kg",null,null,null,null,null,null,null,null,null,null,"%  de PERTE",90]
[null,"Avec cette manière de faire, la calculatrice n'a été utilisée que pour une seule opération arithmétique : ",null,null,null,null,null,null,null,null,null,null,"90% ? On multiplie 140 par 0.9"]
[null,null,null,null,null,null,null,null,null,null,null,null,{"$f":"N576/100","v":0.9},{"$f":"N564*M578","v":126}]
[null,"Voici la formule pour calculer un pourcentage, ",null,null,null,null,"Voici la formule pour calculer un pourcentage, "]
[null,"par exemple 8% de 500 :"]
[null,"500 x (8/100) = 40",null,null,null,null,"par exemple 8% de 500 :"]
[null,"ou alors",null,null,null,null,"500 x (8/100) = 40"]
[null,"500 x 0.08 = 40",null,null,null,null,"POIDS BRUT",500]
[null,"0.08 = (8/100)",null,null,null,null,"%  de PERTE",8]
[null,null,null,null,null,null," Poids de perte",{"$f":"H583*(H584/100)","v":40}]
[null,null,null,null,null,null,"ou alors"]
[null,null,null,null,null,null,"500 x 0.08 = 40"]
[null,null,null,null,null,null,{"$f":"H584/100","v":0.08},{"$f":"H583*G588","v":40}]
[]
[]
[null,null,null,null,null,null,null,"Décriptage d'une recette par les pourcentages"]
[null,"Pourcentages",null,{"$f":"IF(B593<G593,\"Recette imcomplète,il manque\",IF(B593>G593,\"Trop de produits dans le recette\",IF(B593=G593,\"\")))","v":"Recette imcomplète,il manque"},{"$f":"IF(B593=G593,\"\",IF(B593<G593,G593-B593,IF(B593>G593,B593-G593)))","v":2.9999999999999916E-2},"NET","% Perte","BRUT"]
[null,{"$f":"SUM(B594:B599)","v":0.97000000000000008},null,null,"POIDS DE LA RECETTE A DÉCRYPTER",7,1,{"$f":"SUM(H594:H599)","v":6.9300000000000006}]
[null,0.12,"Rhum",null,null,{"$f":"F593*B594","v":0.84},0,{"$f":"IF(G594=0,F594,IF(F594=\"\",\"\",F594/(100-G594)*100))","v":0.84}]
[null,0.08,"Sucre de cannes",null,null,{"$f":"F593*B595","v":0.56000000000000005},0,0.56000000000000005]
[null,0.2,"Jus de pamplemousse",null,null,{"$f":"F593*B596","v":1.4000000000000001},0,1.4000000000000001]
[null,0.55000000000000004,"Jus d'orange",null,null,{"$f":"F593*B597","v":3.8500000000000005},0,3.8500000000000005]
[null,0.02,"Citron vert",null,null,{"$f":"F593*B598","v":0.14000000000000001},50,0.28000000000000003]
[null,null,null,null,null,{"$f":"F593*B599","v":0},0,0]
[]
[]
[]
[null,"Pourcentages : Calculer un pourcentage"]
[null,"https://www.mathematiquesfaciles.com/pourcentages-calculer-un-pourcentage_2_19885.htm",null,null,null,null,null,null,null,"wikipedia.org"]
[null,null,null,null,null,null,null,null,null,"https://fr.wikipedia.org/wiki/Pourcentage"]
[null,"Révisez, et entrainez vous."]
[null,"sans calculatrice...",null,null,null,null,null,null,null,"Comprendre les maths!"]
[null,"D.CATROU 2010",null,null,null,null,null,null,null,"Florent Gouachon"]
[null,"Lycée Jean Monnet…Juvisy - académie de Versailles",null,null,null,null,null,null,null,"Liam Dauchat"]
[null,"http://www.lyc-monnet-juvisy.ac-versailles.fr/Diapomath.pdf",null,null,null,null,null,null,null,"Besançon"]
[null,null,null,null,null,null,null,null,null,"https://www.cmath.fr/cesite/presentation.php"]
[null,"une multiplication, ce qui augmente la vitesse et réduit les occasions de se tromper.",null,null,null,null,null,null,null,"https://www.cmath.fr/6eme/pourcentages/cours.php"]
[null,"https://www.deleze.name/marcel/culture/taux_composes/taux_simple.html"]
[null,null,null,null,null,null,null,null,null,"Comment convertir en pourcentage"]
[null,null,null,null,null,null,null,null,null,"https://fr.wikihow.com/convertir-en-pourcentage"]
[null,"Comment compter le pourcentage de tête vite et facilement"]
[null,"http://calc.name/blog/comment-compter-le-pourcentage-de-tete-vite-et-facilement/",null,null,null,null,null,null,null,"fabie.info.pagesperso-orange"]
[null,"http://www.un-calcul.fr/calcul-comptabilite/comment-calculer-un-pourcentage-338",null,null,null,null,null,null,null,"http://fabie.info.pagesperso-orange.fr/math/cours7.htm"]
[]
[null,"Comment retrouver la valeur de départ ?",null,null,null,null,null,null,null,"Comment appliquer une augmentation en pourcentage ?"]
[null,"Les Maths ? Je capte pas ! Les chiffres ? J'y comprends rien ! Vous vous reconnaissez ?",null,null,null,null,null,null,null,"http://www.capte-les-maths.com/pourcentage/les_pourcentages_p6.php"]
[null,"Vous qui désespérez... Vous que les Maths n'intéressent pas... Et pourtant il faudrait..."]
[null,"Alors capte-les-maths.com est fait pour vous !",null,null,null,null,null,null,null,"Calculer un pourcentage avec Excel"]
[null,"http://www.capte-les-maths.com/pourcentage/les_pourcentages_p10.php",null,null,null,null,null,null,null,"http://fortimelp.fr/content/44-calculer-un-pourcentage"]
[null,null,null,null,null,null,null,null,null,"https://www.youtube.com/watch?v=dQafvb2O01U"]
[null,null,null,null,null,null,null,null,null,"https://www.youtube.com/watch?v=QTGvjmAhEHo"]
[null,"Comment calculer combien on va payer pendant les soldes?"]
[null,"http://www.slate.fr/story/82029/soldes-calculer-rabais",null,null,null,null,null,null,null,"mode d'emploi simple pour appliquer un pourcentage d'augmentation avec la Calculatrice de Windows."]
[null,null,null,null,null,null,null,null,null,"http://www.astuceshebdo.com/2012/03/comment-calculer-un-pourcentage-cas-n-1.html"]
[]
[]
[]
[]
[null,null,null,null,null,null,{"$f":"SUBSTITUTE(ADDRESS(1,COLUMN(),4),\"1\",\"\")","v":"G"},"j'ai volontairement ajouté cette colonne..si vous supprimez une ligne le tableau fonctionnera quand même"]
[null,null,"Composition d'une garniture \"COUSCOUS\""]
[null,null,"POIDS NET A FABRIQUER",null,null,1,{"$f":"F636","v":1},"Net cuit",null,"perte en cuisson","Poids brut à mettre en œuvre"]
[null,null,"carottes coupées",null,null,25,{"$f":"G636","v":1},{"$f":"(G637*F637)/100","v":0.25},null,20,{"$f":"H637/(100-J637)*100","v":0.3125}]
[null,null,"courgettescoupées",null,null,20,{"$f":"G636","v":1},0.2,null,25,0.26666666666666672]
[null,null,"navets coupé",null,null,15,{"$f":"G636","v":1},0.15,null,20,0.1875]
[null,null,"pois chiches pré-cuits",null,null,15,{"$f":"G636","v":1},0.15,null,0,0.15]
[null,null,"garniture de céléri branche",null,null,10,{"$f":"G636","v":1},0.1,null,20,0.125]
[null,null,"poivrons rouges coupés",null,null,7.5,{"$f":"G636","v":1},7.4999999999999997E-2,null,20,9.375E-2]
[null,null,"poivrons verts coupés",null,null,7.5,{"$f":"G636","v":1},7.4999999999999997E-2,null,20,9.375E-2]
[null,null,"Total",null,null,{"$f":"SUM(F637:F643)","v":100}]
[]
[]
[]
[null,null,"COMPOSITION ET SERVICE D'UN PLAT COMPLET"]
[null,null,"Veullez saisir les informations dans les cellules fond de couleur ivoire. "]
[null,null,"SERVICE EN FONCTION DES EFFECTIFS"]
[null,null,{"$f":"CELL(\"nomfichier\")","v":"E:\\0-UPRT\\1-UPRT.FR-SITE-WEB\\re-recettes-jean-marc-catteau\\re-catteau-galettes\\[PC-galette-garniture-mexicaine.xls]original"}]
[null,null,"COUSCOUS"]
[null,null,null,null,"Document édité le :",null,{"$f":"TODAY()","v":"2021-12-19"},null,null,{"$f":"NOW()","v":44549.866883449075}]
[null,null,1,"Effectifs  à saisir"]
[null,null,null,"Famille de convives",null,null,null,"Mater","Prim","Adultes","Adultes +","Ainés"]
[null,null,null,"Total Effectifs",null,null,{"$f":"SUM(H656:L656)","v":2170},550,920,340,150,210]
[]
[null,null,2,"grammages ou nombre de Morceaux ou tranches à saisir"]
[null,null,null,"haut de cuisse de poulet",null,null,{"$f":"(H659*H656)+(I659*I656)+(J659*J656)+(K659*K656)+(L659*L656)","v":1470},0,1,1,0,1]
[null,null,null,"pilon de poulet",null,null,{"$f":"(H660*H656)+(I660*I656)+(J660*J656)+(K660*K656)+(L660*L656)","v":850},1,0,0,2,0]
[null,null,null,"merguez",null,null,{"$f":"(H661*H656)+(I661*I656)+(J661*J656)+(K661*K656)+(L661*L656)","v":1895},0.5,1,1,1,1]
[null,null,null,"Agneau en morceaux",null,null,{"$f":"(H662*H656)+(I662*I656)+(J662*J656)+(K662*K656)+(L662*L656)","v":1190},0,0,2,2,1]
[null,null,null,"Agneau boulettes",null,null,{"$f":"(H663*H656)+(I663*I656)+(J663*J656)+(K663*K656)+(L663*L656)","v":2540},1,2,0,1,0]
[null,null,null,null,null,null,null,"Mater","Prim","Adultes","Adultes +","Ainés"]
[null,null,null,null,null,null,"Total Mx par convive",{"$f":"SUM(H659:H664)","v":2.5},{"$f":"SUM(I659:I664)","v":4},{"$f":"SUM(J659:J664)","v":4},{"$f":"SUM(K659:K664)","v":6},{"$f":"SUM(L659:L664)","v":3}]
[]
[null,null,3,"légumes couscous cuits",null,null,{"$f":"(H667*H656)+(I667*I656)+(J667*J656)+(K667*K656)+(L667*L656)","v":208.60000000000002},0.06,0.08,0.15,0.2,0.1]
[]
[null,null,4,"Semoule cuite",null,null,{"$f":"(H669*H656)+(I669*I656)+(J669*J656)+(K669*K656)+(L669*L656)","v":213.5},0.06,0.1,0.12,0.15,0.12]
[]
[null,null,5,"Bouillon",null,null,{"$f":"(H671*H656)+(I671*I656)+(J671*J656)+(K671*K656)+(L671*L656)","v":237.5},0.06,0.1,0.15,0.2,0.15]
[]
[]
[]
[]
[null,null,"Comment respecter un grammage à servir Exemple N° 1"]
[null,null,"Police de couleur pour saisir vos valeurs    Noir ou gris = formules"]
[null,null,"Les quantités consommées par les enfants dépendent :de l'âge, de la saison, du goût, de l'influence des camarades,de l'activité phisique et/ou du grignotage en récréation sans parler du verre de lait (long à digérer) servi parfois trop près de l'heure du repas"]
[]
[]
[]
[null,null,"Au repas si l'enfant mange beaucoup de pain avec ou en remplacement du plat proposé; les quantités ingérées seront d'autant diminuées. Pour limiter le \"gaspillage\" et satisfaire les \"gourmants\"; vous pouvez avoir recours à cet exemple de service."]
[]
[]
[]
[null,null,"POSSON PANÉ",null,null,null,"Poids unitaire du produit ",null,0.09,"Grammages à servir",null,0.12]
[]
[]
[null,null,{"$f":"IF(E689=\"\",\"produit à servir\",\"produits entiers à couper en \")","v":"produits entiers à couper en "},null,{"$f":"IF(K696=1,\"\",K696)","v":1.5},{"$f":"LARGE(F697:F701,1)","v":3},"parts","pour",{"$f":"LARGE(G697:G701,1)","v":2},"enfants"]
[]
[]
[null,null,{"$f":"IF(D692=\"\",\"MOINS\",\"Servir \")","v":"Servir "},{"$f":"IF(F689-1=0,\"\",F689-1)","v":2},{"$f":"IF(D692=\"\",\"\",IF(G692=1,\"produits entiers de\",\"produits coupés en \"))","v":"produits entiers de"},null,{"$f":"IF(D692=\"\",\"\",I689/D692)","v":1},{"$f":"IF(D692=\"\",\"\",\"parts\")","v":"parts"},{"$f":"IF(D692=\"\",\"\",\"grammage unitaire\")","v":"grammage unitaire"},null,{"$f":"IF(D692=\"\",\"\",I686/G692)","v":0.09}]
[]
[null,null,{"$f":"IF(D692=\"\",\"\",\"plus\")","v":"plus"},{"$f":"IF(D692=\"\",\"\",F689-D692)","v":1},{"$f":"IF(D694=\"\",\"\",\"produit coupé en \")","v":"produit coupé en "},null,{"$f":"IF(E694=\"\",\"\",I689)","v":2},{"$f":"IF(E694=\"\",\"\",\"parts\")","v":"parts"},null,{"$f":"IF(D694=\"\",\"moins\",\" de\")","v":" de"},{"$f":"IF(E694=\"\",I686-L686,I686/G694)","v":4.4999999999999998E-2}]
[]
[null,null,"Poids  produit à servir","Poids  produit envoyé","Écart de poids","Meilleur rapport",null,"produits entiers","pour",null,{"$f":"LARGE(L697:L701,1)","v":1.5},{"$f":"SMALL(E697:E701,COUNTIF(E697:E701,0)+1)","v":3.0000000000000027E-2}]
[null,null,{"$f":"L686*I697","v":0},{"$f":"I686*H697","v":0.09},{"$f":"D697-C697","v":0.09},{"$f":"IF(E697=L696,H697,0)","v":0},{"$f":"IF(F697>0,I697,0)","v":0},1,{"$f":"INT(J697)","v":0},{"$f":"D697/L686","v":0.75},{"$f":"IF(F697=0,0,F697/G697)","v":0},{"$f":"ROUNDDOWN(K697,1)","v":0}]
[null,null,{"$f":"L686*I698","v":0.12},{"$f":"I686*H698","v":0.18},{"$f":"D698-C698","v":0.06},{"$f":"IF(E698=L696,H698,0)","v":0},{"$f":"IF(F698>0,I698,0)","v":0},2,{"$f":"INT(J698)","v":1},{"$f":"D698/L686","v":1.5},{"$f":"IF(F698=0,0,F698/G698)","v":0},{"$f":"ROUNDDOWN(K698,1)","v":0}]
[null,null,{"$f":"L686*I699","v":0.24},{"$f":"I686*H699","v":0.27},{"$f":"D699-C699","v":3.0000000000000027E-2},{"$f":"IF(E699=L696,H699,0)","v":3},{"$f":"IF(F699>0,I699,0)","v":2},3,{"$f":"INT(J699)","v":2},{"$f":"D699/L686","v":2.2500000000000004},{"$f":"IF(F699=0,0,F699/G699)","v":1.5},{"$f":"ROUNDDOWN(K699,1)","v":1.5}]
[null,null,{"$f":"L686*I700","v":0.36},{"$f":"I686*H700","v":0.36},{"$f":"D700-C700","v":0},{"$f":"IF(E700=L696,H700,0)","v":0},{"$f":"IF(F700>0,I700,0)","v":0},4,{"$f":"INT(J700)","v":3},{"$f":"D700/L686","v":3},{"$f":"IF(F700=0,0,F700/G700)","v":0},{"$f":"ROUNDDOWN(K700,1)","v":0}]
[null,null,{"$f":"L686*I701","v":0.36},{"$f":"I686*H701","v":0.44999999999999996},{"$f":"D701-C701","v":8.9999999999999969E-2},{"$f":"IF(E701=L696,H701,0)","v":0},{"$f":"IF(F701>0,I701,0)","v":0},5,{"$f":"INT(J701)","v":3},{"$f":"D701/L686","v":3.7499999999999996},{"$f":"IF(F701=0,0,F701/G701)","v":0},{"$f":"ROUNDDOWN(K701,1)","v":0}]
[]
[]
[null,null,"Tableaux pour service ou cuisson"]
[null,null,"1 = saisissez le poids dans un contenant (une louche une barquette etc,,)"]
[null,null,null,null,"2 =  saisissez le poids de la portion à servir par convive"]
[null,null,"Police de couleur pour saisir vos valeurs    Noir = formules"]
[null,null," Poids dans 1 contenant",null,"Poids d' une Portion"]
[]
[null,null,10,null,0.1,null,null,null,null,null,"1 louche ou 1 contenant pour ",{"$f":"C710/E710","v":100}]
[null,null,1,null,7.0000000000000007E-2,null,null,null,null,null,"1 louche ou 1 contenant pour ",{"$f":"C711/E711","v":14.285714285714285}]
[]
[null,null,"1 = saisissez le poids dans un contenant (une louche une barquette etc,,)"]
[null,null,null,null,"2 =  saisissez le nombre de portions à servir"]
[null,null," Poids dans 1 contenant",null,"Nb de Portions à servir",null,"Exemples",null,null,null,null,null,"Poids de la portion"]
[]
[null,null,0.9,null,7,null,"1 melon de ",null,null,{"$f":"C717","v":0.9},"pour",{"$f":"E717","v":7},{"$f":"C717/E717","v":0.12857142857142859}]
[null,null,3.5,null,20,null,"1 plaque hachis parmentier ",null,null,{"$f":"C718","v":3.5},"pour",{"$f":"E718","v":20},{"$f":"C718/E718","v":0.17499999999999999}]
[]
[]
[]
[null,null,"Total Mx dans 1 contenant",null,"Portion Nb de Mx par portion",null,"Nb portions","Police de couleur pour saisir vos valeurs    Noir = formules"]
[]
[null,null,32,null,1.45,null,{"$f":"C724/E724","v":22.068965517241381},"QUOI ?"]
[]
[null,null,"EXEMPLES"]
[null,null,32,null,1.2,null,{"$f":"C727/E727","v":26.666666666666668},"32 tranches par plaque ( 1 plaque pour 26 maternelles)"]
[null,null,12,null,1,null,12,"table de 12"]
[null,null,32,null,2,null,16,"32 tranches par plaque ( 1 plaque pour 16 adultes)"]
[null,null,32,null,1.2,null,26.666666666666668,"32 tranches par plaque ( 1 plaque pour 16 adultes)"]
[null,null,33,null,1.3,null,25.384615384615383,"1 plaque pour 25 ( 1 tranche par maternelle plus RAB )"]
[null,null,33,null,1.5,null,22,"33 tranches par plaque ( 1.5 tranches par primaire)"]
[null,null,30,null,1.2,null,25,"1 plaque pour 25 ( 1 morceau par maternelle plus RAB )"]
[null,null,33,null,1.6,null,20.625,"1 plaque pour 20 ( 1 morceau par primaire plus RAB )"]
[null,null,33,null,2,null,16.5,"1 plaque pour 16 ( 1 morceau par adulte plus RAB )"]
[null,null,48,null,6,null,8,"1 plaque pour 8 ( 6 morceau par adulte + )"]
[null,null,1,null,0.25,null,4,"1 CITRON POUR 4"]
[null,null,25,null,1,null,25,"1 Boite de compote pour 25"]
[]
[null,null,"Le contenant peut être une louche pour le service un gastro pour la cuisson  etc…"]
[null,null,"Les Mx cela peut s'appliquer à des morceaux de bourguignon mais aussi des tomates farcies ou des oreillons de pêches au sirop pour le dessert etc.."]
[]
[]
[]
[]
[]
[null,"Combien faut-il commander pour des effectifs et des grammages différents"]
[]
[null,"Petit utilitaire d'Aide à la décision"]
[]
[null,null,null,null,"Saisissez vos effectifs ",250,620,37,14,{"$f":"SUM(F751:I751)","v":921},"couverts"]
[null,null,null,null," et vos grammages nets à servir",4.4999999999999998E-2,7.0000000000000007E-2,0.11,0.13,null,"% de perte",25,"@"]
[null,null,null,null,"Familles de convives","Mater","Prim","Adultes","Adultes +","Quantités à Prévoir"]
[null,null,null,null,"Net à servir :",{"$f":"F752*F751","v":11.25},{"$f":"G752*G751","v":43.400000000000006},{"$f":"H752*H751","v":4.07},{"$f":"I752*I751","v":1.82},{"$f":"SUM(F754:I754)","v":60.540000000000006},null,"Net"]
[null,null,null,null,"Brut à Commander",{"$f":"F754/(100-L752)*100","v":15},{"$f":"G754/(100-L752)*100","v":57.866666666666674},{"$f":"H754/(100-L752)*100","v":5.4266666666666667},{"$f":"I754/(100-L752)*100","v":2.4266666666666667},{"$f":"SUM(F755:I755)","v":80.72},null,"Brut"]
[null,null,null,null,null,null,null,null,null,{"$f":"J755-J754","v":20.179999999999993},null,"poids de perte"]
[null,null,null,null,null,null,null,null,null,{"$f":"(J756/J751)*1000","v":21.910966340933761},null,"en moyenne par convive"]
[null,null,"@","Facultatif Mais si vous saisissez un % la question à vous poser c'est : le produit brut ou cru perd comblien au parage ou en cuisson"]
[null,null,null,"Vous obtiendrez le poids brut à commander"]
[]
[]
[]
["ICI","QUANTITÉS A SERVIR OU A COMMANDER",null,null,null,null,null,null,null,null,null,null,null,1]
[]
[null,"DESCRIPTIF"]
[null," Saisissez vos effectifs Saisissez vos quantités pour vos familles de convives et vous obtiendrez le net à servir. Avez-vous un pourcentage de perte (à l'épluchage -au parage en cuisson ou autre)…saisissez le et vous obtiendrez les quantités brutes à commander"]
[]
[]
[]
[]
[null,null,null,null,null,null,null,null,null,null,null,"❶"]
[null,null,null,null,null,null,null,null,null,null,"Que traitez vous : des Kg des litres des pièces des portions …des poires etc…","pommes"]
[]
[null,null,null,null,null,"Famille de convives","Mater","Prim","Adultes","Adultes +","Seniors"]
[null,null,null,null,null,"Saisissez vos effectifs ",50,500,150,13,13,{"$f":"SUM(G775:K775)","v":726},"couverts"]
[null,null,null,null,null,"Saisissez vos quantités nets à servir",0.5,1,1,2,1,{"$f":"SUM(G776:K776)/COUNTIF(G776:K776,\">0\")","v":1.1000000000000001},"de moyenne"]
[null,null,null,null,null,"Net à préparer :",{"$f":"G776*G775","v":25},{"$f":"H776*H775","v":500},{"$f":"I776*I775","v":150},{"$f":"J776*J775","v":26},{"$f":"K776*K775","v":13},{"$f":"SUM(G777:K777)","v":714},{"$f":"L772","v":"pommes"}]
[null,null,null,null,null,null,{"$f":"L772","v":"pommes"},{"$f":"L772","v":"pommes"},{"$f":"L772","v":"pommes"},{"$f":"L772","v":"pommes"},{"$f":"L772","v":"pommes"}]
[null,null,"% de perte",10,"❷"]
[null,null,null,null,null,"Brut à Commander",{"$f":"G777/(100-D779)*100","v":27.777777777777779},{"$f":"H777/(100-D779)*100","v":555.55555555555554},{"$f":"I777/(100-D779)*100","v":166.66666666666669},{"$f":"J777/(100-D779)*100","v":28.888888888888886},{"$f":"K777/(100-D779)*100","v":14.444444444444443},{"$f":"SUM(G780:K780)","v":793.33333333333337},{"$f":"L772","v":"pommes"}]
[null,null,null,null,null,null,{"$f":"L772","v":"pommes"},{"$f":"L772","v":"pommes"},{"$f":"L772","v":"pommes"},{"$f":"L772","v":"pommes"},{"$f":"L772","v":"pommes"}]
[]
[null,"❶","Collez une des unités suivante ou saisissez un nom de produit"]
[null,null,"litres",null,null,"Kg",null,null,"Portions",null,null,"Pièce(s)"]
[null,"❷","si vous n'avez pas de perte ne saisissez rien"]
[null,"Familles de convives :Mater = enfants Maternelles Prim = enfants de l'enseignement Primaire Adulte = sédentaire Adulte + = travailleur de force Seniors = nos Ainés je classe les Adolescennts en Adultes +"]
[]
[null,"Adresse PC",{"$f":"CELL(\"nomfichier\")","v":"E:\\0-UPRT\\1-UPRT.FR-SITE-WEB\\re-recettes-jean-marc-catteau\\re-catteau-galettes\\[PC-galette-garniture-mexicaine.xls]original"}]
[null,"Mise à jour","du 03-01-2017 Annule et remplace les versions précédentes"]
[null,"Adaptation : Joël Leboucher..UPRT \"Union des Personnels de la Restauration Territoriale\"  membre du réseau RESTAU'CO"]
[]
["ICI","COMBIEN POURRIEZ VOUS SERVIR AVEC",null,null,null,null,null,null,null,null,null,null,null,2]
[]
[null,"DESCRIPTIF"]
[null,"Vous avez préparé ou il vous reste un poids X d'une préparation. Avec ce poids combien de convives ou combien de portions pourrez vous servir"]
[]
[]
[]
[]
[null,null,null,null,null,null,null,null,null,null,null,"❶"]
[null,null,null,null,null,null,null,null,null,null,"Poids de votre préparation ",2.4]
[]
[]
[null,null,null,null,null,"Famille de convives","Mater","Prim","Adultes","Adultes +","Seniors"]
[null,null,null,null,null,"Saisissez vos grammages nets à servir",0.05,0.08,0.11,0.125,7.0000000000000007E-2,{"$f":"SUM(G805:K805)/COUNTIF(G805:K805,\">0\")","v":8.6999999999999994E-2},"de moyenne"]
[null,null,null,null,null,"Vous pourrIez servir",{"$f":"L801/G805","v":47.999999999999993},{"$f":"L801/H805","v":30},{"$f":"L801/I805","v":21.818181818181817},{"$f":"L801/J805","v":19.2},{"$f":"L801/K805","v":34.285714285714285},"Portions / pièces / parts"]
[null,"❶","A vous de saisir un poids"]
[null,"BONUS"]
[null,null,null,null,null,null,null,null,null,null,null,"❷"]
[null,null,null,null,null,null,null,null,null,null,"Que traitez vous : des Kg des litres des pièces des portions …des poires etc…","Kg"]
[]
[null,null,null,null,null,"Saisissez vos effectifs ",50,500,150,13,13,{"$f":"SUM(G812:K812)","v":726},"couverts"]
[null,null,null,null,null,"Vous devriez préparer :",{"$f":"G805*G812","v":2.5},{"$f":"H805*H812","v":40},{"$f":"I805*I812","v":16.5},{"$f":"J805*J812","v":1.625},{"$f":"K805*K812","v":0.91000000000000014},{"$f":"SUM(G813:K813)","v":61.534999999999997},{"$f":"L810","v":"Kg"}]
[null,null,null,null,null,null,{"$f":"L810","v":"Kg"},{"$f":"L810","v":"Kg"},{"$f":"L810","v":"Kg"},{"$f":"L810","v":"Kg"},{"$f":"L810","v":"Kg"}]
[null,null,"% de perte",50,"❸"]
[null,null,null,null,null,"Brut à Commander",{"$f":"G813/(100-D815)*100","v":5},{"$f":"H813/(100-D815)*100","v":80},{"$f":"I813/(100-D815)*100","v":33},{"$f":"J813/(100-D815)*100","v":3.25},{"$f":"K813/(100-D815)*100","v":1.8200000000000005},{"$f":"SUM(G816:K816)","v":123.07000000000001},{"$f":"L810","v":"Kg"}]
[null,null,null,null,null,null,{"$f":"L810","v":"Kg"},{"$f":"L810","v":"Kg"},{"$f":"L810","v":"Kg"},{"$f":"L810","v":"Kg"},{"$f":"L810","v":"Kg"}]
[null,"❸","si vous n'avez pas de perte ne saisissez rien"]
[null,"❷","Collez une des unités suivante ou saisissez un nom de produit"]
[null,null,"Kg",null,null,"Portions",null,null,"Pièce(s)",null,null,"litres"]
[]
[null,"Familles de convives :Mater = enfants Maternelles Prim = enfants de l'enseignement Primaire Adulte = sédentaire Adulte + = travailleur de force Seniors = nos Ainés je classe les Adolescennts en Adultes +"]
[]
[null,"Adresse PC",{"$f":"CELL(\"nomfichier\")","v":"E:\\0-UPRT\\1-UPRT.FR-SITE-WEB\\re-recettes-jean-marc-catteau\\re-catteau-galettes\\[PC-galette-garniture-mexicaine.xls]original"}]
[null,"Mise à jour","du 03-01-2017 Annule et remplace les versions précédentes"]
[null,"Adaptation : Joël Leboucher..UPRT \"Union des Personnels de la Restauration Territoriale\"  membre du réseau RESTAU'CO"]
[]
[]
[]
["RÉFLEXION SUR DES MODÈLE DE RÉPERTOIRES"]
[]
[]
[null,null,null,null,"Créer un ou plusieurs répertoires n'est pas tâche facile…à chacun de classer comme il le souhaite"]
[null,null,null,null,null,"par famille de produits"]
[null,null,null,null,null,"par technique"]
[null,null,null,null,null,"par ingrédients "]
[null,null,null,null,null,"etc...autant de possibilités que de façons de penser"]
[null,null,null,null,"vous pouvez utiliser un disque dur externe qui vous suivra partout"]
[]
[]
[]
[]
[null,null,"Répertoire Patisserie",null,null,null,null,null,"Répertoire \"Postits\" Alpha par type de fabrication si possible"]
[]
[null,null,null,"Entremets"]
[null,null,null,"A",null,null,null,"C"]
[null,null,null,"B",null,null,null,null,"Cracker (Pâte à)"]
[null,null,null,"C",null,null,null,null,"Cracker (Poudre à)"]
[null,null,null,"D",null,null,null,"F"]
[null,null,null,"Etc…",null,null,null,null,"Fraises des bois dans leur jus"]
[null,null,null,null,null,null,null,"I"]
[null,null,null,"Tartes",null,null,null,null,"Insert Kappa fraise"]
[null,null,null,"A",null,null,null,"J"]
[null,null,null,"B",null,null,null,null,"Jus de fraise"]
[null,null,null,"C",null,null,null,"K"]
[null,null,null,"D",null,null,null,null,"Kappa fraise"]
[null,null,null,"Etc…",null,null,null,"S"]
[null,null,null,null,null,null,null,null,"Sorbet Avocat"]
[null,null,null,"Gros Gateaux",null,null,null,null,"Siphon Fraise"]
[null,null,null,"A",null,null,null,null,"Sauce Fraise"]
[null,null,null,"B",null,null,null,null,"Sirop à Crackers"]
[null,null,null,"C"]
[null,null,null,"Coussin Cœur St Valentin 2014 François Perret Journal du Patissier N° 292 page 40"]
[null,null,null,"D"]
[null,null,null,"Etc…"]
[]
[null,null,null,"Pièces individuelles"]
[null,null,null,"A"]
[null,null,null,"B"]
[null,null,null,"C"]
[null,null,null,"D"]
[null,null,null,"Etc…"]
[]
[]
[null,null,"Transmettez vos savoirs faires peut importe qui les récupèrent pourvu qu'ils servent à un plus grand nombre"]
[]
[null,null,"Bonne utilisation et… à chacun d'améliorer et d'adapter ces documents.  J Leboucher"]

{"sheet":"Poids fruits et légumes","index":10,"n_rows":128,"n_cols":51,"rows_kept":128,"cut":false,"hidden":false,"merged":[[0,1,0,21],[1,1,3,6],[1,8,3,13],[1,15,3,20],[4,0,67,0],[4,7,67,7],[4,14,67,14],[4,21,67,21],[73,31,74,31],[73,32,73,34],[73,35,73,38],[101,27,101,29],[102,27,103,28]]}
[null,"POIDS DES FRUITS ET LÉGUMES  …décembre 2017 annule et remplace les versions précédentes"]
[null,"Saisissez votre nombre d'unité (encre rouge)Modifiez le poids unitaire (encre verte) s'il n'est pas excact",null,null,null,null,null,null,"Saisissez votre nombre d'unité (encre rouge)Modifiez le poids unitaire (encre verte) s'il n'est pas excact",null,null,null,null,null,null,"Saisissez votre nombre d'unité (encre rouge)Modifiez le poids unitaire (encre verte) s'il n'est pas excact"]
[]
[]
[null,"N°","Produits","Poids unitaire","Nb d'unités","Poids en Gr","Poids en Kg",null,"N°","Produits","Poids unitaire","Nb d'unités","Poids en Gr","Poids en Kg",null,"N°","Produits","Poids unitaire","Nb d'unités","Poids en Gr","Poids en Kg"]
[null,null,"A",null,null,null,null,null,null,"G",null,null,null,null,null,null,"R",null,null,null,null,null,null,"4.1. Poids et mesures (A-C)",null,null,null,null,null,null,null,"Poids moyen (à la pièce, en grammes).  ",null,null,null,null,null,null,null,null,null,null,null,null,null,null,null,"LIENS"]
[null,1,"Abricot",55,10,{"$f":"(D7*E7)","v":550},{"$f":"F7/1000","v":0.55000000000000004},null,{"$f":"B66+1","v":56},"Hareng",170,10,{"$f":"(K7*L7)","v":1700},{"$f":"M7/1000","v":1.7},null,{"$f":"I68+1","v":113},"Raisin sec Tasse thé de 15 cl",20,10,{"$f":"(R7*S7)","v":200},{"$f":"T7/1000","v":0.2}]
[null,{"$f":"LARGE(B7:B7,1)+1","v":2},"Ail gousse",5,10,50,0.05,null,{"$f":"LARGE(I7:I7,1)+1","v":57},"Haricot sec Verre de 20 cl",160,10,{"$f":"(K8*L8)","v":1600},1.6,null,{"$f":"LARGE(P7:P7,1)+1","v":114},"Riz long Verre de 20 cl",125,10,1250,1.25,null,null,"Aliment","Mesure de capacité ","Poids",null,"Aliment","Mesure de capacité ","Poids",null,"Biscuit sec : 10. Biscotte : 18. Croissant : 50. ",null,null,null,null,null,null,null,null,null,null,null,null,null,null,null,"http://www.nubel.be/fra/manual/liste_des_denrees_alimentaires.asp"]
[null,{"$f":"LARGE(B7:B8,1)+1","v":3},"Ail gousse moyenne",8,10,80,0.08,null,{"$f":"LARGE(I7:I8,1)+1","v":58},"Homard moyen",885,10,8850,8.85,null,null,"S",0,null,0,0]
[null,{"$f":"LARGE(B7:B9,1)+1","v":4},"Ail tête",50,10,500,0.5,null,{"$f":"LARGE(I7:I9,1)+1","v":59},"Homard petit",500,10,5000,5,null,{"$f":"LARGE(P7:P9,1)+1","v":115},"Sardine",45,10,450,0.45,null,null,"Ananas (frais)/ananas (boîte)","1 tranche moyenne","100 g/35 g",null,"Mandarine","1 moyenne","60 g",null," Crustacés (entiers) : écrevisse 34, homard 885. ",null,null,null,null,null,null,null,null,null,null,null,null,null,null,null,"https://www.nubel.be/fra/default.aspx"]
[null,{"$f":"LARGE(B7:B10,1)+1","v":5},"Ananas",2000,10,20000,20,null,null,"L",0,null,0,0,null,{"$f":"LARGE(P7:P10,1)+1","v":116},"Sel 1 pincée",1,10,10,0.01,null,null,"Avocat","1 moyen","160 g",null,"Mangue","1 moyenne","200 g"]
[null,{"$f":"LARGE(B7:B11,1)+1","v":6},"Artichaut",350,10,3500,3.5,null,{"$f":"LARGE(I7:I11,1)+1","v":60},"Lapin vidé",1500,10,15000,15,null,{"$f":"LARGE(P7:P11,1)+1","v":117},"Sel fin 1 cuillère café rase",50,10,500,0.5,null,null,"Abricot (sans noyau)",1,"150 g",null,"Maquereau fumé","1 filet","145 g",null," Fromages : camembert 250, livarot 500, pont-l'évêque 320, petit-suisse 25-30, yaourt (petit pot) 120-150. ",null,null,null,null,null,null,null,null,null,null,null,null,null,null,null,"POIDS MOYEN BRUT DE LA PIÈCE",null,"http://www.basesdelacuisine.com/Cadre1/z1/pp80.htm"]
[null,{"$f":"LARGE(B7:B12,1)+1","v":7},"Avocat 1/2",110,10,1100,1.1000000000000001,null,{"$f":"LARGE(I7:I12,1)+1","v":61},"Lentilles Verre de 20 cl",150,10,1500,1.5,null,{"$f":"LARGE(P7:P12,1)+1","v":118},"Sel fin 1 cuillère soupe rase",15,10,150,0.15,null,null,null,null,null,null,"Margarine","1 cuillère","18 g"]
[null,{"$f":"LARGE(B7:B13,1)+1","v":8},"Avocat entier",220,10,2200,2.2000000000000002,null,null,"M",0,null,0,0,null,{"$f":"LARGE(P7:P13,1)+1","v":119},"Sel fin 1 tasse",200,10,2000,2,null,null,"Bacon","1 fine tranche","11 g",null,"Mayonnaise","1 cuillère","25 g",null,"Fruits : abricot 55, banane 150, citron 125, datte 10, figue sèche 42, figue fraîche 45, mandarine 100, noix 13, orange 180, pamplemousse 400, pêche 130, poire 180, pomme 120, pruneau 15. ",null,null,null,null,null,null,null,null,null,null,null,null,null,null,null,"Fruits et légumes frais Poids moyen d'une pièce",null,null,"http://lahalledepessac.com/content/14-fruits-et-legumes-frais-poids-moyen-d-une-piece"]
[null,null,"B",0,null,0,0,null,{"$f":"LARGE(I7:I14,1)+1","v":62},"Maizena 1 cuillère soupe",10,10,100,0.1,null,{"$f":"LARGE(P7:P14,1)+1","v":120},"Sel pour 1 Kg Blé",12,10,120,0.12,null,null,"Banane","1 moyenne","130 g",null,"Melon","1 moyen","540 g"]
[null,{"$f":"LARGE(B7:B15,1)+1","v":9},"Banane",120,10,1200,1.2,null,{"$f":"LARGE(I7:I15,1)+1","v":63},"Melon gros",800,10,8000,8,null,{"$f":"LARGE(P7:P15,1)+1","v":121},"Sel pour 1 Kg Foie gras",12,10,120,0.12,null,null,"Beurre","1 cuillère","18 g",null,"Merlan","1 filet","100 g",null," Légumes : artichaut 250, aubergine 225, chou 1 000, chou-fleur 1 200, laitue 500, romaine 400, chicorée frisée 400, melon 700-1 000, radis (la botte) 350, tomate 100, oignon 125. ",null,null,null,null,null,null,null,null,null,null,null,null,null,null,null,"TABLES DE GRAMMAGES","http://etab.ac-poitiers.fr/lycee-hotelier-la-rochelle/IMG/pdf/Grammage_4.pdf"]
[null,{"$f":"LARGE(B7:B16,1)+1","v":10},"Baton de vanille",8,10,80,0.08,null,{"$f":"LARGE(I7:I16,1)+1","v":64},"Melon portion",500,10,5000,5,null,{"$f":"LARGE(P7:P16,1)+1","v":122},"Sel pour 1 Kg Merguez",19,10,190,0.19,null,null,"Beurre de cacahuète","1 cuillère","15 g",null,"Miel","1 cuillère","27 g"]
[null,{"$f":"LARGE(B7:B17,1)+1","v":11},"Beurre 1 cuillère café",4,10,40,0.04,null,{"$f":"LARGE(I7:I17,1)+1","v":65},"Merlan",230,10,2300,2.2999999999999998,null,{"$f":"LARGE(P7:P17,1)+1","v":123},"Sel pour 1 Kg Pâtes alimentaires",12,10,120,0.12,null,null,"Bière (pils)","1 verre à bière","250 ml",null,"Milk-shake","1 verre","150 ml",null," Poissons (entiers) : brochet 1 250, carpe 775, colin 2 000, daurade 600, églefin 350, hareng 170, saur 130, limande 150, maquereau 250, merlan 230, plie 160, sardine 45, truite 450, turbot 2 350. ",null,null,null,null,null,null,null,null,null,null,null,null,null,null,null,"POIDS MOYEN BRUT LEGUMES ET FRUITS ",null,"http://dmcwilshim.canalblog.com/archives/2009/01/18/12131475.html"]
[null,{"$f":"LARGE(B7:B18,1)+1","v":12},"Beurre 1 cuillère soupe",15,10,150,0.15,null,{"$f":"LARGE(I7:I18,1)+1","v":66},"Mouton 1/2 carcasse",9.5,10,95,9.5000000000000001E-2,null,{"$f":"LARGE(P7:P18,1)+1","v":124},"Sel pour 1 Kg Pommes terre",13,10,130,0.13,null,null,"Biscotte blanche/complète",1,"8 g/10 g",null,"Moule","1 pièce","4 g"]
[null,{"$f":"LARGE(B7:B19,1)+1","v":13},"Beurre 1 noisette",4,10,40,0.04,null,{"$f":"LARGE(I7:I19,1)+1","v":67},"Mouton carré couvert (5+3)",900,10,9000,9,null,{"$f":"LARGE(P7:P19,1)+1","v":125},"Sel pour 1 Kg Saucisse a griller",12,10,{"$f":"(R20*S20)/1000","v":0.12},1.1999999999999999E-4,null,null,"Biscuit",1,"10 g",null,"Muesli","1 tasse à café","50 g",null,"Sucre (morceau) : 6.",null,null,null,null,null,null,null,null,null,null,null,null,null,null,null,"Correspondance Calibre/ Poids fruits legumes"]
[null,{"$f":"LARGE(B7:B20,1)+1","v":14},"Beurre 1 noix",15,10,150,0.15,null,{"$f":"LARGE(I7:I20,1)+1","v":68},"Mouton carré découvert (5)",900,10,9000,9,null,{"$f":"LARGE(P7:P20,1)+1","v":126},"Sel pour 1 Kg Semoule a couscous",13,10,{"$f":"(R21*S21)/1000","v":0.13},1.3000000000000002E-4,null,null,"Biscuit apéritif","1 pièce","4 g"]
[null,{"$f":"LARGE(B7:B21,1)+1","v":15},"Beurre 1 tasse",200,10,2000,2,null,{"$f":"LARGE(I7:I21,1)+1","v":69},"Mouton cervelle ",230,10,2300,2.2999999999999998,null,{"$f":"LARGE(P7:P21,1)+1","v":127},"Semoule Tasse thé de 15 cl",110,10,{"$f":"(R22*S22)/1000","v":1.1000000000000001},1.1000000000000001E-3,null,null,"Biscuit au chocolat",1,"20 g",null,"Nectarine",1,"95 g",null,"Viandes : lapin (vidé) 1 500 ; oie (entière) 5 500 ; poulet (entier) 1 800. Cervelle : bœuf 500, veau 300, mouton 100, porc 110.",null,null,null,null,null,null,null,null,null,null,null,null,null,null,null,"https://portal.health.fgov.be/pls/portal/docs/PAGE/INTERNET_PG/HOMEPAGE_MENU/ABOUTUS1_MENU/INSTITUTIONSAPPARENTEES1_MENU/HOGEGEZONDHEIDSRAAD1_MENU/ADVIEZENENAANBEVELINGEN1_MENU/ADVIEZENENAANBEVELINGEN1_DOCS/6545-2_POIDSETMESURES_FR_2005_2.PDF"]
[null,{"$f":"LARGE(B7:B22,1)+1","v":16},"Bœuf Cervelle",500,10,5000,5,null,{"$f":"LARGE(I7:I22,1)+1","v":70},"Mouton cœur",230,10,2300,2.2999999999999998,null,{"$f":"LARGE(P7:P22,1)+1","v":128},"Semoule Verre de 20 cl",130,10,{"$f":"(R23*S23)/1000","v":1.3},1.2999999999999999E-3,null,null,"Boudin blanc",1,"100 g",null,"Noisettes","10 pièces","12 g",null,"Cœur : bœuf 2 750, veau 500, mouton 230, porc 225. Foie : bœuf 8 500, veau 2 500, porc 750. "]
[null,{"$f":"LARGE(B7:B23,1)+1","v":17},"Bœuf cœur",2750,10,27500,27.5,null,{"$f":"LARGE(I7:I23,1)+1","v":71},"Mouton épaule",1.7,10,17,1.7000000000000001E-2,null,{"$f":"LARGE(P7:P23,1)+1","v":129},"Sole T1",280,10,{"$f":"(R24*S24)","v":2800},2.8,null,null,"Boudin noir",1,"100 g",null,null,null,null,null," Langue : bœuf 4 000, veau 1 000. Pied de porc 200. Ris de veau 750. Rognon : bœuf 1 000, veau 250, porc 170.",null,null,null,null,null,null,null,null,null,null,null,null,null,null,null,"http://www.aliments.org/poids.htm"]
[null,{"$f":"LARGE(B7:B24,1)+1","v":18},"Bœuf entrecôte",6000,10,60000,60,null,{"$f":"LARGE(I7:I24,1)+1","v":72},"Mouton gigot raccourci",2.2000000000000002,10,22,2.1999999999999999E-2,null,{"$f":"LARGE(P7:P24,1)+1","v":130},"Sole T2",350,10,3500,3.5,null,null,"Boudoir",1,"5,5 g",null,"Oeuf cuit",1,"50 g"]
[null,{"$f":"LARGE(B7:B25,1)+1","v":19},"Bœuf faux filet",8000,10,80000,80,null,{"$f":"LARGE(I7:I25,1)+1","v":73},"Mouton selle anglaise",2,10,20,0.02,null,{"$f":"LARGE(P7:P25,1)+1","v":131},"Sole T3",500,10,5000,5,null,null,null,null,null,null,"Oignon","1 moyen","115 g",null,null,null,null,null,null,null,null,null,null,null,null,null,null,null,null,null,"http://www.astro.ulg.ac.be/cours/magain/stat/stat52.html"]
[null,{"$f":"LARGE(B7:B26,1)+1","v":20},"Bœuf filet",4200,10,42000,42,null,null,"N",0,null,0,0,null,{"$f":"LARGE(P7:P26,1)+1","v":132},"Sole T4 + de",600,10,6000,6,null,null,"Cabillaud","1 darne","175 g",null,"Olive","1 moyenne","4 g",null,"Modification.   Poids brut d'aliments résultant de la cuisson de:"]
[null,{"$f":"LARGE(B7:B27,1)+1","v":21},"Bœuf foie",8500,10,85000,85,null,{"$f":"LARGE(I7:I27,1)+1","v":74},"Noix",8,10,80,0.08,null,{"$f":"LARGE(P7:P27,1)+1","v":133},"Sole T4 + de",800,10,8000,8,null,null,"Cacahuètes","1 cuillère/10 pièces","20 g/20 g",null,"Omelette (1 œuf)",1,"60 g",null,null,null,null,null,null,null,null,null,null,null,null,null,null,null,null,null,"lien : une portion c'est combien   sur la nutrition.fr"]
[null,{"$f":"LARGE(B7:B28,1)+1","v":22},"Bœuf langue",4000,10,40000,40,null,{"$f":"LARGE(I7:I28,1)+1","v":75},"Noix épluchées Tasse thé de 15 cl",50,10,500,0.5,null,{"$f":"LARGE(P7:P28,1)+1","v":134},"Sucre morceaux",5,10,50,0.05,null,null,"Café/thé","1 tasse","125g",null,"Orange","1 moyenne","140 g",null,"100 g d'aliments crus. Farineux : coquillettes 385, macaronis 400, nouilles 385, riz 295, spaghettis 385. "]
[null,{"$f":"LARGE(B7:B29,1)+1","v":23},"Bœuf rognon",1000,10,10000,10,null,null,"O",0,null,0,0,null,{"$f":"LARGE(P7:P29,1)+1","v":135},"Sucre semoule 1 cuillère café",5,10,50,0.05,null,null,"Cake","1 fine tranche","30 g"]
[null,{"$f":"LARGE(B7:B30,1)+1","v":24},"Bœuf train côtes milieu",8500,10,85000,85,null,{"$f":"LARGE(I7:I30,1)+1","v":76},"Oeuf  le blanc",30,10,300,0.3,null,{"$f":"LARGE(P7:P30,1)+1","v":136},"Sucre semoule 1 cuillère soupe",15,10,150,0.15,null,null,"Cake fourré aux fruits","1 fine tranche","35 g",null,"Pain blanc/gris","1 tranche carrée","27 g",null,"100 g d'aliments crus. Légumes frais : artichauts 87, asperges 87, bettes 90, betteraves rouges à l'eau 91, au four 57, carottes à l'eau 100, à l'étouffée 64, "]
[null,{"$f":"LARGE(B7:B31,1)+1","v":25},"Brochet",1250,10,12500,12.5,null,{"$f":"LARGE(I7:I31,1)+1","v":77},"Oeuf gros",60,10,600,0.6,null,{"$f":"LARGE(P7:P31,1)+1","v":137},"Sucre semoule 1 tasse",200,10,2000,2,null,null,"Canard/faisan","1 portion","125 g",null,"Pain blanc/gris","1 tranche ronde","29 g"]
[null,null,"C",null,null,0,0,null,{"$f":"LARGE(I7:I32,1)+1","v":78},"Oeuf moyen",50,10,500,0.5,null,{"$f":"LARGE(P7:P32,1)+1","v":138},"Sucre Verre de 20 cl",150,10,1500,1.5,null,null,"Carambole","1 pièce","155 g",null,"Pain complet","1 tranche carrée","35 g",null,"100 g d'aliments crus. légumes frais : , céleris (côtes) 94, raves cuites à l'eau 91, sautées 54, champignons de couche frits 83, "]
[null,{"$f":"LARGE(B7:B33,1)+1","v":26},"Cacao poudre 1 cuillère soupe",8,10,80,0.08,null,{"$f":"LARGE(I7:I33,1)+1","v":79},"Oeuf petit",40,10,400,0.4,null,null,"T",0,null,0,0,null,null,"Carotte","1 moyenne","100 g",null,"Pain complet","1 tranche ronde","45 g"]
[null,{"$f":"LARGE(B7:B34,1)+1","v":27},"Cacao Tasse thé de 15 cl",120,10,1200,1.2,null,{"$f":"LARGE(I7:I34,1)+1","v":80},"Œufs 1 douzaine",50,12,600,0.6,null,{"$f":"LARGE(P7:P34,1)+1","v":139},"Tapioca Tasse thé de 15 cl",100,10,1000,1,null,null,"Céleri rave, cru","1 portion","85 g",null,"Pain grillé blanc/gris",1,"21 g",null,"100 g d'aliments crus. légumes frais :  chou vert, cuit à l'eau 92, à l'étouffée 64, de Bruxelles 86, -fleur 92, "]
[null,{"$f":"LARGE(B7:B35,1)+1","v":28},"Canard vidé",1500,10,15000,15,null,{"$f":"LARGE(I7:I35,1)+1","v":81},"Œufs blanc d'",30,10,300,0.3,null,{"$f":"LARGE(P7:P35,1)+1","v":140},"Thon boite 1/10",80,10,800,0.8,null,null,"Céréales de petit déjeuner","1 tasse à café","40 g",null,"Pain d'épices","1 tranche","23 g"]
[null,{"$f":"LARGE(B7:B36,1)+1","v":29},"Carotte moyenne",120,10,1200,1.2,null,{"$f":"LARGE(I7:I36,1)+1","v":82},"Œufs entiers",50,10,500,0.5,null,{"$f":"LARGE(P7:P36,1)+1","v":141},"Thon boite 1/3 saladière",260,10,2600,2.6,null,null,"Cerise (sans noyau)",1,"4 g",null,"Pain de seigle","1 tranche","40 g",null,"100 g d'aliments crus. légumes frais : épinards cuits à l'eau ou au jus 83, haricots verts cuits à l'eau 104, à l'étouffée 90, navets, cuits à l'eau 95, à l'étouffée 92,"]
[null,{"$f":"LARGE(B7:B37,1)+1","v":30},"Céléri 1 branche",35,10,350,0.35,null,{"$f":"LARGE(I7:I37,1)+1","v":83},"Œufs jaune",20,10,200,0.2,null,{"$f":"LARGE(P7:P37,1)+1","v":142},"Thon boite 1/5",160,10,1600,1.6,null,null,"Cervelas",1,"150 g",null,"Pain de viande","1 fine tranche","30 g"]
[null,{"$f":"LARGE(B7:B38,1)+1","v":31},"Céléri rave",1000,10,10000,10,null,{"$f":"LARGE(I7:I38,1)+1","v":84},"Oignon moyen",70,10,700,0.7,null,{"$f":"LARGE(P7:P38,1)+1","v":143},"Thon boite 1/6 basse",430,10,4300,4.3,null,null,"Champignon, cuit","1 cuillère","30 g",null,"Pain français (baguette)","1 moyen","260 g",null,"100 g d'aliments crus. légumes frais : poireaux 81, p. de terre en robe des champs 98, à l'anglaise 95, au four 80, en purée 119, en ragoût 154, frites 44 1, "]
[null,{"$f":"LARGE(B7:B39,1)+1","v":32},"Cerises",65,10,650,0.65,null,{"$f":"LARGE(I7:I39,1)+1","v":85},"Olives",4,10,40,0.04,null,{"$f":"LARGE(P7:P39,1)+1","v":144},"Thon boite 1/8",52,10,520,0.52,null,null,"Chicon",1,"100 g",null,"Pamplemousse","1 moyen","200 g"]
[null,{"$f":"LARGE(B7:B40,1)+1","v":33},"Choux fleur",1500,10,15000,15,null,{"$f":"LARGE(I7:I40,1)+1","v":86},"Orange",240,10,2400,2.4,null,{"$f":"LARGE(P7:P40,1)+1","v":145},"Thon boite 4/4 saladière",118,10,1180,1.18,null,null,"Chips","1 paquet","30 g",null,"Papaye","1 moyenne","125 g",null,"100 g d'aliments crus. légumes frais : , potiron 55, scarole 71, tomates frites 69. Légumes secs : fèves 310, haricots 270,"]
[null,{"$f":"LARGE(B7:B41,1)+1","v":34},"Choux vert",2000,10,20000,20,null,{"$f":"LARGE(I7:I41,1)+1","v":87},"Orange moyenne",140,10,1400,1.4,null,{"$f":"LARGE(P7:P41,1)+1","v":146},"Tomate grosse",110,10,1100,1.1000000000000001,null,null,"Chocolat","1 barre","25 g",null,"Parmesan","1 cuillère","10 g"]
[null,{"$f":"LARGE(B7:B42,1)+1","v":35},"Citron moyen",80,10,800,0.8,null,null,"P",0,null,0,0,null,{"$f":"LARGE(P7:P42,1)+1","v":147},"Tomate moyenne",50,10,500,0.5,null,null,"Chou de Bruxelles, cuit","1 cuillère","40 g",null,"Pastèque","1 moyenne","1125 g",null,"100 g d'aliments crus. légumes frais : ,, pois cassés 400. "]
[null,{"$f":"LARGE(B7:B43,1)+1","v":36},"Clémentine",70,10,700,0.7,null,{"$f":"LARGE(I7:I43,1)+1","v":88},"Pamplemousse",400,10,4000,4,null,{"$f":"LARGE(P7:P43,1)+1","v":148},"Tomate petite",50,10,500,0.5,null,null,"Chou-fleur/brocoli, cuit","1 cuillère","30 g",null,"Pâte à tartiner (choco)","1 cuillère","33 g"]
[null,{"$f":"LARGE(B7:B44,1)+1","v":37},"Colin",2000,10,20000,20,null,{"$f":"LARGE(I7:I44,1)+1","v":89},"Pêche",120,10,1200,1.2,null,{"$f":"LARGE(P7:P44,1)+1","v":149},"Truite portion",250,10,2500,2.5,null,null,"Citron","1 moyen","70 g",null,"Pâté de foie","1 cuillère","15 g",null,"100 g d'aliments crus. l Poissons : au court-bouillon 95, frits 81. Crevettes : 97. "]
[null,{"$f":"LARGE(B7:B45,1)+1","v":38},"Concombre",200,10,2000,2,null,{"$f":"LARGE(I7:I45,1)+1","v":90},"Pied veau",1,10,10,0.01,null,{"$f":"LARGE(P7:P45,1)+1","v":150},"Turbot",3500,10,35000,35,null,null,"Clémentine",1,"35 g",null,"Pâtes, cuites","1 tasse à café","210 g"]
[null,{"$f":"LARGE(B7:B46,1)+1","v":39},"Coquillette Verre de 20 cl",120,10,1200,1.2,null,{"$f":"LARGE(I7:I46,1)+1","v":91},"Poireau beau",200,10,2000,2,null,null,"V",0,null,0,0,null,null,"Compote de pommes","1 cuillère","40 g",null,"Pâtes, sèches","1 tasse à café","70 g",null,"100 g d'aliments crus.  Viandes : bœuf : bifteck grillé 88, au gril 83, au plat 88, rôti (1/2 h) 77, bouilli 83. "]
[null,{"$f":"LARGE(B7:B47,1)+1","v":40},"Courgette",350,10,3500,3.5,null,{"$f":"LARGE(I7:I47,1)+1","v":92},"Poireau blanc de",40,10,400,0.4,null,{"$f":"LARGE(P7:P47,1)+1","v":151},"Veau carré couvert (5+3)",2200,10,22000,22,null,null,"Concombre, cru","1 portion","85 g",null,"Pêche (sans noyau)",1,"125 g"]
[null,{"$f":"LARGE(B7:B48,1)+1","v":41},"Cresson botte",200,10,2000,2,null,{"$f":"LARGE(I7:I48,1)+1","v":93},"Poireau moyen",150,10,1500,1.5,null,{"$f":"LARGE(P7:P48,1)+1","v":152},"Veau carré découvert (5)",2000,10,20000,20,null,null,"Confiture","1 cuillère","30 g",null,"Pickles","1 cuillère","15 g",null,"100 g d'aliments crus.  Viandes :  Veau : à la poêle 93, rôti (3/4 d'h) 74. Mouton : rôti 73, sauté 69. "]
[null,{"$f":"LARGE(B7:B49,1)+1","v":42},"Cuillère café liquide",5,10,50,0.05,null,{"$f":"LARGE(I7:I49,1)+1","v":94},"Poivron",150,10,1500,1.5,null,{"$f":"LARGE(P7:P49,1)+1","v":153},"Veau cervelle",300,10,3000,3,null,null,"Corned-beef","1 fine tranche","20 g",null,"Pistolet",1,"45 g"]
[null,{"$f":"LARGE(B7:B50,1)+1","v":43},"Cuillère soupe liquide",10,10,100,0.1,null,{"$f":"LARGE(I7:I50,1)+1","v":95},"Pomelos 1/2",200,10,2000,2,null,{"$f":"LARGE(P7:P50,1)+1","v":154},"Veau cœur",900,10,9000,9,null,null,"Corn Flakes","1 tasse à café","30 g",null,"Plie","1 pièce","135 g",null,"100 g d'aliments crus.  Viandes :  Porc : côtelette 83, rôti 64. Cheval : bifteck à la poêle 93. Foie : 91. Boudin : 94. Saucisse fraîche : 92."]
[null,null,"D",0,null,0,0,null,{"$f":"LARGE(I7:I51,1)+1","v":96},"Pomme",140,10,1400,1.4,null,{"$f":"LARGE(P7:P51,1)+1","v":155},"Veau Foie",3500,10,35000,35,null,null,"Couque à la crème",1,"80 g",null,"Poire","1 moyenne","160 g"]
[null,{"$f":"LARGE(B7:B52,1)+1","v":44},"Daurade",600,10,6000,6,null,{"$f":"LARGE(I7:I52,1)+1","v":97},"Pomme de terre moyenne",100,10,1000,1,null,{"$f":"LARGE(P7:P52,1)+1","v":156},"Veau langue",1200,10,12000,12,null,null,"Couque au beurre",1,"75 g",null,"Poireau, cuit","1 cuillère","45 g",null,null,"Verres"]
[null,null,"E",0,null,0,0,null,{"$f":"LARGE(I7:I53,1)+1","v":98},"Pomme fruit grosse",150,10,1500,1.5,null,{"$f":"LARGE(P7:P53,1)+1","v":157},"Veau noix",3100,10,31000,31,null,null,"Couque suisse","1 longue / ronde","75 g / 90 g",null,"Poivron vert/jaune/rouge","1 pièce","185 g",null,null,"Petit verre à eau/limonade, rempli normalement 150"]
[null,{"$f":"LARGE(B7:B54,1)+1","v":45},"Eau grand verre à eau",200,10,2000,2,null,{"$f":"LARGE(I7:I54,1)+1","v":99},"Pomme fruit moyenne",100,10,1000,1,null,{"$f":"LARGE(P7:P54,1)+1","v":158},"Veau noix patissière",2650,10,26500,26.5,null,null,"Courgette, cuite","1 cuillère","35 g",null,"Pomme","1 moyenne","140 g"]
[null,{"$f":"LARGE(B7:B55,1)+1","v":46},"Echalote belle",25,10,250,0.25,null,{"$f":"LARGE(I7:I55,1)+1","v":100},"Pomme terre grosse",200,10,2000,2,null,{"$f":"LARGE(P7:P55,1)+1","v":159},"Veau ris",750,10,7500,7.5,null,null,"Cramique","1 tranche","40 g",null,"Pomme de terre, cuite (ovale)",1,"50 g",null,null,"Grand verre à eau/limonade, rempli normalement 250"]
[null,{"$f":"LARGE(B7:B56,1)+1","v":47},"Echalote moyenne",18,10,180,0.18,null,{"$f":"LARGE(I7:I56,1)+1","v":101},"Pomme terre moyenne",120,10,1200,1.2,null,{"$f":"LARGE(P7:P56,1)+1","v":160},"Veau rognon",350,10,3500,3.5,null,null,"Crème","1 cuillère","24 g",null,"Pomme de terre, rôtie","1 cuillère","30 g"]
[null,{"$f":"LARGE(B7:B57,1)+1","v":48},"Echalote petite",10,10,100,0.1,null,{"$f":"LARGE(I7:I57,1)+1","v":102},"Pomme terre petite",80,10,800,0.8,null,{"$f":"LARGE(P7:P57,1)+1","v":161},"Veau sous noix",6200,10,62000,62,null,null,"Crème à fouetter","1 cuillère","12 g",null,"Porto","1 petit verre","75 ml",null,null,"Verre à vin: blanc/rouge, rempli normalement 125"]
[null,{"$f":"LARGE(B7:B58,1)+1","v":49},"Ecrevisse",35,10,350,0.35,null,{"$f":"LARGE(I7:I58,1)+1","v":103},"Porc cervelle ",225,10,2250,2.25,null,null,null,null,null,null,null,null,null,"Crème glacée","1 boule","50 g",null,"Poulet, poitrine (sans peau)","1 filet","160 g"]
[null,null,"F",0,null,0,0,null,{"$f":"LARGE(I7:I59,1)+1","v":104},"Porc cœur",225,10,2250,2.25,null,null,null,null,null,null,null,null,null,"Crêpe","1 pièce","60 g",null,"Poulet, cuisse(sans peau)","1 cuisse","165 g",null,null,"Verre à mousseux, rempli normalement 100"]
[null,{"$f":"LARGE(B7:B60,1)+1","v":50},"Farine 1 cuillère café",3,10,30,0.03,null,{"$f":"LARGE(I7:I60,1)+1","v":105},"Porc foie",750,10,7500,7.5,null,null,null,null,null,null,null,null,null,"Crevettes","1 cuillère","18 g",null,"Praline",1,"15 g"]
[null,{"$f":"LARGE(B7:B61,1)+1","v":51},"Farine 1 cuillère soupe",8,10,80,0.08,null,{"$f":"LARGE(I7:I61,1)+1","v":106},"Porc jambon",8.6,10,86,8.5999999999999993E-2,null,null,null,null,null,null,null,null,null,"Croissant","1 moyen","50 g",null,"Prune, sans noyau","1 moyenne","55 g",null,null,"Verre à bière, rempli normalement 250 et 330"]
[null,{"$f":"LARGE(B7:B62,1)+1","v":52},"Farine 1 tasse",100,10,1000,1,null,{"$f":"LARGE(I7:I62,1)+1","v":107},"Porc longe",11.5,10,115,0.115,null,null,null,null,null,null,null,null,null,"Croque-monsieur",1,"135 g",null,"Prune, sèche",1,"6 g"]
[null,{"$f":"LARGE(B7:B63,1)+1","v":53},"Farine Tasse thé de 15 cl",100,10,1000,1,null,{"$f":"LARGE(I7:I63,1)+1","v":108},"Porc poitrine",3.75,10,37.5,3.7499999999999999E-2,null,null,null,null,null,null,null,null,null,"Croquette de pomme de terre (c)","1 moyenne","27 g",null,"Pudding","1 portion","125 g/200 g",null,null,"Lors de l’établissement du poids des denrées alimentaires liquides (boissons alcoolisées,"]
[null,{"$f":"LARGE(B7:B64,1)+1","v":54},"Farine Verre de 20 cl",135,10,1350,1.35,null,{"$f":"LARGE(I7:I64,1)+1","v":109},"Porc rognon",170,10,1700,1.7,null,null,null,null,null,null,null,null,null,null,null,null,null,"Purée de pommes de terre","1 cuillère/portion","50 g/160 g"]
[null,{"$f":"LARGE(B7:B65,1)+1","v":55},"Fraise",12,10,120,0.12,null,{"$f":"LARGE(I7:I65,1)+1","v":110},"Poulet 4/4",1000,10,10000,10,null,null,null,null,null,null,null,null,null,null,null,null,null,null,null,null,null,null,"lait, lait chocolaté et lait de soja, milkshake et yaourt) les \"ml\" ont été assimilés aux \"g\""]
[null,null,null,null,null,null,null,null,{"$f":"LARGE(I7:I66,1)+1","v":111},"Poulet pac",1500,10,15000,15,null,null,null,null,null,null,null,null,null,"Aliment","Mesure de capacité ","Poids",null,"Aliment","Mesure de capacité ","Poids",null,null,"(source 7.104)."]
[null,null,null,null,null,null,null,null,{"$f":"LARGE(I7:I67,1)+1","v":112},"Pruneau",15,10,150,0.15]
[null,null,null,null,null,null,null,null,null,null,null,null,null,null,null,null,null,null,null,null,null,null,null,"Datte sèche (sans noyau)",1,"9 g",null,"Radis","1 pièce","6 g",null,null,"Pour la crème glacée et la mousse, le facteur de conversion est mentionné dans la colonne"]
[null,null,null,null,null,null,null,null,null,null,null,null,null,null,null,null,null,null,null,null,null,null,null,null,null,null,null,"Raisin",1,"7 g",null,null,"précisions."]
[null,null,null,null,null,null,null,null,null,null,null,null,null,null,null,null,null,null,null,null,null,null,null,"Éclair au chocolat","1 pièce","115 g",null,"Raisin, sec","1 cuillère","12 g"]
[null,null,null,null,null,null,null,null,null,null,null,null,null,null,null,null,null,null,null,null,null,null,null,"Edam jeune","1 fine tranche","25 g",null,"Ravioli","1 portion","400 g"]
[null,null,null,null,null,null,null,null,null,null,null,null,null,null,null,null,null,null,null,null,null,null,null,null,null,null,null,"Riz au lait, vanille","1 portion","100 g/200 g",null,"Nota : (1) En cuisant, les pommes frites absorbent 8 à 10 % de matières grasses."]
[null,null,null,null,null,null,null,null,null,null,null,null,null,null,null,null,null,null,null,null,null,null,null,"Farine","1 cuillère","12 g",null,"Riz, cuit","1 portion","150 g",null,"Besoins journaliers (limites moyennes)","En grammes",null,null,"En milligrammes"]
[null,null,null,null,null,null,null,null,null,null,null,null,null,null,null,null,null,null,null,null,null,null,null,"Fécule de pomme de terre","1 cuillère","12 g",null,"Riz, non cuit","1 sachet","62,5 g",null,null,"Protides","Lipides","Glucides","Calcium 7","Phosphore","Fer","Vit. C"]
[null,null,null,null,null,null,null,null,null,null,null,null,null,null,null,null,null,null,null,null,null,null,null,"Fenouil",1,"200 g",null,null,null,null,null,"Jeunes"]
[null,null,null,null,null,null,null,null,null,null,null,null,null,null,null,null,null,null,null,null,null,null,null,"Fève de soja, cuite","1 tasse à café","140 g",null,"Salami","1 fine tranche","9 g",null," 2 à 4 ans","30/35",32,"200/250","700/750","650/700","40/94","40/60"]
[null,null,null,null,null,null,null,null,null,null,null,null,null,null,null,null,null,null,null,null,null,null,null,"Figue, sèche","1 pièce","20 g",null,"Sandwich sucré",1,"40 g",null," 4 à 6 ans","35/40",33,"200/250","600/800","600/800","40/94","40/60"]
[null,null,null,null,null,null,null,null,null,null,null,null,null,null,null,null,null,null,null,null,null,null,null,"Filet d'Anvers","1 tranche","15 g",null,"Sardine","1 pièce","33 g",null," 6 à 10 ans","45/55",37,"300/340","850/950","850/950","40/94","40/60"]
[null,null,null,null,null,null,null,null,null,null,null,null,null,null,null,null,null,null,null,null,null,null,null,"Flétan, fumé","1 fine tranche","30 g",null,"Saumon","1 tranche","180 g",null,"10 à 12 ans (filles 9 à 11)","60/65",50,"350/400 1","1 000/1 200","1 100/1 300","20/30","60/100"]
[null,null,null,null,null,null,null,null,null,null,null,null,null,null,null,null,null,null,null,null,null,null,null,"Flocons d'avoine","1 tasse à café","45 g",null,"Saumon, fumé","1 fine tranche","30 g",null,"12 à 15 ans (filles 11 à 13)","5/9 2",65,"440/550 3","1 200/1 400","1 300/1 500","20/30","60/100"]
[null,null,null,null,null,null,null,null,null,null,null,null,null,null,null,null,null,null,null,null,null,null,null,"Fraise","1 moyenne","15 g",null,"Sel","1 cuillère","15 g",null,"15 à 20 ans (filles 13 à 18)","75/100 4",75,"550/600 5","1 400/1 600","1 500/1 700","20/30","60/100"]
[null,null,null,null,null,null,null,null,null,null,null,null,null,null,null,null,null,null,null,null,null,null,null,"Frangipane","1 part","100 g",null,"Soupe","1 tasse/1 assiette","300 ml/250 ml",null,"Hommes"]
[null,null,null,null,null,null,null,null,null,null,null,null,null,null,null,null,null,null,null,null,null,null,null,"Frites","1 portion","250 g",null,"Spaghetti, préparé","1 assiette","300 g",null,"Vie sédentaire","75/85 4",60,"400/500","800/900","1 200/1 400","18/20","70/80"]
[null,null,null,null,null,null,null,null,null,null,null,null,null,null,null,null,null,null,null,null,null,null,null,"Fromage frais","1 cuillère","25 g",null,"Spéculoos","1 pièce","7 g",null,"Travail de force"]
[null,null,null,null,null,null,null,null,null,null,null,null,null,null,null,null,null,null,null,null,null,null,null,"Fromage fondu","1 portion/cuillère","20 g/15 g",null,"Sucre","1 cuillère/morceau","15 g/6 g",null," 4e et 3e cat.","85/110",75,"550/700","1 000/1 200","1 500/1 800","23/26","90/110"]
[null,null,null,null,null,null,null,null,null,null,null,null,null,null,null,null,null,null,null,null,null,null,null,"Fruit de la passion","1 moyen","15 g",null,"Sucre impalpable","1 cuillère","6 g",null," 2e et 1re cat.","100/110",95,"850/1 000","1 400/1 600","2 000/2 400","30/45","130/150"]
[null,null,null,null,null,null,null,null,null,null,null,null,null,null,null,null,null,null,null,null,null,null,null,null,null,null,null,null,null,null,null,"Femmes"]
[null,null,null,null,null,null,null,null,null,null,null,null,null,null,null,null,null,null,null,null,null,null,null,"Galette de riz","1 pièce","7 g",null,"Tarte à la confiture","1 part","80 g",null,"Vie sédentaire","65/75 4",50,"350/400","800/900","1 000/1 200","15/20","60/70"]
[null,null,null,null,null,null,null,null,null,null,null,null,null,null,null,null,null,null,null,null,null,null,null,"Gaufre au chocolat","1 moyenne","60 g",null,"Tarte au riz","1 part","140 g",null,"Enceintes (5e-9e mois) 6","90/110",80,"500/550","1 500/2 000","1 500/2 000","20/25","100/150"]
[null,null,null,null,null,null,null,null,null,null,null,null,null,null,null,null,null,null,null,null,null,null,null,"Gaufre de Liège","1 moyenne","55 g",null,"Tarte aux fruits","1 part","165 g",null,"Allaitant 6 ","100/110",80,"500/550","1 500/2 000","1 500/2 000","20/25","100/150"]
[null,null,null,null,null,null,null,null,null,null,null,null,null,null,null,null,null,null,null,null,null,null,null,"Gouda","1 fine tranche","20 g",null,"Tarte aux mattons","1 morceau","120 g",null,"Vieillards 6 ",65,45,"300/400","900/1 000","900/1 000","14/16","50/60"]
[null,null,null,null,null,null,null,null,null,null,null,null,null,null,null,null,null,null,null,null,null,null,null,"Graisse de cuisson","1 cuillère","18 g",null,"Toast","1 pièce","3 g"]
[null,null,null,null,null,null,null,null,null,null,null,null,null,null,null,null,null,null,null,null,null,null,null,"Gruyère","1 fine tranche","25 g",null,"Tomate","1 moyenne","150 g",null,"Nota : Pour les filles : (1) 330/350, (2) 80/85, (3) 400/500, (4) 85-90, (5) 500/550. (6) Vie sédentaire ou légère activité. (7) Contenu surtout dans le fromage et le lait."]
[null,null,null,null,null,null,null,null,null,null,null,null,null,null,null,null,null,null,null,null,null,null,null,"Gruyère, râpé","1 cuillère","15 g",null,"Truite","1 pièce","120 g"]
[]
[null,null,null,null,null,null,null,null,null,null,null,null,null,null,null,null,null,null,null,null,null,null,null,"Hamburger + sandwich","1 moyenne","130 g",null,"Viande de porc, côtelette","1 avec/sans côte","175g /160 g"]
[null,null,null,null,null,null,null,null,null,null,null,null,null,null,null,null,null,null,null,null,null,null,null,"Haricot blanc, cuit /sec","1 cuillère","35 g/105 g",null,"Viande de porc, tranche",1,"150 g"]
[null,null,null,null,null,null,null,null,null,null,null,null,null,null,null,null,null,null,null,null,null,null,null,"Hareng/maatje","1 moyen","80 g",null,"Vin de table blanc/rouge","1 verre","125 ml"]
[null,null,null,null,null,null,null,null,null,null,null,null,null,null,null,null,null,null,null,null,null,null,null,"Huile","1 cuillère","10 g",null,"Yaourt","1 cuillère","25 g"]
[]
[null,null,null,null,null,null,null,null,null,null,null,null,null,null,null,null,null,null,null,null,null,null,null,"Jambon, cru, fumé","1 fine tranche","25 g",null,"4. MESURES DE CAPACITE*"]
[null,null,null,null,null,null,null,null,null,null,null,null,null,null,null,null,null,null,null,null,null,null,null,"Jambon, cuit","1 fine tranche","45 g",null,"Mesures de capacité calculées à partir d’eau             ",null,"Poids en grammes"]
[null,null,null,null,null,null,null,null,null,null,null,null,null,null,null,null,null,null,null,null,null,null,null,"Jambon de dinde","1 fine tranche","20 g"]
[null,null,null,null,null,null,null,null,null,null,null,null,null,null,null,null,null,null,null,null,null,null,null,"Jambon de poulet","1 fine tranche","20 g",null,"Cuillère à café",null,"4,5 g"]
[null,null,null,null,null,null,null,null,null,null,null,null,null,null,null,null,null,null,null,null,null,null,null,"Jus de pomme/jus d'orange","1 verre","150 ml",null,"Cuillère à soupe",null,"12 g"]
[null,null,null,null,null,null,null,null,null,null,null,null,null,null,null,null,null,null,null,null,null,null,null,"Ketchup","1 cuillère","23 g",null,"Cuillère à dessert",null,"8 g"]
[null,null,null,null,null,null,null,null,null,null,null,null,null,null,null,null,null,null,null,null,null,null,null,"Kiwi","1 moyen","75 g",null,"Cuillère à sauce",null,"25 g"]
[null,null,null,null,null,null,null,null,null,null,null,null,null,null,null,null,null,null,null,null,null,null,null,null,null,null,null,"Louche",null,"150 g"]
[null,null,null,null,null,null,null,null,null,null,null,null,null,null,null,null,null,null,null,null,null,null,null,"Lait","1 verre","150 ml",null,"Tasse à ras bord",null,"150 g"]
[null,null,null,null,null,null,null,null,null,null,null,null,null,null,null,null,null,null,null,null,null,null,null,"Lait battu nature","1 verre","150 ml",null,"Tasse liquide",null,"125 g"]
[null,null,null,null,null,null,null,null,null,null,null,null,null,null,null,null,null,null,null,null,null,null,null,"Lait chocolaté","1 petite bouteille","200 ml",null,"Grande tasse à ras bord",null,"250 g"]
[null,null,null,null,null,null,null,null,null,null,null,null,null,null,null,null,null,null,null,null,null,null,null,"Lait concentré","1 portion individuelle","7,5 g",null,"Grande tasse liquide",null,"225 g"]
[null,null,null,null,null,null,null,null,null,null,null,null,null,null,null,null,null,null,null,null,null,null,null,"Langue de bœuf","1 fine tranche","15 g",null,"Gobelet plastique à ras bord",null,"150 g"]
[null,null,null,null,null,null,null,null,null,null,null,null,null,null,null,null,null,null,null,null,null,null,null,"Lapin/lièvre (cuisse)","1 morceau","250 g",null,"Gobelet plastique liquide",null,"125 g"]
[null,null,null,null,null,null,null,null,null,null,null,null,null,null,null,null,null,null,null,null,null,null,null,"Lard fumé","1 petite tranche","15 g",null,"Bol de soupe à ras bord",null,"300 g"]
[null,null,null,null,null,null,null,null,null,null,null,null,null,null,null,null,null,null,null,null,null,null,null,"Lasagne","1 portion","400 g",null,"Bol de soupe liquide",null,"250 g"]
[null,null,null,null,null,null,null,null,null,null,null,null,null,null,null,null,null,null,null,null,null,null,null,"Levure fraîche","1 petit paquet","42 g",null,"Ravier à dessert",null,"150 g"]
[null,null,null,null,null,null,null,null,null,null,null,null,null,null,null,null,null,null,null,null,null,null,null,"Limonade/cola/eau","1 verre","150 ml",null,"Verre à limonade/eau",null,"150 g"]
[null,null,null,null,null,null,null,null,null,null,null,null,null,null,null,null,null,null,null,null,null,null,null,"Litchi",1,"11 g",null,"Verre à limonade grand",null,"250 g"]
[null,null,null,null,null,null,null,null,null,null,null,null,null,null,null,null,null,null,null,null,null,null,null,null,null,null,null,"Verre à vin rouge",null,"125 g"]
[null,null,null,null,null,null,null,null,null,null,null,null,null,null,null,null,null,null,null,null,null,null,null,null,null,null,null,"Verre à vin blanc",null,"125 g"]
[null,null,null,null,null,null,null,null,null,null,null,null,null,null,null,null,null,null,null,null,null,null,null,null,null,null,null,"Verre à champagne",null,"100 g"]
[null,null,null,null,null,null,null,null,null,null,null,null,null,null,null,null,null,null,null,null,null,null,null,null,null,null,null,"Verre à bière petit",null,"250 g"]
[null,null,null,null,null,null,null,null,null,null,null,null,null,null,null,null,null,null,null,null,null,null,null,null,null,null,null,"Verre à bière grand",null,"330 g"]
[]
[null,null,null,null,null,null,null,null,null,null,null,null,null,null,null,null,null,null,null,null,null,null,null,null,null,null,null,"* Source:"]
[null,null,null,null,null,null,null,null,null,null,null,null,null,null,null,null,null,null,null,null,null,null,null,null,null,null,null,"Groupe de travail « Poids et mesures », Conseil Supérieur d’Hygiène."]